BIOGUIDE_ID,OFFICE,QUARTER,PROGRAM,CATEGORY,SORT SEQUENCE,DATE,TRANSCODE,RECORDID,PAYEE,START DATE,END DATE,PURPOSE,AMOUNT,YEAR
,2017 OFFICE OF THE SPEAKER,2017Q2,GENERAL EXPENDITURES,PERSONNEL COMPENSATION,   ,   ,   ,,ALTHOUSE JOSHUA S,2017-04-01,2017-06-30,CONSERVATIVE OUTREACH DIRECTOR,20000.01,2017
,2017 OFFICE OF THE SPEAKER,2017Q2,GENERAL EXPENDITURES,PERSONNEL COMPENSATION,   ,   ,   ,,ANDRES DOUGLAS R,2017-04-01,2017-06-30,PRESS SECRETARY,27500.01,2017
,2017 OFFICE OF THE SPEAKER,2017Q2,GENERAL EXPENDITURES,PERSONNEL COMPENSATION,   ,   ,   ,,ANDREWS THOMAS S,2017-04-01,2017-06-30,MEMBER SERVICES DIRECTOR,32500,2017
,2017 OFFICE OF THE SPEAKER,2017Q2,GENERAL EXPENDITURES,PERSONNEL COMPENSATION,   ,   ,   ,,ANTELL GEOFFREY,2017-04-01,2017-06-30,ASST TO THE SPEAKER FOR POLICY,41250,2017
,2017 OFFICE OF THE SPEAKER,2017Q2,GENERAL EXPENDITURES,PERSONNEL COMPENSATION,   ,   ,   ,,BENJAMIN WILLIAM C.,2017-04-01,2017-06-30,SYSTEM ADMINISTRATOR,13250.01,2017
,2017 OFFICE OF THE SPEAKER,2017Q2,GENERAL EXPENDITURES,PERSONNEL COMPENSATION,   ,   ,   ,,BLAKE KRISTENE,2017-04-01,2017-06-30,DIR OF ADMIN OPERATIONS,33750,2017
,2017 OFFICE OF THE SPEAKER,2017Q2,GENERAL EXPENDITURES,PERSONNEL COMPENSATION,   ,   ,   ,,BLANKENSHIP APRIL L.,2017-04-01,2017-06-30,FINANCIAL ADMINISTRATOR,6102.75,2017
,2017 OFFICE OF THE SPEAKER,2017Q2,GENERAL EXPENDITURES,PERSONNEL COMPENSATION,   ,   ,   ,,BUCK BRENDAN K,2017-04-01,2017-06-30,COUNSELOR TO THE SPEAKER,43125,2017
,2017 OFFICE OF THE SPEAKER,2017Q2,GENERAL EXPENDITURES,PERSONNEL COMPENSATION,   ,   ,   ,,BURKS JONATHAN,2017-04-01,2017-06-30,CHIEF OF STAFF,43125,2017
,2017 OFFICE OF THE SPEAKER,2017Q2,GENERAL EXPENDITURES,PERSONNEL COMPENSATION,   ,   ,   ,,BUSH NICHOLAS J,2017-04-07,2017-06-30,SHARED EMPLOYEE,23333.33,2017
,2017 OFFICE OF THE SPEAKER,2017Q2,GENERAL EXPENDITURES,PERSONNEL COMPENSATION,   ,   ,   ,,CALLAS GEORGE A,2017-04-01,2017-06-30,CHIEF TAX COUNSEL,42674.01,2017
,2017 OFFICE OF THE SPEAKER,2017Q2,GENERAL EXPENDITURES,PERSONNEL COMPENSATION,   ,   ,   ,,CASTINE PETER L,2017-04-01,2017-06-08,STAFF ASSISTANT,7555.55,2017
,2017 OFFICE OF THE SPEAKER,2017Q2,GENERAL EXPENDITURES,PERSONNEL COMPENSATION,   ,   ,   ,,CASTINE PETER L,2017-01-01,2017-05-31,STAFF ASSISTANT (OVERTIME),1288.34,2017
,2017 OFFICE OF THE SPEAKER,2017Q2,GENERAL EXPENDITURES,PERSONNEL COMPENSATION,   ,   ,   ,,CASTINE PETER L,2017-06-01,2017-06-08,STAFF ASSISTANT (OTHER COMPENSATION),888.89,2017
,2017 OFFICE OF THE SPEAKER,2017Q2,GENERAL EXPENDITURES,PERSONNEL COMPENSATION,   ,   ,   ,,COYLE SARAH M,2017-04-01,2017-06-30,FLOOR ASSISTANT,12500.01,2017
,2017 OFFICE OF THE SPEAKER,2017Q2,GENERAL EXPENDITURES,PERSONNEL COMPENSATION,   ,   ,   ,,DEN HERDER ALEXA S,2017-06-07,2017-06-30,STAFF ASSISTANT,2333.33,2017
,2017 OFFICE OF THE SPEAKER,2017Q2,GENERAL EXPENDITURES,PERSONNEL COMPENSATION,   ,   ,   ,,DIXON KELLY A.,2017-04-01,2017-06-30,SHARED EMPLOYEE,24999.99,2017
,2017 OFFICE OF THE SPEAKER,2017Q2,GENERAL EXPENDITURES,PERSONNEL COMPENSATION,   ,   ,   ,,DOCKERY DERRICK D,2017-04-01,2017-06-30,INTERGOVERNMENTAL OUTREACH DIR,20000.01,2017
,2017 OFFICE OF THE SPEAKER,2017Q2,GENERAL EXPENDITURES,PERSONNEL COMPENSATION,   ,   ,   ,,DRESSLER JEFFREY A,2017-04-01,2017-06-30,ASST TO THE SPEAKER FOR POLICY,27500.01,2017
,2017 OFFICE OF THE SPEAKER,2017Q2,GENERAL EXPENDITURES,PERSONNEL COMPENSATION,   ,   ,   ,,EASBY-SMITH ANNE S.,2017-04-01,2017-06-30,SPECIAL EVENTS COORDINATOR,23750.01,2017
,2017 OFFICE OF THE SPEAKER,2017Q2,GENERAL EXPENDITURES,PERSONNEL COMPENSATION,   ,   ,   ,,EDWARDS SPENCER M,2017-04-01,2017-04-30,DEPUTY PRESS SECRETARY,5833.33,2017
,2017 OFFICE OF THE SPEAKER,2017Q2,GENERAL EXPENDITURES,PERSONNEL COMPENSATION,   ,   ,   ,,EDWARDS SPENCER M,2017-05-01,2017-06-30,DEP PRESS SEC/HEAD OF ADVANCE,12250,2017
,2017 OFFICE OF THE SPEAKER,2017Q2,GENERAL EXPENDITURES,PERSONNEL COMPENSATION,   ,   ,   ,,EICHHORN JARED D.,2017-04-01,2017-06-30,CLOAKROOM DIRECTOR,24999.99,2017
,2017 OFFICE OF THE SPEAKER,2017Q2,GENERAL EXPENDITURES,PERSONNEL COMPENSATION,   ,   ,   ,,EPLEY MARK D,2017-04-01,2017-06-30,GENERAL COUNSEL/OVERSIGHT,43125,2017
,2017 OFFICE OF THE SPEAKER,2017Q2,GENERAL EXPENDITURES,PERSONNEL COMPENSATION,   ,   ,   ,,FOLTZ DEVON N,2017-04-01,2017-05-14,COUNSEL FOR FLOOR OPERATIONS,17111.11,2017
,2017 OFFICE OF THE SPEAKER,2017Q2,GENERAL EXPENDITURES,PERSONNEL COMPENSATION,   ,   ,   ,,FOLTZ DEVON N,2017-05-15,2017-06-30,DEPUTY FLOOR DIRECTOR/COUNSEL,17888.89,2017
,2017 OFFICE OF THE SPEAKER,2017Q2,GENERAL EXPENDITURES,PERSONNEL COMPENSATION,   ,   ,   ,,GEFFERT REBEKAH L,2017-04-01,2017-06-06,STAFF ASSISTANT,7333.33,2017
,2017 OFFICE OF THE SPEAKER,2017Q2,GENERAL EXPENDITURES,PERSONNEL COMPENSATION,   ,   ,   ,,GEFFERT REBEKAH L,2017-01-01,2017-04-30,STAFF ASSISTANT (OVERTIME),735.56,2017
,2017 OFFICE OF THE SPEAKER,2017Q2,GENERAL EXPENDITURES,PERSONNEL COMPENSATION,   ,   ,   ,,GEFFERT REBEKAH L,2017-06-01,2017-06-06,STAFF ASSISTANT (OTHER COMPENSATION),194.44,2017
,2017 OFFICE OF THE SPEAKER,2017Q2,GENERAL EXPENDITURES,PERSONNEL COMPENSATION,   ,   ,   ,,GILLESPIE JAMES M,2017-04-01,2017-04-30,CLERICAL TECHNICAN,3750,2017
,2017 OFFICE OF THE SPEAKER,2017Q2,GENERAL EXPENDITURES,PERSONNEL COMPENSATION,   ,   ,   ,,GILLESPIE JAMES M,2017-05-01,2017-06-30,FLOOR ASSISTANT,7833.34,2017
,2017 OFFICE OF THE SPEAKER,2017Q2,GENERAL EXPENDITURES,PERSONNEL COMPENSATION,   ,   ,   ,,GILLESPIE JAMES M,2017-01-01,2017-04-30,CLERICAL TECHNICAN (OVERTIME),292.06,2017
,2017 OFFICE OF THE SPEAKER,2017Q2,GENERAL EXPENDITURES,PERSONNEL COMPENSATION,   ,   ,   ,,GILLESPIE JAMES M,2017-05-01,2017-05-31,FLOOR ASSISTANT (OVERTIME),474.51,2017
,2017 OFFICE OF THE SPEAKER,2017Q2,GENERAL EXPENDITURES,PERSONNEL COMPENSATION,   ,   ,   ,,GOLDOUST CARAH S,2017-04-01,2017-06-30,SPECIAL EVENTS COORDINATOR,9999.99,2017
,2017 OFFICE OF THE SPEAKER,2017Q2,GENERAL EXPENDITURES,PERSONNEL COMPENSATION,   ,   ,   ,,GOLDOUST CARAH S,2017-01-01,2017-05-31,SPECIAL EVENTS COORDINATOR (OVERTIME),4052.84,2017
,2017 OFFICE OF THE SPEAKER,2017Q2,GENERAL EXPENDITURES,PERSONNEL COMPENSATION,   ,   ,   ,,HALPERN HUGH N.,2017-04-01,2017-06-30,FLOOR DIRECTOR - STATUTORY,43125,2017
,2017 OFFICE OF THE SPEAKER,2017Q2,GENERAL EXPENDITURES,PERSONNEL COMPENSATION,   ,   ,   ,,HEMINGWAY JENNIFER A,2017-04-01,2017-06-30,DIRECTOR OF HOUSE OPERATIONS,43125,2017
,2017 OFFICE OF THE SPEAKER,2017Q2,GENERAL EXPENDITURES,PERSONNEL COMPENSATION,   ,   ,   ,,HERRLE CYNTHIA A.,2017-04-01,2017-06-30,ASST TO THE SPEAKER FOR POLICY,42000,2017
,2017 OFFICE OF THE SPEAKER,2017Q2,GENERAL EXPENDITURES,PERSONNEL COMPENSATION,   ,   ,   ,,HIGGINS CASEY,2017-04-01,2017-06-30,ASSIST TO SPEAKER FOR POLICY,39603.75,2017
,2017 OFFICE OF THE SPEAKER,2017Q2,GENERAL EXPENDITURES,PERSONNEL COMPENSATION,   ,   ,   ,,HOFFMANN MATTHEW,2017-04-01,2017-06-30,ASSIST TO SPEAKER FOR POLICY,39603.75,2017
,2017 OFFICE OF THE SPEAKER,2017Q2,GENERAL EXPENDITURES,PERSONNEL COMPENSATION,   ,   ,   ,,HUSTON JOHNATHON B,2017-04-01,2017-06-30,SHARED EMPLOYEE,11250,2017
,2017 OFFICE OF THE SPEAKER,2017Q2,GENERAL EXPENDITURES,PERSONNEL COMPENSATION,   ,   ,   ,,JORDON BENJAMIN D,2017-04-01,2017-06-30,STAFF ASSISTANT,9999.99,2017
,2017 OFFICE OF THE SPEAKER,2017Q2,GENERAL EXPENDITURES,PERSONNEL COMPENSATION,   ,   ,   ,,JORDON BENJAMIN D,2017-01-01,2017-05-31,STAFF ASSISTANT (OVERTIME),1096.14,2017
,2017 OFFICE OF THE SPEAKER,2017Q2,GENERAL EXPENDITURES,PERSONNEL COMPENSATION,   ,   ,   ,,KOHLER JOHN D,2017-06-12,2017-06-30,CORRESPONDENCE ASSISTANT,1847.22,2017
,2017 OFFICE OF THE SPEAKER,2017Q2,GENERAL EXPENDITURES,PERSONNEL COMPENSATION,   ,   ,   ,,LARSON SALLY R,2017-04-01,2017-06-30,SHARED EMPLOYEE,24999.99,2017
,2017 OFFICE OF THE SPEAKER,2017Q2,GENERAL EXPENDITURES,PERSONNEL COMPENSATION,   ,   ,   ,,LETSCH ANDREW D,2017-05-24,2017-06-30,STAFF ASSISTANT,3597.23,2017
,2017 OFFICE OF THE SPEAKER,2017Q2,GENERAL EXPENDITURES,PERSONNEL COMPENSATION,   ,   ,   ,,MATTHEWS TITUS V,2017-01-01,2017-01-19,STAFF ASSISTANT (OVERTIME),152.7,2017
,2017 OFFICE OF THE SPEAKER,2017Q2,GENERAL EXPENDITURES,PERSONNEL COMPENSATION,   ,   ,   ,,MCCALLIE CARLY L,2017-04-01,2017-05-11,ASSOCIATE COUNSEL,6833.33,2017
,2017 OFFICE OF THE SPEAKER,2017Q2,GENERAL EXPENDITURES,PERSONNEL COMPENSATION,   ,   ,   ,,MCCALLIE CARLY L,2017-05-01,2017-05-11,ASSOCIATE COUNSEL (OTHER COMPENSATION),875,2017
,2017 OFFICE OF THE SPEAKER,2017Q2,GENERAL EXPENDITURES,PERSONNEL COMPENSATION,   ,   ,   ,,MCCANN EDWARD D.,2017-04-01,2017-06-30,ASSIST TO SPEAKER FOR POLICY,39999.99,2017
,2017 OFFICE OF THE SPEAKER,2017Q2,GENERAL EXPENDITURES,PERSONNEL COMPENSATION,   ,   ,   ,,MILLER WILLIAM,2017-04-01,2017-06-30,SPECIAL ASSISTANT TO THE SPEAK,17499.99,2017
,2017 OFFICE OF THE SPEAKER,2017Q2,GENERAL EXPENDITURES,PERSONNEL COMPENSATION,   ,   ,   ,,MITCHELL MAUREEN E,2017-04-01,2017-06-30,DIRECTOR OF SCHEDULING,33750,2017
,2017 OFFICE OF THE SPEAKER,2017Q2,GENERAL EXPENDITURES,PERSONNEL COMPENSATION,   ,   ,   ,,MUNDAY J M.,2017-04-01,2017-06-30,DIRECTOR OF INFORMATION TECHNO,32499.99,2017
,2017 OFFICE OF THE SPEAKER,2017Q2,GENERAL EXPENDITURES,PERSONNEL COMPENSATION,   ,   ,   ,,O'TOOLE RYAN T,2017-04-01,2017-06-30,FLOOR ASSISTANT,15000,2017
,2017 OFFICE OF THE SPEAKER,2017Q2,GENERAL EXPENDITURES,PERSONNEL COMPENSATION,   ,   ,   ,,PIATT AUSTIN W,2017-06-13,2017-06-30,STAFF ASSISTANT,1750,2017
,2017 OFFICE OF THE SPEAKER,2017Q2,GENERAL EXPENDITURES,PERSONNEL COMPENSATION,   ,   ,   ,,POINTER KATHERINE C,2017-04-01,2017-05-21,SENIOR STAFF ASSISTANT,7791.66,2017
,2017 OFFICE OF THE SPEAKER,2017Q2,GENERAL EXPENDITURES,PERSONNEL COMPENSATION,   ,   ,   ,,POINTER KATHERINE C,2017-05-22,2017-06-30,FLOOR ASSISTANT,6500,2017
,2017 OFFICE OF THE SPEAKER,2017Q2,GENERAL EXPENDITURES,PERSONNEL COMPENSATION,   ,   ,   ,,POINTER KATHERINE C,2017-01-01,2017-04-30,SENIOR STAFF ASSISTANT (OVERTIME),2094.2,2017
,2017 OFFICE OF THE SPEAKER,2017Q2,GENERAL EXPENDITURES,PERSONNEL COMPENSATION,   ,   ,   ,,POINTER KATHERINE C,2017-05-01,2017-05-31,FLOOR ASSISTANT (OVERTIME),324.52,2017
,2017 OFFICE OF THE SPEAKER,2017Q2,GENERAL EXPENDITURES,PERSONNEL COMPENSATION,   ,   ,   ,,REISING JOHN B,2017-05-01,2017-06-30,SHARED EMPLOYEE,16666.66,2017
,2017 OFFICE OF THE SPEAKER,2017Q2,GENERAL EXPENDITURES,PERSONNEL COMPENSATION,   ,   ,   ,,RICCI MICHAEL,2017-04-01,2017-06-30,DIRECTOR OF COMMUNICATIONS,42000,2017
,2017 OFFICE OF THE SPEAKER,2017Q2,GENERAL EXPENDITURES,PERSONNEL COMPENSATION,   ,   ,   ,,ROMAN MARK J.,2017-04-01,2017-06-30,SHARED EMPLOYEE,24999.99,2017
,2017 OFFICE OF THE SPEAKER,2017Q2,GENERAL EXPENDITURES,PERSONNEL COMPENSATION,   ,   ,   ,,SAKWA JENNA P,2017-05-15,2017-06-30,MEDIA AFFAIRS DIRECTOR,13416.67,2017
,2017 OFFICE OF THE SPEAKER,2017Q2,GENERAL EXPENDITURES,PERSONNEL COMPENSATION,   ,   ,   ,,SHAPIRO MICHAEL I.,2017-04-01,2017-06-30,COMMUNICATIONS ADVISOR,20000.01,2017
,2017 OFFICE OF THE SPEAKER,2017Q2,GENERAL EXPENDITURES,PERSONNEL COMPENSATION,   ,   ,   ,,SLINGSBY JULIA K.,2017-04-01,2017-06-30,DEPUTY COMMUNICATIONS DIRECTOR,26250,2017
,2017 OFFICE OF THE SPEAKER,2017Q2,GENERAL EXPENDITURES,PERSONNEL COMPENSATION,   ,   ,   ,,SMITH CALEB J,2017-04-01,2017-06-30,DIGITAL COMMUNICATIONS DIRECTO,32499.99,2017
,2017 OFFICE OF THE SPEAKER,2017Q2,GENERAL EXPENDITURES,PERSONNEL COMPENSATION,   ,   ,   ,,SMYTHE AUGUSTINE,2017-04-01,2017-06-30,POLICY DIRECTOR,43125,2017
,2017 OFFICE OF THE SPEAKER,2017Q2,GENERAL EXPENDITURES,PERSONNEL COMPENSATION,   ,   ,   ,,SPETH ANDREW D.,2017-04-01,2017-06-30,DEPUTY CHIEF OF STAFF,30000,2017
,2017 OFFICE OF THE SPEAKER,2017Q2,GENERAL EXPENDITURES,PERSONNEL COMPENSATION,   ,   ,   ,,STRONG ASHLEE A,2017-04-01,2017-06-30,PRESS SECRETARY,38750.01,2017
,2017 OFFICE OF THE SPEAKER,2017Q2,GENERAL EXPENDITURES,PERSONNEL COMPENSATION,   ,   ,   ,,STRUNK LYDIA,2017-04-01,2017-05-12,DEPUTY FLOOR DIRECTOR,14583.34,2017
,2017 OFFICE OF THE SPEAKER,2017Q2,GENERAL EXPENDITURES,PERSONNEL COMPENSATION,   ,   ,   ,,STRUNK LYDIA,2017-05-01,2017-05-12,DEPUTY FLOOR DIRECTOR (OTHER COMPENSATION),10416.66,2017
,2017 OFFICE OF THE SPEAKER,2017Q2,GENERAL EXPENDITURES,PERSONNEL COMPENSATION,   ,   ,   ,,SWINEHART SARAH V,2017-04-01,2017-04-14,DIRECTOR OF MEDIA AFFAIRS,4277.78,2017
,2017 OFFICE OF THE SPEAKER,2017Q2,GENERAL EXPENDITURES,PERSONNEL COMPENSATION,   ,   ,   ,,SWINEHART SARAH V,2017-04-01,2017-04-14,DIRECTOR OF MEDIA AFFAIRS (OTHER COMPENSATION),4583.33,2017
,2017 OFFICE OF THE SPEAKER,2017Q2,GENERAL EXPENDITURES,PERSONNEL COMPENSATION,   ,   ,   ,,VANDEHEY VANESSA P,2017-04-01,2017-06-30,STAFF ASSISTANT,8750.01,2017
,2017 OFFICE OF THE SPEAKER,2017Q2,GENERAL EXPENDITURES,PERSONNEL COMPENSATION,   ,   ,   ,,VANDEHEY VANESSA P,2017-03-01,2017-04-30,STAFF ASSISTANT (OVERTIME),416.46,2017
,2017 OFFICE OF THE SPEAKER,2017Q2,GENERAL EXPENDITURES,PERSONNEL COMPENSATION,   ,   ,   ,,VREEBURG JACOBUS A,2017-04-01,2017-06-30,SHARED EMPLOYEE,20000.01,2017
,2017 OFFICE OF THE SPEAKER,2017Q2,GENERAL EXPENDITURES,PERSONNEL COMPENSATION,   ,   ,   ,,WALTZ PAIGE M,2017-04-01,2017-06-30,DIGITAL MEDIA COORDINATOR,12999.99,2017
,2017 OFFICE OF THE SPEAKER,2017Q2,GENERAL EXPENDITURES,PERSONNEL COMPENSATION,   ,   ,   ,,WEAVER KIEL P.,2017-05-02,2017-06-30,ASST TO SPEAKER FOR POLICY,27041.67,2017
,2017 OFFICE OF THE SPEAKER,2017Q2,GENERAL EXPENDITURES,PERSONNEL COMPENSATION,   ,   ,   ,,WHETSTONE COURTNEY D,2017-04-01,2017-04-06,SHARED EMPLOYEE,1666.67,2017
,2017 OFFICE OF THE SPEAKER,2017Q2,GENERAL EXPENDITURES,PERSONNEL COMPENSATION,   ,   ,   ,,WICKISER VICTORIA H,2017-04-01,2017-06-30,DEPUTY DIRECTOR OF SCHEDULING,20000.01,2017
,2017 OFFICE OF THE SPEAKER,2017Q2,GENERAL EXPENDITURES,PERSONNEL COMPENSATION,   ,   ,   ,,ZULKOSKY ERIC T,2017-04-01,2017-04-15,DIR OF MEMBER SVS & POLICY ADV,-1458.33,2017
,2017 OFFICE OF THE SPEAKER,2017Q2,GENERAL EXPENDITURES,PERSONNEL COMPENSATION,   ,   ,   ,,ZULKOSKY ERIC T,2017-04-01,2017-04-15,DIR OF MEMBER SVS & POLICY ADV,1458.33,2017
,2017 OFFICE OF THE SPEAKER,2017Q2,GENERAL EXPENDITURES,PERSONNEL COMPENSATION,   ,   ,   ,,ZULKOSKY ERIC T,2017-04-01,2017-04-15,SHARED EMPLOYEE,4166.67,2017
,2017 OFFICE OF THE SPEAKER,2017Q2,GENERAL EXPENDITURES,PERSONNEL COMPENSATION,   ,   ,   ,,   ,   ,   ,PERSONNEL COMPENSATION TOTALS:,1445231.03,2017
,2017 OFFICE OF THE SPEAKER,2017Q2,GENERAL EXPENDITURES,TRAVEL,4/7/17,AP,913147,,HIGGINS CASEY,2017-02-23,2017-02-23,COMMERCIAL TRANSPORTATION,772.1,2017
,2017 OFFICE OF THE SPEAKER,2017Q2,GENERAL EXPENDITURES,TRAVEL,4/7/17,AP,913147,,HIGGINS CASEY,2017-02-21,2017-02-23,LODGING,273.7,2017
,2017 OFFICE OF THE SPEAKER,2017Q2,GENERAL EXPENDITURES,TRAVEL,4/7/17,AP,913147,,HIGGINS CASEY,2017-02-22,2017-02-23,MEALS,50.14,2017
,2017 OFFICE OF THE SPEAKER,2017Q2,GENERAL EXPENDITURES,TRAVEL,4/7/17,AP,913147,,HIGGINS CASEY,2017-02-06,2017-02-23,TAXI/PARKING/TOLLS,73.34,2017
,2017 OFFICE OF THE SPEAKER,2017Q2,GENERAL EXPENDITURES,TRAVEL,4/7/17,AP,E0503322,,SMYTHE AUGUSTINE,2017-03-13,2017-03-29,TAXI/PARKING/TOLLS,53.16,2017
,2017 OFFICE OF THE SPEAKER,2017Q2,GENERAL EXPENDITURES,TRAVEL,4/7/17,AP,E0503408,,ALTHOUSE JOSHUA,2017-03-08,2017-03-08,TAXI/PARKING/TOLLS,23.69,2017
,2017 OFFICE OF THE SPEAKER,2017Q2,GENERAL EXPENDITURES,TRAVEL,4/17/17,AP,E0506486,,DRESSLER JEFFREY A.,2017-03-17,2017-03-17,TAXI/PARKING/TOLLS,26.57,2017
,2017 OFFICE OF THE SPEAKER,2017Q2,GENERAL EXPENDITURES,TRAVEL,4/21/17,AP,E0508254,,SMITH CALEB,2017-03-17,2017-03-17,TAXI/PARKING/TOLLS,9.28,2017
,2017 OFFICE OF THE SPEAKER,2017Q2,GENERAL EXPENDITURES,TRAVEL,5/3/17,AP,E0511468,,BURKS JONATHAN,2017-03-20,2017-03-27,TAXI/PARKING/TOLLS,52.21,2017
,2017 OFFICE OF THE SPEAKER,2017Q2,GENERAL EXPENDITURES,TRAVEL,6/5/17,AP,E0520728,,SMYTHE AUGUSTINE,2017-05-22,2017-05-22,TAXI/PARKING/TOLLS,23.29,2017
,2017 OFFICE OF THE SPEAKER,2017Q2,GENERAL EXPENDITURES,TRAVEL,6/27/17,AP,E0527936,,DRESSLER JEFFREY A.,2017-04-07,2017-04-11,TAXI/PARKING/TOLLS,48.13,2017
,2017 OFFICE OF THE SPEAKER,2017Q2,GENERAL EXPENDITURES,TRAVEL,6/27/17,AP,E0527936,,DRESSLER JEFFREY A.,2017-05-10,2017-05-16,TAXI/PARKING/TOLLS,45.52,2017
,2017 OFFICE OF THE SPEAKER,2017Q2,GENERAL EXPENDITURES,TRAVEL,   ,   ,   ,,   ,   ,   ,TRAVEL TOTALS:,1451.13,2017
,2017 OFFICE OF THE SPEAKER,2017Q2,GENERAL EXPENDITURES,PRINTING AND REPRODUCTION,4/26/17,GL,PIX0067785,, ,2017-04-01,2017-04-30,PHOTOGRAPHIC (TRANSFER),34.3,2017
,2017 OFFICE OF THE SPEAKER,2017Q2,GENERAL EXPENDITURES,PRINTING AND REPRODUCTION,5/26/17,GL,PIX0068669,, ,2017-05-01,2017-05-31,PHOTOGRAPHIC (TRANSFER),38.1,2017
,2017 OFFICE OF THE SPEAKER,2017Q2,GENERAL EXPENDITURES,PRINTING AND REPRODUCTION,6/21/17,AP,E0528050,,ACCURATE WORD LLC,2017-06-15,2017-06-15,PRINTING & REPRODUCTION,119.9,2017
,2017 OFFICE OF THE SPEAKER,2017Q2,GENERAL EXPENDITURES,PRINTING AND REPRODUCTION,6/23/17,AP,E0529008,,ACCURATE WORD LLC,2017-06-16,2017-06-16,PRINTING & REPRODUCTION,69.95,2017
,2017 OFFICE OF THE SPEAKER,2017Q2,GENERAL EXPENDITURES,PRINTING AND REPRODUCTION,   ,   ,   ,,   ,   ,   ,PRINTING AND REPRODUCTION TOTALS:,262.25,2017
,2017 OFFICE OF THE SPEAKER,2017Q2,GENERAL EXPENDITURES,SUPPLIES AND MATERIALS,4/3/17,AP,E0501674,,FIRST CHOICE COFFEE SERVICES,2017-03-21,2017-03-21,FOOD & BEVERAGE,184.35,2017
,2017 OFFICE OF THE SPEAKER,2017Q2,GENERAL EXPENDITURES,SUPPLIES AND MATERIALS,4/3/17,AP,E0501676,,COCA-COLA BOTTLING COMPANY CONSOLIDATED,2017-03-17,2017-03-17,FOOD & BEVERAGE,171.5,2017
,2017 OFFICE OF THE SPEAKER,2017Q2,GENERAL EXPENDITURES,SUPPLIES AND MATERIALS,4/3/17,AP,E0501790,,EASBY-SMITH ANNE S.,2017-03-22,2017-03-22,FOOD & BEVERAGE,250.53,2017
,2017 OFFICE OF THE SPEAKER,2017Q2,GENERAL EXPENDITURES,SUPPLIES AND MATERIALS,4/7/17,AP,E0503416,,FIRST CHOICE COFFEE SERVICES,2017-03-31,2017-03-31,FOOD & BEVERAGE,1276.84,2017
,2017 OFFICE OF THE SPEAKER,2017Q2,GENERAL EXPENDITURES,SUPPLIES AND MATERIALS,4/7/17,AP,E0503417,,FIRST CHOICE COFFEE SERVICES,2017-03-16,2017-03-16,FOOD & BEVERAGE,1470.59,2017
,2017 OFFICE OF THE SPEAKER,2017Q2,GENERAL EXPENDITURES,SUPPLIES AND MATERIALS,4/11/17,AP,E0504620,,VREEBURG JACOBUS A.,2017-03-30,2017-03-30,FOOD & BEVERAGE,281.29,2017
,2017 OFFICE OF THE SPEAKER,2017Q2,GENERAL EXPENDITURES,SUPPLIES AND MATERIALS,4/14/17,AP,E0506072,,FIRST CHOICE COFFEE SERVICES,2017-04-10,2017-04-10,FOOD & BEVERAGE,1328.37,2017
,2017 OFFICE OF THE SPEAKER,2017Q2,GENERAL EXPENDITURES,SUPPLIES AND MATERIALS,4/14/17,AP,E0506073,,FIRST CHOICE COFFEE SERVICES,2017-04-10,2017-04-10,FOOD & BEVERAGE,281.6,2017
,2017 OFFICE OF THE SPEAKER,2017Q2,GENERAL EXPENDITURES,SUPPLIES AND MATERIALS,4/14/17,AP,E0506074,,FIRST CHOICE COFFEE SERVICES,2017-04-10,2017-04-10,FOOD & BEVERAGE,622.47,2017
,2017 OFFICE OF THE SPEAKER,2017Q2,GENERAL EXPENDITURES,SUPPLIES AND MATERIALS,4/14/17,AP,E0506075,,FIRST CHOICE COFFEE SERVICES,2017-04-10,2017-04-10,FOOD & BEVERAGE,689,2017
,2017 OFFICE OF THE SPEAKER,2017Q2,GENERAL EXPENDITURES,SUPPLIES AND MATERIALS,4/14/17,AP,E0506076,,FIRST CHOICE COFFEE SERVICES,2017-04-10,2017-04-10,FOOD & BEVERAGE,1118.41,2017
,2017 OFFICE OF THE SPEAKER,2017Q2,GENERAL EXPENDITURES,SUPPLIES AND MATERIALS,4/14/17,AP,E0506077,,FIRST CHOICE COFFEE SERVICES,2017-04-10,2017-04-10,FOOD & BEVERAGE,447.92,2017
,2017 OFFICE OF THE SPEAKER,2017Q2,GENERAL EXPENDITURES,SUPPLIES AND MATERIALS,4/14/17,AP,E0506078,,COCA-COLA BOTTLING COMPANY CONSOLIDATED,2017-04-07,2017-04-07,FOOD & BEVERAGE,61.25,2017
,2017 OFFICE OF THE SPEAKER,2017Q2,GENERAL EXPENDITURES,SUPPLIES AND MATERIALS,4/14/17,AP,E0506079,,FIRST CHOICE COFFEE SERVICES,2017-04-04,2017-04-04,FOOD & BEVERAGE,297.52,2017
,2017 OFFICE OF THE SPEAKER,2017Q2,GENERAL EXPENDITURES,SUPPLIES AND MATERIALS,4/14/17,AP,E0506080,,FIRST CHOICE COFFEE SERVICES,2017-04-10,2017-04-10,FOOD & BEVERAGE,581.29,2017
,2017 OFFICE OF THE SPEAKER,2017Q2,GENERAL EXPENDITURES,SUPPLIES AND MATERIALS,4/17/17,AP,E0506026,,DESIGN CUISINE,2017-03-22,2017-03-22,FOOD & BEVERAGE,10165,2017
,2017 OFFICE OF THE SPEAKER,2017Q2,GENERAL EXPENDITURES,SUPPLIES AND MATERIALS,4/19/17,AP,917820,,CITI PCARD-BOB EVANS REST,2017-03-01,2017-03-28,FOOD & BEVERAGE,1546.34,2017
,2017 OFFICE OF THE SPEAKER,2017Q2,GENERAL EXPENDITURES,SUPPLIES AND MATERIALS,4/19/17,AP,917820,,CITI PCARD-CAFE RIO FALLS CHURCH,2017-03-01,2017-03-28,FOOD & BEVERAGE,293.97,2017
,2017 OFFICE OF THE SPEAKER,2017Q2,GENERAL EXPENDITURES,SUPPLIES AND MATERIALS,4/19/17,AP,917820,,CITI PCARD-CHICK-FIL-A,2017-03-01,2017-03-28,FOOD & BEVERAGE,1320,2017
,2017 OFFICE OF THE SPEAKER,2017Q2,GENERAL EXPENDITURES,SUPPLIES AND MATERIALS,4/19/17,AP,917820,,CITI PCARD-CHIPOTLE ONLINE,2017-03-01,2017-03-28,FOOD & BEVERAGE,924,2017
,2017 OFFICE OF THE SPEAKER,2017Q2,GENERAL EXPENDITURES,SUPPLIES AND MATERIALS,4/19/17,AP,917820,,CITI PCARD-CORNER BAKERY,2017-03-01,2017-03-28,FOOD & BEVERAGE,839.5,2017
,2017 OFFICE OF THE SPEAKER,2017Q2,GENERAL EXPENDITURES,SUPPLIES AND MATERIALS,4/19/17,AP,917820,,CITI PCARD-D J WALL-ST-JOURNAL,2017-03-01,2017-03-28,PUBLICATIONS/REFERENCE MAT'L,367.88,2017
,2017 OFFICE OF THE SPEAKER,2017Q2,GENERAL EXPENDITURES,SUPPLIES AND MATERIALS,4/19/17,AP,917820,,CITI PCARD-DT,2017-03-01,2017-03-28,FOOD & BEVERAGE,350.46,2017
,2017 OFFICE OF THE SPEAKER,2017Q2,GENERAL EXPENDITURES,SUPPLIES AND MATERIALS,4/19/17,AP,917820,,CITI PCARD-NANDOS OF THE YARDS,2017-03-01,2017-03-28,FOOD & BEVERAGE,373.73,2017
,2017 OFFICE OF THE SPEAKER,2017Q2,GENERAL EXPENDITURES,SUPPLIES AND MATERIALS,4/19/17,AP,917820,,CITI PCARD-PRET A MANGER,2017-03-01,2017-03-28,FOOD & BEVERAGE,105.92,2017
,2017 OFFICE OF THE SPEAKER,2017Q2,GENERAL EXPENDITURES,SUPPLIES AND MATERIALS,4/19/17,AP,917820,,CITI PCARD-TALAY THAI RESTAURANT,2017-03-01,2017-03-28,FOOD & BEVERAGE,177.27,2017
,2017 OFFICE OF THE SPEAKER,2017Q2,GENERAL EXPENDITURES,SUPPLIES AND MATERIALS,4/21/17,AP,E0508250,,FIRST CHOICE COFFEE SERVICES,2017-04-14,2017-04-14,FOOD & BEVERAGE,965.84,2017
,2017 OFFICE OF THE SPEAKER,2017Q2,GENERAL EXPENDITURES,SUPPLIES AND MATERIALS,4/25/17,AP,E0509980,,FIRST CHOICE COFFEE SERVICES,2017-04-18,2017-04-18,FOOD & BEVERAGE,163.45,2017
,2017 OFFICE OF THE SPEAKER,2017Q2,GENERAL EXPENDITURES,SUPPLIES AND MATERIALS,5/8/17,AP,E0512836,,COCA-COLA BOTTLING COMPANY CONSOLIDATED,2017-04-28,2017-04-28,FOOD & BEVERAGE,122.5,2017
,2017 OFFICE OF THE SPEAKER,2017Q2,GENERAL EXPENDITURES,SUPPLIES AND MATERIALS,5/8/17,AP,E0512839,,FIRST CHOICE COFFEE SERVICES,2017-04-25,2017-04-25,FOOD & BEVERAGE,242.72,2017
,2017 OFFICE OF THE SPEAKER,2017Q2,GENERAL EXPENDITURES,SUPPLIES AND MATERIALS,5/12/17,AP,E0513882,,FIRST CHOICE COFFEE SERVICES,2017-05-04,2017-05-04,FOOD & BEVERAGE,881.26,2017
,2017 OFFICE OF THE SPEAKER,2017Q2,GENERAL EXPENDITURES,SUPPLIES AND MATERIALS,5/12/17,AP,E0513928,,VREEBURG JACOBUS A.,2017-04-26,2017-04-26,WATER,3.99,2017
,2017 OFFICE OF THE SPEAKER,2017Q2,GENERAL EXPENDITURES,SUPPLIES AND MATERIALS,5/12/17,AP,E0513928,,VREEBURG JACOBUS A.,2017-05-01,2017-05-01,FOOD & BEVERAGE,246.18,2017
,2017 OFFICE OF THE SPEAKER,2017Q2,GENERAL EXPENDITURES,SUPPLIES AND MATERIALS,5/19/17,AP,923551,,CITI PCARD-CAFE RIO FALLS CHURCH,2017-03-29,2017-04-28,FOOD & BEVERAGE,302.17,2017
,2017 OFFICE OF THE SPEAKER,2017Q2,GENERAL EXPENDITURES,SUPPLIES AND MATERIALS,5/19/17,AP,923551,,CITI PCARD-DT,2017-03-29,2017-04-28,FOOD & BEVERAGE,555.66,2017
,2017 OFFICE OF THE SPEAKER,2017Q2,GENERAL EXPENDITURES,SUPPLIES AND MATERIALS,5/19/17,AP,923551,,CITI PCARD-EINSTEIN BROS-ONLINE C,2017-03-29,2017-04-28,FOOD & BEVERAGE,89.97,2017
,2017 OFFICE OF THE SPEAKER,2017Q2,GENERAL EXPENDITURES,SUPPLIES AND MATERIALS,5/19/17,AP,923551,,CITI PCARD-PF CHANGS,2017-03-29,2017-04-28,FOOD & BEVERAGE,591.4,2017
,2017 OFFICE OF THE SPEAKER,2017Q2,GENERAL EXPENDITURES,SUPPLIES AND MATERIALS,5/19/17,AP,923551,,CITI PCARD-PRET A MANGER,2017-03-29,2017-04-28,FOOD & BEVERAGE,81.84,2017
,2017 OFFICE OF THE SPEAKER,2017Q2,GENERAL EXPENDITURES,SUPPLIES AND MATERIALS,5/19/17,AP,923551,,CITI PCARD-TAYLOR GOURMET,2017-03-29,2017-04-28,FOOD & BEVERAGE,767.23,2017
,2017 OFFICE OF THE SPEAKER,2017Q2,GENERAL EXPENDITURES,SUPPLIES AND MATERIALS,5/22/17,AP,E0517354,,FIRST CHOICE COFFEE SERVICES,2017-05-12,2017-05-12,FOOD & BEVERAGE,397.97,2017
,2017 OFFICE OF THE SPEAKER,2017Q2,GENERAL EXPENDITURES,SUPPLIES AND MATERIALS,5/30/17,AP,E0518984,,FIRST CHOICE COFFEE SERVICES,2017-05-12,2017-05-12,FOOD & BEVERAGE,75,2017
,2017 OFFICE OF THE SPEAKER,2017Q2,GENERAL EXPENDITURES,SUPPLIES AND MATERIALS,5/31/17,AP,E0519844,,EASBY-SMITH ANNE S.,2017-05-19,2017-05-19,FOOD & BEVERAGE,42.9,2017
,2017 OFFICE OF THE SPEAKER,2017Q2,GENERAL EXPENDITURES,SUPPLIES AND MATERIALS,5/31/17,AP,E0519846,,FIRST CHOICE COFFEE SERVICES,2017-05-18,2017-05-18,FOOD & BEVERAGE,691.07,2017
,2017 OFFICE OF THE SPEAKER,2017Q2,GENERAL EXPENDITURES,SUPPLIES AND MATERIALS,5/31/17,AP,E0519849,,COCA-COLA BOTTLING COMPANY CONSOLIDATED,2017-05-19,2017-05-19,FOOD & BEVERAGE,85.75,2017
,2017 OFFICE OF THE SPEAKER,2017Q2,GENERAL EXPENDITURES,SUPPLIES AND MATERIALS,6/14/17,AP,E0523615,,FIRST CHOICE COFFEE SERVICES,2017-05-25,2017-05-25,FOOD & BEVERAGE,508.01,2017
,2017 OFFICE OF THE SPEAKER,2017Q2,GENERAL EXPENDITURES,SUPPLIES AND MATERIALS,6/14/17,AP,E0524725,,FIRST CHOICE COFFEE SERVICES,2017-06-01,2017-06-01,FOOD & BEVERAGE,345.27,2017
,2017 OFFICE OF THE SPEAKER,2017Q2,GENERAL EXPENDITURES,SUPPLIES AND MATERIALS,6/19/17,AP,929152,,CITI PCARD-BUCA DI BEPPO,2017-04-29,2017-05-28,FOOD & BEVERAGE,315.35,2017
,2017 OFFICE OF THE SPEAKER,2017Q2,GENERAL EXPENDITURES,SUPPLIES AND MATERIALS,6/19/17,AP,929152,,CITI PCARD-CAFE RIO FALLS CHURCH,2017-04-29,2017-05-28,FOOD & BEVERAGE,917.75,2017
,2017 OFFICE OF THE SPEAKER,2017Q2,GENERAL EXPENDITURES,SUPPLIES AND MATERIALS,6/19/17,AP,929152,,CITI PCARD-CHICK-FIL-A,2017-04-29,2017-05-28,FOOD & BEVERAGE,1286.5,2017
,2017 OFFICE OF THE SPEAKER,2017Q2,GENERAL EXPENDITURES,SUPPLIES AND MATERIALS,6/19/17,AP,929152,,CITI PCARD-CORNER BAKERY,2017-04-29,2017-05-28,FOOD & BEVERAGE,1438.88,2017
,2017 OFFICE OF THE SPEAKER,2017Q2,GENERAL EXPENDITURES,SUPPLIES AND MATERIALS,6/19/17,AP,929152,,CITI PCARD-DT,2017-04-29,2017-05-28,FOOD & BEVERAGE,291.06,2017
,2017 OFFICE OF THE SPEAKER,2017Q2,GENERAL EXPENDITURES,SUPPLIES AND MATERIALS,6/19/17,AP,929152,,CITI PCARD-NANDOS OF THE YARDS,2017-04-29,2017-05-28,FOOD & BEVERAGE,281.66,2017
,2017 OFFICE OF THE SPEAKER,2017Q2,GENERAL EXPENDITURES,SUPPLIES AND MATERIALS,6/19/17,AP,929152,,CITI PCARD-TAYLOR GOURMET,2017-04-29,2017-05-28,FOOD & BEVERAGE,8.79,2017
,2017 OFFICE OF THE SPEAKER,2017Q2,GENERAL EXPENDITURES,SUPPLIES AND MATERIALS,6/19/17,AP,929152,,CITI PCARD-WWW COSTCO COM,2017-04-29,2017-05-28,FOOD & BEVERAGE,379.8,2017
,2017 OFFICE OF THE SPEAKER,2017Q2,GENERAL EXPENDITURES,SUPPLIES AND MATERIALS,6/20/17,AP,E0526136,,FIRST CHOICE COFFEE SERVICES,2017-06-08,2017-06-08,FOOD & BEVERAGE,277.46,2017
,2017 OFFICE OF THE SPEAKER,2017Q2,GENERAL EXPENDITURES,SUPPLIES AND MATERIALS,   ,   ,   ,,   ,   ,   ,SUPPLIES AND MATERIALS TOTALS:,37884.43,2017
,2017 OFFICE OF THE SPEAKER,2017Q2,GENERAL EXPENDITURES,SUPPLIES AND MATERIALS,   ,   ,   ,,   ,   ,   ,GENERAL EXPENDITURES TOTALS:,1484828.84,2017
,2017 OFFICE OF THE SPEAKER,2017Q2,GENERAL EXPENDITURES,SUPPLIES AND MATERIALS,   ,   ,   ,,   ,   ,   ,OFFICE TOTALS: ,1484828.84,2017
,2016 OFFICE OF THE SPEAKER,2017Q2,GENERAL EXPENDITURES,OTHER SERVICES,5/10/17,AP,919007,,KELYN TECHNOLOGIES,2017-04-05,2017-04-05,NON-TECHNOLOGY SERVICE CONTR QTY - 2,3000,2017
,2016 OFFICE OF THE SPEAKER,2017Q2,GENERAL EXPENDITURES,OTHER SERVICES,   ,   ,   ,,   ,   ,   ,OTHER SERVICES TOTALS:,3000,2016
,2016 OFFICE OF THE SPEAKER,2017Q2,GENERAL EXPENDITURES,EQUIPMENT,5/23/17,AP,923467,,DELL MARKETING LP,2017-02-16,2017-02-16,COMPUTER HARDW PURCH  LESS THAN $25 000,9709.8,2017
,2016 OFFICE OF THE SPEAKER,2017Q2,GENERAL EXPENDITURES,EQUIPMENT,   ,   ,   ,,   ,   ,   ,EQUIPMENT TOTALS:,9709.8,2016
,2016 OFFICE OF THE SPEAKER,2017Q2,GENERAL EXPENDITURES,EQUIPMENT,   ,   ,   ,,   ,   ,   ,GENERAL EXPENDITURES TOTALS:,12709.8,2016
,2016 OFFICE OF THE SPEAKER,2017Q2,GENERAL EXPENDITURES,EQUIPMENT,   ,   ,   ,,   ,   ,   ,OFFICE TOTALS: ,12709.8,2016
,2017 OFFICE OF THE MAJORITY LEADER,2017Q2,GENERAL EXPENDITURES,PERSONNEL COMPENSATION,   ,   ,   ,,BIEN CHRISTOPHER A,2017-04-01,2017-06-30,FLOOR ASSISTANT,13500,2017
,2017 OFFICE OF THE MAJORITY LEADER,2017Q2,GENERAL EXPENDITURES,PERSONNEL COMPENSATION,   ,   ,   ,,BUCHANAN NATALIE L,2017-04-01,2017-06-30,DIR OF MEMBER SERVICES,33000,2017
,2017 OFFICE OF THE MAJORITY LEADER,2017Q2,GENERAL EXPENDITURES,PERSONNEL COMPENSATION,   ,   ,   ,,CONSOLVO BRANDON S,2017-05-17,2017-06-30,SENIOR POLICY ADVISOR,15400,2017
,2017 OFFICE OF THE MAJORITY LEADER,2017Q2,GENERAL EXPENDITURES,PERSONNEL COMPENSATION,   ,   ,   ,,DIXON KELLY A.,2017-04-01,2017-06-30,DIR OF LEGISLATIVE OPERATIONS,9500.01,2017
,2017 OFFICE OF THE MAJORITY LEADER,2017Q2,GENERAL EXPENDITURES,PERSONNEL COMPENSATION,   ,   ,   ,,DRESSLER JEFFREY A,2017-02-01,2017-02-12,SENIOR POLICY ADVISOR (OTHER COMPENSATION),2391.67,2017
,2017 OFFICE OF THE MAJORITY LEADER,2017Q2,GENERAL EXPENDITURES,PERSONNEL COMPENSATION,   ,   ,   ,,DUNHAM WILL,2017-04-01,2017-06-30,POLICY DIRECTOR,39000,2017
,2017 OFFICE OF THE MAJORITY LEADER,2017Q2,GENERAL EXPENDITURES,PERSONNEL COMPENSATION,   ,   ,   ,,FLORIO JOHN A,2017-04-01,2017-06-30,DEPUTY PRESS SECRETARY,16500,2017
,2017 OFFICE OF THE MAJORITY LEADER,2017Q2,GENERAL EXPENDITURES,PERSONNEL COMPENSATION,   ,   ,   ,,GERZOF DEVIN A,2017-04-01,2017-06-30,STAFF ASSISTANT,9000,2017
,2017 OFFICE OF THE MAJORITY LEADER,2017Q2,GENERAL EXPENDITURES,PERSONNEL COMPENSATION,   ,   ,   ,,GOURDIKIAN ALEXANDRA G,2017-04-01,2017-06-30,SCHEDULER,15000,2017
,2017 OFFICE OF THE MAJORITY LEADER,2017Q2,GENERAL EXPENDITURES,PERSONNEL COMPENSATION,   ,   ,   ,,GRAFF CALEB M,2017-06-07,2017-06-30,SENIOR POLICY ADVISOR,6400,2017
,2017 OFFICE OF THE MAJORITY LEADER,2017Q2,GENERAL EXPENDITURES,PERSONNEL COMPENSATION,   ,   ,   ,,HILL PRESTON W,2017-04-01,2017-06-30,SPECIAL ASSISTANT,9000,2017
,2017 OFFICE OF THE MAJORITY LEADER,2017Q2,GENERAL EXPENDITURES,PERSONNEL COMPENSATION,   ,   ,   ,,HOWARD BENJAMIN R,2017-05-01,2017-05-10,SENIOR ADVISOR,-333.34,2017
,2017 OFFICE OF THE MAJORITY LEADER,2017Q2,GENERAL EXPENDITURES,PERSONNEL COMPENSATION,   ,   ,   ,,KARR ELIZABETH B,2017-04-01,2017-06-30,CHIEF OF STAFF,43125,2017
,2017 OFFICE OF THE MAJORITY LEADER,2017Q2,GENERAL EXPENDITURES,PERSONNEL COMPENSATION,   ,   ,   ,,KELLOGG MATTHEW B,2017-03-01,2017-03-28,SR POLICY ADVISOR  & COUNSEL (OTHER COMPENSATION),3416.67,2017
,2017 OFFICE OF THE MAJORITY LEADER,2017Q2,GENERAL EXPENDITURES,PERSONNEL COMPENSATION,   ,   ,   ,,LEGANSKI JOHN G,2017-04-01,2017-06-30,DIRECTOR OF FLOOR OPERATIONS,22500,2017
,2017 OFFICE OF THE MAJORITY LEADER,2017Q2,GENERAL EXPENDITURES,PERSONNEL COMPENSATION,   ,   ,   ,,LONG MICHAEL P,2017-04-01,2017-05-02,COMMUNICATIONS DIRECTOR,9333.33,2017
,2017 OFFICE OF THE MAJORITY LEADER,2017Q2,GENERAL EXPENDITURES,PERSONNEL COMPENSATION,   ,   ,   ,,MAHAN ROGER A,2017-04-01,2017-06-30,SENIOR POLICY ADVISOR,32250,2017
,2017 OFFICE OF THE MAJORITY LEADER,2017Q2,GENERAL EXPENDITURES,PERSONNEL COMPENSATION,   ,   ,   ,,MEYER KATHERINE R,2017-04-01,2017-06-30,SENIOR POLICY ADVISOR,33000,2017
,2017 OFFICE OF THE MAJORITY LEADER,2017Q2,GENERAL EXPENDITURES,PERSONNEL COMPENSATION,   ,   ,   ,,MIN JAMES B.,2017-04-01,2017-06-30,DEPUTY CHIEF OF STAFF/COUNSEL,33750,2017
,2017 OFFICE OF THE MAJORITY LEADER,2017Q2,GENERAL EXPENDITURES,PERSONNEL COMPENSATION,   ,   ,   ,,MURRY LUKE A,2017-03-01,2017-06-30,NATIONAL SECURITY ADVISOR,34466.67,2017
,2017 OFFICE OF THE MAJORITY LEADER,2017Q2,GENERAL EXPENDITURES,PERSONNEL COMPENSATION,   ,   ,   ,,PERRINE ERIN M,2017-05-30,2017-06-30,PRESS SECRETARY,7233.33,2017
,2017 OFFICE OF THE MAJORITY LEADER,2017Q2,GENERAL EXPENDITURES,PERSONNEL COMPENSATION,   ,   ,   ,,PETERSON SAGE E,2017-04-01,2017-04-16,SENIOR STAFF ASSISTANT,1600,2017
,2017 OFFICE OF THE MAJORITY LEADER,2017Q2,GENERAL EXPENDITURES,PERSONNEL COMPENSATION,   ,   ,   ,,PETERSON SAGE E,2017-04-01,2017-04-16,SENIOR STAFF ASSISTANT (OTHER COMPENSATION),400,2017
,2017 OFFICE OF THE MAJORITY LEADER,2017Q2,GENERAL EXPENDITURES,PERSONNEL COMPENSATION,   ,   ,   ,,PICOZZI JOSEPH S,2017-06-01,2017-06-30,STAFF ASSISTANT,2500,2017
,2017 OFFICE OF THE MAJORITY LEADER,2017Q2,GENERAL EXPENDITURES,PERSONNEL COMPENSATION,   ,   ,   ,,SPARKS MATTHEW E,2017-04-01,2017-06-30,DIRECTOR OF COMMUNICATIONS,30000,2017
,2017 OFFICE OF THE MAJORITY LEADER,2017Q2,GENERAL EXPENDITURES,PERSONNEL COMPENSATION,   ,   ,   ,,STIPICEVIC KRISTIN,2017-04-01,2017-06-30,EXECUTIVE ASSISTANT,12750,2017
,2017 OFFICE OF THE MAJORITY LEADER,2017Q2,GENERAL EXPENDITURES,PERSONNEL COMPENSATION,   ,   ,   ,,TORRES ALEC C,2017-04-01,2017-06-30,DEPUTY PRESS SECRETARY/WRITER,18000,2017
,2017 OFFICE OF THE MAJORITY LEADER,2017Q2,GENERAL EXPENDITURES,PERSONNEL COMPENSATION,   ,   ,   ,,   ,   ,   ,PERSONNEL COMPENSATION TOTALS:,452683.34,2017
,2017 OFFICE OF THE MAJORITY LEADER,2017Q2,GENERAL EXPENDITURES,RENT  COMMUNICATION  UTILITIES,4/19/17,AP,917820,,CITI PCARD-USPS PO,2017-03-01,2017-03-28,POSTAGE / COURIER / BOX RENTAL,98,2017
,2017 OFFICE OF THE MAJORITY LEADER,2017Q2,GENERAL EXPENDITURES,RENT  COMMUNICATION  UTILITIES,5/19/17,AP,923551,,CITI PCARD-USPS PO,2017-03-29,2017-04-28,POSTAGE / COURIER / BOX RENTAL,147,2017
,2017 OFFICE OF THE MAJORITY LEADER,2017Q2,GENERAL EXPENDITURES,RENT  COMMUNICATION  UTILITIES,   ,   ,   ,,   ,   ,   ,RENT  COMMUNICATION  UTILITIES TOTALS:,245,2017
,2017 OFFICE OF THE MAJORITY LEADER,2017Q2,GENERAL EXPENDITURES,OTHER SERVICES,4/27/17,AP,913368,,FIRESIDE21,2017-03-01,2017-03-31,WEB DEV HST EMAIL & RLTD SERV,585,2017
,2017 OFFICE OF THE MAJORITY LEADER,2017Q2,GENERAL EXPENDITURES,OTHER SERVICES,5/11/17,AP,919170,,FIRESIDE21,2017-04-01,2017-04-30,WEB DEV HST EMAIL & RLTD SERV,585,2017
,2017 OFFICE OF THE MAJORITY LEADER,2017Q2,GENERAL EXPENDITURES,OTHER SERVICES,6/9/17,AP,924586,,FIRESIDE21,2017-05-01,2017-05-31,WEB DEV HST EMAIL & RLTD SERV,585,2017
,2017 OFFICE OF THE MAJORITY LEADER,2017Q2,GENERAL EXPENDITURES,OTHER SERVICES,   ,   ,   ,,   ,   ,   ,OTHER SERVICES TOTALS:,1755,2017
,2017 OFFICE OF THE MAJORITY LEADER,2017Q2,GENERAL EXPENDITURES,SUPPLIES AND MATERIALS,4/10/17,AP,E0503575,,MIN JAMES B.,2017-03-31,2017-03-31,FOOD & BEVERAGE,238.41,2017
,2017 OFFICE OF THE MAJORITY LEADER,2017Q2,GENERAL EXPENDITURES,SUPPLIES AND MATERIALS,4/13/17,AP,E0505392,,READYREFRESH BY NESTLE,2017-02-27,2017-03-26,WATER,487.58,2017
,2017 OFFICE OF THE MAJORITY LEADER,2017Q2,GENERAL EXPENDITURES,SUPPLIES AND MATERIALS,4/19/17,AP,917820,,CITI PCARD-CAPITOL HOST,2017-03-01,2017-03-28,FOOD & BEVERAGE,712.5,2017
,2017 OFFICE OF THE MAJORITY LEADER,2017Q2,GENERAL EXPENDITURES,SUPPLIES AND MATERIALS,4/19/17,AP,917820,,CITI PCARD-CHICK-FIL-A,2017-03-01,2017-03-28,FOOD & BEVERAGE,329.56,2017
,2017 OFFICE OF THE MAJORITY LEADER,2017Q2,GENERAL EXPENDITURES,SUPPLIES AND MATERIALS,4/19/17,AP,917820,,CITI PCARD-D J WALL-ST-JOURNAL,2017-03-01,2017-03-28,PUBLICATIONS/REFERENCE MAT'L,30.66,2017
,2017 OFFICE OF THE MAJORITY LEADER,2017Q2,GENERAL EXPENDITURES,SUPPLIES AND MATERIALS,4/19/17,AP,917820,,CITI PCARD-FIRST CHOICE COFFEE SE,2017-03-01,2017-03-28,FOOD & BEVERAGE,910.34,2017
,2017 OFFICE OF THE MAJORITY LEADER,2017Q2,GENERAL EXPENDITURES,SUPPLIES AND MATERIALS,4/19/17,AP,917820,,CITI PCARD-FTP FINANCIAL TIMES,2017-03-01,2017-03-28,PUBLICATIONS/REFERENCE MAT'L,56.5,2017
,2017 OFFICE OF THE MAJORITY LEADER,2017Q2,GENERAL EXPENDITURES,SUPPLIES AND MATERIALS,4/19/17,AP,917820,,CITI PCARD-HARRIS TEETER,2017-03-01,2017-03-28,FOOD & BEVERAGE,4.49,2017
,2017 OFFICE OF THE MAJORITY LEADER,2017Q2,GENERAL EXPENDITURES,SUPPLIES AND MATERIALS,4/19/17,AP,917820,,CITI PCARD-LA TIMES SUBSCRIPTION,2017-03-01,2017-03-28,PUBLICATIONS/REFERENCE MAT'L,15.96,2017
,2017 OFFICE OF THE MAJORITY LEADER,2017Q2,GENERAL EXPENDITURES,SUPPLIES AND MATERIALS,4/19/17,AP,917820,,CITI PCARD-NEW YORK TIMES DIGITAL,2017-03-01,2017-03-28,PUBLICATIONS/REFERENCE MAT'L,37.01,2017
,2017 OFFICE OF THE MAJORITY LEADER,2017Q2,GENERAL EXPENDITURES,SUPPLIES AND MATERIALS,4/19/17,AP,917820,,CITI PCARD-SAFEWAY  STORE,2017-03-01,2017-03-28,FOOD & BEVERAGE,40.07,2017
,2017 OFFICE OF THE MAJORITY LEADER,2017Q2,GENERAL EXPENDITURES,SUPPLIES AND MATERIALS,4/19/17,AP,917820,,CITI PCARD-THE INFORMATION,2017-03-01,2017-03-28,PUBLICATIONS/REFERENCE MAT'L,39,2017
,2017 OFFICE OF THE MAJORITY LEADER,2017Q2,GENERAL EXPENDITURES,SUPPLIES AND MATERIALS,4/27/17,AP,918003,,DEER PARK,2017-03-31,2017-03-31,WATER,217.71,2017
,2017 OFFICE OF THE MAJORITY LEADER,2017Q2,GENERAL EXPENDITURES,SUPPLIES AND MATERIALS,5/8/17,AP,E0512832,,DIXON KELLY A.,2017-04-26,2017-04-26,FOOD & BEVERAGE,47.67,2017
,2017 OFFICE OF THE MAJORITY LEADER,2017Q2,GENERAL EXPENDITURES,SUPPLIES AND MATERIALS,5/15/17,AP,E0515202,,MIN JAMES B.,2017-05-09,2017-05-09,FOOD & BEVERAGE,250.35,2017
,2017 OFFICE OF THE MAJORITY LEADER,2017Q2,GENERAL EXPENDITURES,SUPPLIES AND MATERIALS,5/16/17,AP,E0515936,,READYREFRESH BY NESTLE,2017-03-27,2017-04-26,WATER,341.46,2017
,2017 OFFICE OF THE MAJORITY LEADER,2017Q2,GENERAL EXPENDITURES,SUPPLIES AND MATERIALS,5/19/17,AP,923551,,CITI PCARD-CHICK-FIL-A,2017-03-29,2017-04-28,FOOD & BEVERAGE,329.56,2017
,2017 OFFICE OF THE MAJORITY LEADER,2017Q2,GENERAL EXPENDITURES,SUPPLIES AND MATERIALS,5/19/17,AP,923551,,CITI PCARD-CORNER BAKERY,2017-03-29,2017-04-28,FOOD & BEVERAGE,341,2017
,2017 OFFICE OF THE MAJORITY LEADER,2017Q2,GENERAL EXPENDITURES,SUPPLIES AND MATERIALS,5/19/17,AP,923551,,CITI PCARD-D J WALL-ST-JOURNAL,2017-03-29,2017-04-28,PUBLICATIONS/REFERENCE MAT'L,34.89,2017
,2017 OFFICE OF THE MAJORITY LEADER,2017Q2,GENERAL EXPENDITURES,SUPPLIES AND MATERIALS,5/19/17,AP,923551,,CITI PCARD-FIRST CHOICE COFFEE SE,2017-03-29,2017-04-28,FOOD & BEVERAGE,717.15,2017
,2017 OFFICE OF THE MAJORITY LEADER,2017Q2,GENERAL EXPENDITURES,SUPPLIES AND MATERIALS,5/19/17,AP,923551,,CITI PCARD-FTP FINANCIAL TIMES,2017-03-29,2017-04-28,PUBLICATIONS/REFERENCE MAT'L,56.5,2017
,2017 OFFICE OF THE MAJORITY LEADER,2017Q2,GENERAL EXPENDITURES,SUPPLIES AND MATERIALS,5/19/17,AP,923551,,CITI PCARD-LA TIMES SUBSCRIPTION,2017-03-29,2017-04-28,PUBLICATIONS/REFERENCE MAT'L,15.96,2017
,2017 OFFICE OF THE MAJORITY LEADER,2017Q2,GENERAL EXPENDITURES,SUPPLIES AND MATERIALS,5/19/17,AP,923551,,CITI PCARD-NEW YORK TIMES DIGITAL,2017-03-29,2017-04-28,PUBLICATIONS/REFERENCE MAT'L,37.01,2017
,2017 OFFICE OF THE MAJORITY LEADER,2017Q2,GENERAL EXPENDITURES,SUPPLIES AND MATERIALS,5/19/17,AP,923551,,CITI PCARD-TAYLOR GOURMET,2017-03-29,2017-04-28,FOOD & BEVERAGE,500.42,2017
,2017 OFFICE OF THE MAJORITY LEADER,2017Q2,GENERAL EXPENDITURES,SUPPLIES AND MATERIALS,5/19/17,AP,923551,,CITI PCARD-THE INFORMATION,2017-03-29,2017-04-28,PUBLICATIONS/REFERENCE MAT'L,39,2017
,2017 OFFICE OF THE MAJORITY LEADER,2017Q2,GENERAL EXPENDITURES,SUPPLIES AND MATERIALS,5/23/17,AP,923537,,DEER PARK,2017-04-30,2017-04-30,WATER,202.71,2017
,2017 OFFICE OF THE MAJORITY LEADER,2017Q2,GENERAL EXPENDITURES,SUPPLIES AND MATERIALS,6/15/17,AP,E0524705,,READYREFRESH BY NESTLE,2017-04-27,2017-05-26,WATER,726.38,2017
,2017 OFFICE OF THE MAJORITY LEADER,2017Q2,GENERAL EXPENDITURES,SUPPLIES AND MATERIALS,6/19/17,AP,929152,,CITI PCARD-AMERICANAFFAIRSFOUN AM,2017-04-29,2017-05-28,PUBLICATIONS/REFERENCE MAT'L,30,2017
,2017 OFFICE OF THE MAJORITY LEADER,2017Q2,GENERAL EXPENDITURES,SUPPLIES AND MATERIALS,6/19/17,AP,929152,,CITI PCARD-CHICK-FIL-A,2017-04-29,2017-05-28,FOOD & BEVERAGE,329.56,2017
,2017 OFFICE OF THE MAJORITY LEADER,2017Q2,GENERAL EXPENDITURES,SUPPLIES AND MATERIALS,6/19/17,AP,929152,,CITI PCARD-D J WALL-ST-JOURNAL,2017-04-29,2017-05-28,PUBLICATIONS/REFERENCE MAT'L,34.89,2017
,2017 OFFICE OF THE MAJORITY LEADER,2017Q2,GENERAL EXPENDITURES,SUPPLIES AND MATERIALS,6/19/17,AP,929152,,CITI PCARD-FIRST CHOICE COFFEE SE,2017-04-29,2017-05-28,FOOD & BEVERAGE,531.88,2017
,2017 OFFICE OF THE MAJORITY LEADER,2017Q2,GENERAL EXPENDITURES,SUPPLIES AND MATERIALS,6/19/17,AP,929152,,CITI PCARD-FTP FINANCIAL TIMES,2017-04-29,2017-05-28,PUBLICATIONS/REFERENCE MAT'L,56.5,2017
,2017 OFFICE OF THE MAJORITY LEADER,2017Q2,GENERAL EXPENDITURES,SUPPLIES AND MATERIALS,6/19/17,AP,929152,,CITI PCARD-LA TIMES SUBSCRIPTION,2017-04-29,2017-05-28,PUBLICATIONS/REFERENCE MAT'L,15.96,2017
,2017 OFFICE OF THE MAJORITY LEADER,2017Q2,GENERAL EXPENDITURES,SUPPLIES AND MATERIALS,6/19/17,AP,929152,,CITI PCARD-NATIONAL AFFAIRS INC,2017-04-29,2017-05-28,PUBLICATIONS/REFERENCE MAT'L,27.99,2017
,2017 OFFICE OF THE MAJORITY LEADER,2017Q2,GENERAL EXPENDITURES,SUPPLIES AND MATERIALS,6/19/17,AP,929152,,CITI PCARD-NEW YORK TIMES DIGITAL,2017-04-29,2017-05-28,PUBLICATIONS/REFERENCE MAT'L,37.01,2017
,2017 OFFICE OF THE MAJORITY LEADER,2017Q2,GENERAL EXPENDITURES,SUPPLIES AND MATERIALS,6/19/17,AP,929152,,CITI PCARD-THE AMERICAN INTEREST,2017-04-29,2017-05-28,PUBLICATIONS/REFERENCE MAT'L,5.98,2017
,2017 OFFICE OF THE MAJORITY LEADER,2017Q2,GENERAL EXPENDITURES,SUPPLIES AND MATERIALS,6/19/17,AP,929152,,CITI PCARD-THE INFORMATION,2017-04-29,2017-05-28,PUBLICATIONS/REFERENCE MAT'L,39,2017
,2017 OFFICE OF THE MAJORITY LEADER,2017Q2,GENERAL EXPENDITURES,SUPPLIES AND MATERIALS,6/29/17,AP,929617,,DEER PARK,2017-05-31,2017-05-31,WATER,202.71,2017
,2017 OFFICE OF THE MAJORITY LEADER,2017Q2,GENERAL EXPENDITURES,SUPPLIES AND MATERIALS,   ,   ,   ,,   ,   ,   ,SUPPLIES AND MATERIALS TOTALS:,8071.33,2017
,2017 OFFICE OF THE MAJORITY LEADER,2017Q2,GENERAL EXPENDITURES,SUPPLIES AND MATERIALS,   ,   ,   ,,   ,   ,   ,GENERAL EXPENDITURES TOTALS:,462754.67,2017
,2017 OFFICE OF THE MAJORITY LEADER,2017Q2,GENERAL EXPENDITURES,SUPPLIES AND MATERIALS,   ,   ,   ,,   ,   ,   ,OFFICE TOTALS: ,462754.67,2017
,2016 OFFICE OF THE MAJORITY LEADER,2017Q2,GENERAL EXPENDITURES,SUPPLIES AND MATERIALS,4/10/17,AP,E0503573,,TVEYES INC,2017-01-01,2018-12-31,PUBLICATIONS/REFERENCE MAT'L,2400,2017
,2016 OFFICE OF THE MAJORITY LEADER,2017Q2,GENERAL EXPENDITURES,SUPPLIES AND MATERIALS,   ,   ,   ,,   ,   ,   ,SUPPLIES AND MATERIALS TOTALS:,2400,2016
,2016 OFFICE OF THE MAJORITY LEADER,2017Q2,GENERAL EXPENDITURES,SUPPLIES AND MATERIALS,   ,   ,   ,,   ,   ,   ,GENERAL EXPENDITURES TOTALS:,2400,2016
,2016 OFFICE OF THE MAJORITY LEADER,2017Q2,GENERAL EXPENDITURES,SUPPLIES AND MATERIALS,   ,   ,   ,,   ,   ,   ,OFFICE TOTALS: ,2400,2016
,2017 OFFICE OF THE MINORITY LEADER,2017Q2,OFFICIAL EXPENSES - LEADERSHIP,SUPPLIES AND MATERIALS,6/19/17,AP,929152,,CITI PCARD-CATERING AUBONPAIN,2017-04-29,2017-05-28,FOOD & BEVERAGE,591.25,2017
,2017 OFFICE OF THE MINORITY LEADER,2017Q2,OFFICIAL EXPENSES - LEADERSHIP,SUPPLIES AND MATERIALS,6/19/17,AP,929152,,CITI PCARD-DC KYOTO SUSHI,2017-04-29,2017-05-28,FOOD & BEVERAGE,124.73,2017
,2017 OFFICE OF THE MINORITY LEADER,2017Q2,OFFICIAL EXPENSES - LEADERSHIP,SUPPLIES AND MATERIALS,6/19/17,AP,929152,,CITI PCARD-FIREHOOK,2017-04-29,2017-05-28,FOOD & BEVERAGE,80.28,2017
,2017 OFFICE OF THE MINORITY LEADER,2017Q2,OFFICIAL EXPENSES - LEADERSHIP,SUPPLIES AND MATERIALS,6/19/17,AP,929152,,CITI PCARD-TARGET,2017-04-29,2017-05-28,FOOD & BEVERAGE,170.16,2017
,2017 OFFICE OF THE MINORITY LEADER,2017Q2,OFFICIAL EXPENSES - LEADERSHIP,SUPPLIES AND MATERIALS,6/19/17,AP,929152,,CITI PCARD-USHR LONGWORTH FOOD CT,2017-04-29,2017-05-28,FOOD & BEVERAGE,38,2017
,2017 OFFICE OF THE MINORITY LEADER,2017Q2,OFFICIAL EXPENSES - LEADERSHIP,SUPPLIES AND MATERIALS,   ,   ,   ,,   ,   ,   ,SUPPLIES AND MATERIALS TOTALS:,1004.42,2017
,2017 OFFICE OF THE MINORITY LEADER,2017Q2,OFFICIAL EXPENSES - LEADERSHIP,SUPPLIES AND MATERIALS,   ,   ,   ,,   ,   ,   ,OFFICIAL EXPENSES - LEADERSHIP TOTALS:,1004.42,2017
,2017 OFFICE OF THE MINORITY LEADER,2017Q2,GENERAL EXPENDITURES,PERSONNEL COMPENSATION,   ,   ,   ,,AGUILAR JORGE A,2017-04-01,2017-04-23,PRESS SEC/DIR HISPANIC MEDIA,4791.67,2017
,2017 OFFICE OF THE MINORITY LEADER,2017Q2,GENERAL EXPENDITURES,PERSONNEL COMPENSATION,   ,   ,   ,,AGUILAR JORGE A,2017-05-01,2017-05-12,DIRECTOR OF CONSTITUENT SVCS (OTHER COMPENSATION),6250,2017
,2017 OFFICE OF THE MINORITY LEADER,2017Q2,GENERAL EXPENDITURES,PERSONNEL COMPENSATION,   ,   ,   ,,AGUILAR JORGE A,2017-04-01,2017-04-23,PRESS SEC/DIR HISPANIC MEDIA (OTHER COMPENSATION),6250,2017
,2017 OFFICE OF THE MINORITY LEADER,2017Q2,GENERAL EXPENDITURES,PERSONNEL COMPENSATION,   ,   ,   ,,AGUILAR JORGE A,2017-05-01,2017-05-12,DIRECTOR OF CONSTITUENT SVCS (OTHER COMPENSATION),-6250,2017
,2017 OFFICE OF THE MINORITY LEADER,2017Q2,GENERAL EXPENDITURES,PERSONNEL COMPENSATION,   ,   ,   ,,ANDROFF BLAKE J,2017-04-01,2017-06-30,EXC DIR DEM POL & COMM CMTE,41250,2017
,2017 OFFICE OF THE MINORITY LEADER,2017Q2,GENERAL EXPENDITURES,PERSONNEL COMPENSATION,   ,   ,   ,,BEHRINGER CAROLINE,2017-04-01,2017-06-30,DEPUTY COMMUNICATIONS DIRECTOR,32499.99,2017
,2017 OFFICE OF THE MINORITY LEADER,2017Q2,GENERAL EXPENDITURES,PERSONNEL COMPENSATION,   ,   ,   ,,BERRET EMILY C,2017-04-01,2017-06-30,SPECIAL ASST TO THE LEADER,17499.99,2017
,2017 OFFICE OF THE MINORITY LEADER,2017Q2,GENERAL EXPENDITURES,PERSONNEL COMPENSATION,   ,   ,   ,,CAPRON MARGARET W.,2017-04-01,2017-06-30,SENIOR ADV POLICY & COMM,33174.24,2017
,2017 OFFICE OF THE MINORITY LEADER,2017Q2,GENERAL EXPENDITURES,PERSONNEL COMPENSATION,   ,   ,   ,,CAYEA DEVAN W,2017-04-01,2017-05-12,DEPUTY DIRECTOR OF ADVANCE,7583.34,2017
,2017 OFFICE OF THE MINORITY LEADER,2017Q2,GENERAL EXPENDITURES,PERSONNEL COMPENSATION,   ,   ,   ,,CAYEA DEVAN W,2017-05-01,2017-05-12,DEPUTY DIRECTOR OF ADVANCE (OTHER COMPENSATION),5416.67,2017
,2017 OFFICE OF THE MINORITY LEADER,2017Q2,GENERAL EXPENDITURES,PERSONNEL COMPENSATION,   ,   ,   ,,CHERRY STEPHANIE,2017-04-01,2017-06-30,DIRECTOR OF MEDIA AFFAIRS,17962.26,2017
,2017 OFFICE OF THE MINORITY LEADER,2017Q2,GENERAL EXPENDITURES,PERSONNEL COMPENSATION,   ,   ,   ,,CONNELLY HENRY V,2017-04-01,2017-06-30,DIRECTOR OF SPEECHWRITING,23749.99,2017
,2017 OFFICE OF THE MINORITY LEADER,2017Q2,GENERAL EXPENDITURES,PERSONNEL COMPENSATION,   ,   ,   ,,DEGRAFF KENNETH B.,2017-04-01,2017-06-30,SENIOR POLICY ADVISOR,28749.99,2017
,2017 OFFICE OF THE MINORITY LEADER,2017Q2,GENERAL EXPENDITURES,PERSONNEL COMPENSATION,   ,   ,   ,,DEVLIN PATRICK J.,2017-04-01,2017-06-30,COMMUNICATIONS DIRECTOR,31250.01,2017
,2017 OFFICE OF THE MINORITY LEADER,2017Q2,GENERAL EXPENDITURES,PERSONNEL COMPENSATION,   ,   ,   ,,DEWHIRST DIANE,2017-04-01,2017-06-30,DEPUTY CHIEF OF STAFF,43125,2017
,2017 OFFICE OF THE MINORITY LEADER,2017Q2,GENERAL EXPENDITURES,PERSONNEL COMPENSATION,   ,   ,   ,,EDMONSON ROBERT D,2017-04-01,2017-06-30,CHIEF OF STAFF,17499.99,2017
,2017 OFFICE OF THE MINORITY LEADER,2017Q2,GENERAL EXPENDITURES,PERSONNEL COMPENSATION,   ,   ,   ,,ELSHAMI NADEAM,2017-04-01,2017-06-30,CHIEF OF STAFF,43125,2017
,2017 OFFICE OF THE MINORITY LEADER,2017Q2,GENERAL EXPENDITURES,PERSONNEL COMPENSATION,   ,   ,   ,,ETIENNE ASHLEY D,2017-04-01,2017-06-30,COMM DIR/SENIOR ADVISOR,41250,2017
,2017 OFFICE OF THE MINORITY LEADER,2017Q2,GENERAL EXPENDITURES,PERSONNEL COMPENSATION,   ,   ,   ,,FISCHER JR ROBERT V.,2017-04-01,2017-06-30,ASST FLOOR CHIEF,43125,2017
,2017 OFFICE OF THE MINORITY LEADER,2017Q2,GENERAL EXPENDITURES,PERSONNEL COMPENSATION,   ,   ,   ,,GIBSON DYLAN B,2017-04-01,2017-04-30,DIGITAL MANAGER,3333.33,2017
,2017 OFFICE OF THE MINORITY LEADER,2017Q2,GENERAL EXPENDITURES,PERSONNEL COMPENSATION,   ,   ,   ,,GIBSON DYLAN B,2017-05-01,2017-06-30,DIGITAL DIRECTOR,10833.34,2017
,2017 OFFICE OF THE MINORITY LEADER,2017Q2,GENERAL EXPENDITURES,PERSONNEL COMPENSATION,   ,   ,   ,,GIBSON DYLAN B,2017-03-01,2017-04-30,DIGITAL MANAGER (OVERTIME),3742.75,2017
,2017 OFFICE OF THE MINORITY LEADER,2017Q2,GENERAL EXPENDITURES,PERSONNEL COMPENSATION,   ,   ,   ,,GREENER APRIL L.,2017-04-01,2017-06-30,RESEARCH DIRECTOR,26250,2017
,2017 OFFICE OF THE MINORITY LEADER,2017Q2,GENERAL EXPENDITURES,PERSONNEL COMPENSATION,   ,   ,   ,,GRIFFIN TAYLOR T,2017-04-01,2017-04-30,DEPUTY PRESS SECRETARY,4208.33,2017
,2017 OFFICE OF THE MINORITY LEADER,2017Q2,GENERAL EXPENDITURES,PERSONNEL COMPENSATION,   ,   ,   ,,GRIFFIN TAYLOR T,2017-05-01,2017-06-30,PRESS SECRETARY,12500,2017
,2017 OFFICE OF THE MINORITY LEADER,2017Q2,GENERAL EXPENDITURES,PERSONNEL COMPENSATION,   ,   ,   ,,HAMMILL ANDREW T.,2017-04-01,2017-06-30,DEPUTY CHIEF OF STAFF,43125,2017
,2017 OFFICE OF THE MINORITY LEADER,2017Q2,GENERAL EXPENDITURES,PERSONNEL COMPENSATION,   ,   ,   ,,HAYNES JR WILFRED J.,2017-04-01,2017-06-30,IT DIRECTOR,24530.49,2017
,2017 OFFICE OF THE MINORITY LEADER,2017Q2,GENERAL EXPENDITURES,PERSONNEL COMPENSATION,   ,   ,   ,,HIDALGO ADRIANA N,2017-06-05,2017-06-30,SHARED EMPLOYEE,1444.44,2017
,2017 OFFICE OF THE MINORITY LEADER,2017Q2,GENERAL EXPENDITURES,PERSONNEL COMPENSATION,   ,   ,   ,,HOLMES NATHANIEL J,2017-04-01,2017-06-30,DEPUTY DIRECTOR OF SCHEDULING,14124.99,2017
,2017 OFFICE OF THE MINORITY LEADER,2017Q2,GENERAL EXPENDITURES,PERSONNEL COMPENSATION,   ,   ,   ,,KAPLAN EMMA L,2017-04-01,2017-06-16,MBR SERV ADVISER/SPECIAL ASST,13827.77,2017
,2017 OFFICE OF THE MINORITY LEADER,2017Q2,GENERAL EXPENDITURES,PERSONNEL COMPENSATION,   ,   ,   ,,KAPLAN EMMA L,2017-06-01,2017-06-16,MBR SERV ADVISER/SPECIAL ASST (OTHER COMPENSATION),5458.33,2017
,2017 OFFICE OF THE MINORITY LEADER,2017Q2,GENERAL EXPENDITURES,PERSONNEL COMPENSATION,   ,   ,   ,,KEATING ROSE M,2017-04-01,2017-06-30,ASST FLOOR MANAGER,31250.01,2017
,2017 OFFICE OF THE MINORITY LEADER,2017Q2,GENERAL EXPENDITURES,PERSONNEL COMPENSATION,   ,   ,   ,,KEITA KAMILAH Z,2017-04-01,2017-06-30,DEPUTY INFOMATION TECH. DIRECT,22283.01,2017
,2017 OFFICE OF THE MINORITY LEADER,2017Q2,GENERAL EXPENDITURES,PERSONNEL COMPENSATION,   ,   ,   ,,KUHN ELENA M,2017-04-01,2017-04-30,PRESS ASSISTANT,2666.67,2017
,2017 OFFICE OF THE MINORITY LEADER,2017Q2,GENERAL EXPENDITURES,PERSONNEL COMPENSATION,   ,   ,   ,,KUHN ELENA M,2017-05-01,2017-06-30,SENIOR PRESS ASSISTANT,5833.34,2017
,2017 OFFICE OF THE MINORITY LEADER,2017Q2,GENERAL EXPENDITURES,PERSONNEL COMPENSATION,   ,   ,   ,,KUHN ELENA M,2017-03-01,2017-04-30,PRESS ASSISTANT (OVERTIME),3807.65,2017
,2017 OFFICE OF THE MINORITY LEADER,2017Q2,GENERAL EXPENDITURES,PERSONNEL COMPENSATION,   ,   ,   ,,KUHN ELENA M,2017-05-01,2017-05-31,SENIOR PRESS ASSISTANT (OVERTIME),2019.21,2017
,2017 OFFICE OF THE MINORITY LEADER,2017Q2,GENERAL EXPENDITURES,PERSONNEL COMPENSATION,   ,   ,   ,,KUNDANIS GEORGE,2017-04-01,2017-06-30,DEPUTY CHIEF OF STAFF,43125,2017
,2017 OFFICE OF THE MINORITY LEADER,2017Q2,GENERAL EXPENDITURES,PERSONNEL COMPENSATION,   ,   ,   ,,LA ALISA M,2017-06-19,2017-06-30,DEPUTY DIR. OF ADVANCE,2083.33,2017
,2017 OFFICE OF THE MINORITY LEADER,2017Q2,GENERAL EXPENDITURES,PERSONNEL COMPENSATION,   ,   ,   ,,LEE SERYEUNG,2017-04-01,2017-04-30,SENIOR PRESS ASSISTANT,2916.67,2017
,2017 OFFICE OF THE MINORITY LEADER,2017Q2,GENERAL EXPENDITURES,PERSONNEL COMPENSATION,   ,   ,   ,,LEE SERYEUNG,2017-05-01,2017-06-30,DEPUTY PRESS SECRETARY,8416.66,2017
,2017 OFFICE OF THE MINORITY LEADER,2017Q2,GENERAL EXPENDITURES,PERSONNEL COMPENSATION,   ,   ,   ,,LEE SERYEUNG,2017-03-01,2017-03-31,SENIOR PRESS ASSISTANT (OVERTIME),1463.93,2017
,2017 OFFICE OF THE MINORITY LEADER,2017Q2,GENERAL EXPENDITURES,PERSONNEL COMPENSATION,   ,   ,   ,,LEE SERYEUNG,2017-05-01,2017-05-31,DEPUTY PRESS SECRETARY (OVERTIME),927.57,2017
,2017 OFFICE OF THE MINORITY LEADER,2017Q2,GENERAL EXPENDITURES,PERSONNEL COMPENSATION,   ,   ,   ,,LIZARRAGA JAIME E.,2017-04-01,2017-06-30,SR ADV & DIR OF MEMBER SVC,41155.5,2017
,2017 OFFICE OF THE MINORITY LEADER,2017Q2,GENERAL EXPENDITURES,PERSONNEL COMPENSATION,   ,   ,   ,,LONG MICHAEL G,2017-04-01,2017-06-30,SENIOR ADVISOR,28749.99,2017
,2017 OFFICE OF THE MINORITY LEADER,2017Q2,GENERAL EXPENDITURES,PERSONNEL COMPENSATION,   ,   ,   ,,MANGRUM PEARL J.,2017-04-01,2017-06-30,FINANCIAL ADMINISTRATOR,21125.01,2017
,2017 OFFICE OF THE MINORITY LEADER,2017Q2,GENERAL EXPENDITURES,PERSONNEL COMPENSATION,   ,   ,   ,,MANSBACH SHANA G,2017-05-15,2017-06-30,DEPUTY DIR OF SPEECHWRITING,8305.56,2017
,2017 OFFICE OF THE MINORITY LEADER,2017Q2,GENERAL EXPENDITURES,PERSONNEL COMPENSATION,   ,   ,   ,,MASON TAMIKA K,2017-04-01,2017-06-30,SR STAFF ASST SYS ADMIN,12500.01,2017
,2017 OFFICE OF THE MINORITY LEADER,2017Q2,GENERAL EXPENDITURES,PERSONNEL COMPENSATION,   ,   ,   ,,MELTZER RICHARD,2017-04-01,2017-06-30,POLICY DIRECTOR,43125,2017
,2017 OFFICE OF THE MINORITY LEADER,2017Q2,GENERAL EXPENDITURES,PERSONNEL COMPENSATION,   ,   ,   ,,MONGE KATHERINE S,2017-04-01,2017-06-30,SENIOR POLICY ADVISOR,37500,2017
,2017 OFFICE OF THE MINORITY LEADER,2017Q2,GENERAL EXPENDITURES,PERSONNEL COMPENSATION,   ,   ,   ,,OBSCURA JULIO C,2017-06-02,2017-06-30,CREATIVE DIR/DPTY PRESS SEC,4068.06,2017
,2017 OFFICE OF THE MINORITY LEADER,2017Q2,GENERAL EXPENDITURES,PERSONNEL COMPENSATION,   ,   ,   ,,PALMER ASHLI S,2017-04-01,2017-06-30,POLICY DIRECTOR,32499.99,2017
,2017 OFFICE OF THE MINORITY LEADER,2017Q2,GENERAL EXPENDITURES,PERSONNEL COMPENSATION,   ,   ,   ,,PARKER WYNDEE R.,2017-04-01,2017-06-30,SENIOR POLICY ADVISOR,43125,2017
,2017 OFFICE OF THE MINORITY LEADER,2017Q2,GENERAL EXPENDITURES,PERSONNEL COMPENSATION,   ,   ,   ,,PFEIFFER AMY M,2017-04-01,2017-06-30,SENIOR ADVISOR,24999.99,2017
,2017 OFFICE OF THE MINORITY LEADER,2017Q2,GENERAL EXPENDITURES,PERSONNEL COMPENSATION,   ,   ,   ,,POLZIN SAVANNAH J,2017-04-01,2017-06-30,ASST TO THE EXECUTIVE OFFICE,8625,2017
,2017 OFFICE OF THE MINORITY LEADER,2017Q2,GENERAL EXPENDITURES,PERSONNEL COMPENSATION,   ,   ,   ,,POLZIN SAVANNAH J,2017-03-01,2017-05-31,ASST TO THE EXECUTIVE OFFICE (OVERTIME),4111.34,2017
,2017 OFFICE OF THE MINORITY LEADER,2017Q2,GENERAL EXPENDITURES,PERSONNEL COMPENSATION,   ,   ,   ,,POWELL LATRICE S,2017-04-01,2017-06-30,ASSISTANT CLOAKROOM MANAGER,27500.01,2017
,2017 OFFICE OF THE MINORITY LEADER,2017Q2,GENERAL EXPENDITURES,PERSONNEL COMPENSATION,   ,   ,   ,,PRICE REVA B.,2017-04-01,2017-06-30,OUTREACH DIRECTOR & ADVISOR,31924.26,2017
,2017 OFFICE OF THE MINORITY LEADER,2017Q2,GENERAL EXPENDITURES,PERSONNEL COMPENSATION,   ,   ,   ,,PRIMUS WENDELL E.,2017-04-01,2017-06-30,SENIOR POLICY ADVISOR,43125,2017
,2017 OFFICE OF THE MINORITY LEADER,2017Q2,GENERAL EXPENDITURES,PERSONNEL COMPENSATION,   ,   ,   ,,RITCHIE LAKEYA R,2017-04-10,2017-06-30,PRESS ADVISOR,13500,2017
,2017 OFFICE OF THE MINORITY LEADER,2017Q2,GENERAL EXPENDITURES,PERSONNEL COMPENSATION,   ,   ,   ,,ROBINSON MALAIKA,2017-04-01,2017-06-30,DEP DIR OF SPEECHWRITING,16250.01,2017
,2017 OFFICE OF THE MINORITY LEADER,2017Q2,GENERAL EXPENDITURES,PERSONNEL COMPENSATION,   ,   ,   ,,ROBINSON MALAIKA,2017-06-01,2017-06-30,DEP DIR OF SPEECHWRITING (OTHER COMPENSATION),5416.67,2017
,2017 OFFICE OF THE MINORITY LEADER,2017Q2,GENERAL EXPENDITURES,PERSONNEL COMPENSATION,   ,   ,   ,,ROCHELLE COURTNEY E,2017-04-01,2017-05-03,DISTRICT SCHEDULER/EXEC ASSIST,1833.34,2017
,2017 OFFICE OF THE MINORITY LEADER,2017Q2,GENERAL EXPENDITURES,PERSONNEL COMPENSATION,   ,   ,   ,,SMITH KELSEY L,2017-04-01,2017-06-30,DIR. OF SCHEDULING & ADVANCE,22500,2017
,2017 OFFICE OF THE MINORITY LEADER,2017Q2,GENERAL EXPENDITURES,PERSONNEL COMPENSATION,   ,   ,   ,,STERN KEITH L.,2017-04-01,2017-06-30,DIRECTOR OF FLOOR OPERATIONS,39999.99,2017
,2017 OFFICE OF THE MINORITY LEADER,2017Q2,GENERAL EXPENDITURES,PERSONNEL COMPENSATION,   ,   ,   ,,SURGEON BINA G,2017-04-01,2017-06-30,SPECIAL ASST TO THE LEADER,27500.01,2017
,2017 OFFICE OF THE MINORITY LEADER,2017Q2,GENERAL EXPENDITURES,PERSONNEL COMPENSATION,   ,   ,   ,,TECKLENBURG MICHAEL H.,2017-04-01,2017-06-30,COUNSEL,32499.99,2017
,2017 OFFICE OF THE MINORITY LEADER,2017Q2,GENERAL EXPENDITURES,PERSONNEL COMPENSATION,   ,   ,   ,,WATKINS YELBERTON R.,2017-04-01,2017-06-30,CHIEF OF STAFF,41250,2017
,2017 OFFICE OF THE MINORITY LEADER,2017Q2,GENERAL EXPENDITURES,PERSONNEL COMPENSATION,   ,   ,   ,,WEST JULIUS L,2017-04-01,2017-06-30,ADVISER MEMBER SERVICES,18000,2017
,2017 OFFICE OF THE MINORITY LEADER,2017Q2,GENERAL EXPENDITURES,PERSONNEL COMPENSATION,   ,   ,   ,,WILKES CHRISTINA E,2017-06-26,2017-06-30,PRESS ASSISTANT,444.44,2017
,2017 OFFICE OF THE MINORITY LEADER,2017Q2,GENERAL EXPENDITURES,PERSONNEL COMPENSATION,   ,   ,   ,,WOLTERS KATE,2017-04-01,2017-06-30,DIRECTOR OF PROTOCOL,35896.5,2017
,2017 OFFICE OF THE MINORITY LEADER,2017Q2,GENERAL EXPENDITURES,PERSONNEL COMPENSATION,   ,   ,   ,,YORK JEMMA D,2017-04-01,2017-06-30,PRESS ADVISOR,15000,2017
,2017 OFFICE OF THE MINORITY LEADER,2017Q2,GENERAL EXPENDITURES,PERSONNEL COMPENSATION,   ,   ,   ,,   ,   ,   ,PERSONNEL COMPENSATION TOTALS:,1411005.63,2017
,2017 OFFICE OF THE MINORITY LEADER,2017Q2,GENERAL EXPENDITURES,TRAVEL,4/7/17,AP,E0503365,,BERRET EMILY C.,2017-03-15,2017-03-15,TAXI/PARKING/TOLLS,28.23,2017
,2017 OFFICE OF THE MINORITY LEADER,2017Q2,GENERAL EXPENDITURES,TRAVEL,4/18/17,AP,E0507121,,POLZIN SAVANNAH J.,2017-03-28,2017-03-28,TAXI/PARKING/TOLLS,6.62,2017
,2017 OFFICE OF THE MINORITY LEADER,2017Q2,GENERAL EXPENDITURES,TRAVEL,4/18/17,AP,E0507121,,POLZIN SAVANNAH J.,2017-04-01,2017-04-01,TAXI/PARKING/TOLLS,25.42,2017
,2017 OFFICE OF THE MINORITY LEADER,2017Q2,GENERAL EXPENDITURES,TRAVEL,4/18/17,AP,E0507124,,CAYEA DEVAN W.,2017-04-01,2017-04-01,MEALS,17.23,2017
,2017 OFFICE OF THE MINORITY LEADER,2017Q2,GENERAL EXPENDITURES,TRAVEL,4/18/17,AP,E0507124,,CAYEA DEVAN W.,2017-03-28,2017-03-28,TAXI/PARKING/TOLLS,7.28,2017
,2017 OFFICE OF THE MINORITY LEADER,2017Q2,GENERAL EXPENDITURES,TRAVEL,4/18/17,AP,E0507124,,CAYEA DEVAN W.,2017-03-31,2017-03-31,TAXI/PARKING/TOLLS,20.2,2017
,2017 OFFICE OF THE MINORITY LEADER,2017Q2,GENERAL EXPENDITURES,TRAVEL,4/18/17,AP,E0507124,,CAYEA DEVAN W.,2017-04-01,2017-04-01,TAXI/PARKING/TOLLS,32.36,2017
,2017 OFFICE OF THE MINORITY LEADER,2017Q2,GENERAL EXPENDITURES,TRAVEL,4/18/17,AP,E0507124,,CAYEA DEVAN W.,2017-04-05,2017-04-05,TAXI/PARKING/TOLLS,12.88,2017
,2017 OFFICE OF THE MINORITY LEADER,2017Q2,GENERAL EXPENDITURES,TRAVEL,4/18/17,AP,E0507126,,SMITH KELSEY L.,2017-03-10,2017-03-10,MEALS,7.25,2017
,2017 OFFICE OF THE MINORITY LEADER,2017Q2,GENERAL EXPENDITURES,TRAVEL,4/18/17,AP,E0507126,,SMITH KELSEY L.,2017-03-11,2017-03-11,MEALS,9.63,2017
,2017 OFFICE OF THE MINORITY LEADER,2017Q2,GENERAL EXPENDITURES,TRAVEL,4/18/17,AP,E0507126,,SMITH KELSEY L.,2017-03-15,2017-03-15,TAXI/PARKING/TOLLS,6.79,2017
,2017 OFFICE OF THE MINORITY LEADER,2017Q2,GENERAL EXPENDITURES,TRAVEL,4/18/17,AP,E0507130,,CITIBANK GOV CARD SERVICE,2017-03-10,2017-03-13,COMMERCIAL TRANSPORTATION,782,2017
,2017 OFFICE OF THE MINORITY LEADER,2017Q2,GENERAL EXPENDITURES,TRAVEL,4/18/17,AP,E0507130,,CITIBANK GOV CARD SERVICE,2017-03-10,2017-03-11,LODGING,125.36,2017
,2017 OFFICE OF THE MINORITY LEADER,2017Q2,GENERAL EXPENDITURES,TRAVEL,4/18/17,AP,E0507130,,CITIBANK GOV CARD SERVICE,2017-03-11,2017-03-13,LODGING,558.06,2017
,2017 OFFICE OF THE MINORITY LEADER,2017Q2,GENERAL EXPENDITURES,TRAVEL,4/18/17,AP,E0507130,,CITIBANK GOV CARD SERVICE,2017-03-10,2017-03-10,MEALS,36.08,2017
,2017 OFFICE OF THE MINORITY LEADER,2017Q2,GENERAL EXPENDITURES,TRAVEL,4/18/17,AP,E0507130,,CITIBANK GOV CARD SERVICE,2017-03-12,2017-03-12,MEALS,36.61,2017
,2017 OFFICE OF THE MINORITY LEADER,2017Q2,GENERAL EXPENDITURES,TRAVEL,4/18/17,AP,E0507130,,CITIBANK GOV CARD SERVICE,2017-03-13,2017-03-13,MEALS,9.46,2017
,2017 OFFICE OF THE MINORITY LEADER,2017Q2,GENERAL EXPENDITURES,TRAVEL,4/18/17,AP,E0507130,,CITIBANK GOV CARD SERVICE,2017-03-10,2017-03-12,CAR RENTAL,393.04,2017
,2017 OFFICE OF THE MINORITY LEADER,2017Q2,GENERAL EXPENDITURES,TRAVEL,4/18/17,AP,E0507130,,CITIBANK GOV CARD SERVICE,2017-03-11,2017-03-11,GASOLINE,21.81,2017
,2017 OFFICE OF THE MINORITY LEADER,2017Q2,GENERAL EXPENDITURES,TRAVEL,4/18/17,AP,E0507130,,CITIBANK GOV CARD SERVICE,2017-03-11,2017-03-11,TAXI/PARKING/TOLLS,42.22,2017
,2017 OFFICE OF THE MINORITY LEADER,2017Q2,GENERAL EXPENDITURES,TRAVEL,4/18/17,AP,E0507133,,CITIBANK GOV CARD SERVICE,2017-03-10,2017-03-10,COMMERCIAL TRANSPORTATION,505.2,2017
,2017 OFFICE OF THE MINORITY LEADER,2017Q2,GENERAL EXPENDITURES,TRAVEL,4/18/17,AP,E0507133,,CITIBANK GOV CARD SERVICE,2017-03-11,2017-03-11,COMMERCIAL TRANSPORTATION,512.4,2017
,2017 OFFICE OF THE MINORITY LEADER,2017Q2,GENERAL EXPENDITURES,TRAVEL,4/18/17,AP,E0507133,,CITIBANK GOV CARD SERVICE,2017-03-12,2017-03-12,COMMERCIAL TRANSPORTATION,177.2,2017
,2017 OFFICE OF THE MINORITY LEADER,2017Q2,GENERAL EXPENDITURES,TRAVEL,4/18/17,AP,E0507133,,CITIBANK GOV CARD SERVICE,2017-03-13,2017-03-13,COMMERCIAL TRANSPORTATION,313.2,2017
,2017 OFFICE OF THE MINORITY LEADER,2017Q2,GENERAL EXPENDITURES,TRAVEL,4/18/17,AP,E0507133,,CITIBANK GOV CARD SERVICE,2017-03-10,2017-03-12,LODGING,606.06,2017
,2017 OFFICE OF THE MINORITY LEADER,2017Q2,GENERAL EXPENDITURES,TRAVEL,4/18/17,AP,E0507133,,CITIBANK GOV CARD SERVICE,2017-03-10,2017-03-11,MEALS,69.67,2017
,2017 OFFICE OF THE MINORITY LEADER,2017Q2,GENERAL EXPENDITURES,TRAVEL,4/18/17,AP,E0507137,,CITIBANK GOV CARD SERVICE,2017-03-06,2017-03-07,COMMERCIAL TRANSPORTATION,312,2017
,2017 OFFICE OF THE MINORITY LEADER,2017Q2,GENERAL EXPENDITURES,TRAVEL,4/18/17,AP,E0507137,,CITIBANK GOV CARD SERVICE,2017-03-07,2017-03-07,COMMERCIAL TRANSPORTATION,171,2017
,2017 OFFICE OF THE MINORITY LEADER,2017Q2,GENERAL EXPENDITURES,TRAVEL,4/18/17,AP,E0507137,,CITIBANK GOV CARD SERVICE,2017-03-06,2017-03-07,LODGING,426.93,2017
,2017 OFFICE OF THE MINORITY LEADER,2017Q2,GENERAL EXPENDITURES,TRAVEL,4/18/17,AP,E0507137,,CITIBANK GOV CARD SERVICE,2017-03-06,2017-03-07,MEALS,45.93,2017
,2017 OFFICE OF THE MINORITY LEADER,2017Q2,GENERAL EXPENDITURES,TRAVEL,4/18/17,AP,E0507137,,CITIBANK GOV CARD SERVICE,2017-03-07,2017-03-07,MEALS,14.75,2017
,2017 OFFICE OF THE MINORITY LEADER,2017Q2,GENERAL EXPENDITURES,TRAVEL,4/18/17,AP,E0507137,,CITIBANK GOV CARD SERVICE,2017-03-06,2017-03-06,TAXI/PARKING/TOLLS,15.3,2017
,2017 OFFICE OF THE MINORITY LEADER,2017Q2,GENERAL EXPENDITURES,TRAVEL,4/18/17,AP,E0507137,,CITIBANK GOV CARD SERVICE,2017-03-07,2017-03-07,TAXI/PARKING/TOLLS,11.65,2017
,2017 OFFICE OF THE MINORITY LEADER,2017Q2,GENERAL EXPENDITURES,TRAVEL,4/21/17,AP,E0508099,,CITIBANK GOV CARD SERVICE,2017-01-24,2017-03-15,TAXI/PARKING/TOLLS,37.55,2017
,2017 OFFICE OF THE MINORITY LEADER,2017Q2,GENERAL EXPENDITURES,TRAVEL,4/21/17,AP,E0508147,,CAYEA DEVAN W.,2017-04-08,2017-04-09,TAXI/PARKING/TOLLS,53.22,2017
,2017 OFFICE OF THE MINORITY LEADER,2017Q2,GENERAL EXPENDITURES,TRAVEL,4/21/17,AP,E0508772,,CITIBANK GOV CARD SERVICE,2017-03-12,2017-03-26,COMMERCIAL TRANSPORTATION,1293,2017
,2017 OFFICE OF THE MINORITY LEADER,2017Q2,GENERAL EXPENDITURES,TRAVEL,4/21/17,AP,E0508772,,CITIBANK GOV CARD SERVICE,2017-03-10,2017-03-11,LODGING,125.36,2017
,2017 OFFICE OF THE MINORITY LEADER,2017Q2,GENERAL EXPENDITURES,TRAVEL,4/21/17,AP,E0508772,,CITIBANK GOV CARD SERVICE,2017-03-10,2017-03-11,MEALS,52.2,2017
,2017 OFFICE OF THE MINORITY LEADER,2017Q2,GENERAL EXPENDITURES,TRAVEL,4/21/17,AP,E0508772,,CITIBANK GOV CARD SERVICE,2017-03-10,2017-03-12,TAXI/PARKING/TOLLS,62.27,2017
,2017 OFFICE OF THE MINORITY LEADER,2017Q2,GENERAL EXPENDITURES,TRAVEL,4/21/17,AP,E0508776,,KAPLAN EMMA L.,2017-03-21,2017-04-05,TAXI/PARKING/TOLLS,118.48,2017
,2017 OFFICE OF THE MINORITY LEADER,2017Q2,GENERAL EXPENDITURES,TRAVEL,5/4/17,AP,E0512206,,POLZIN SAVANNAH J.,2017-04-22,2017-04-22,TAXI/PARKING/TOLLS,44.88,2017
,2017 OFFICE OF THE MINORITY LEADER,2017Q2,GENERAL EXPENDITURES,TRAVEL,5/17/17,AP,E0516058,,CITIBANK GOV CARD SERVICE,2017-04-18,2017-04-23,COMMERCIAL TRANSPORTATION,932.96,2017
,2017 OFFICE OF THE MINORITY LEADER,2017Q2,GENERAL EXPENDITURES,TRAVEL,5/17/17,AP,E0516058,,CITIBANK GOV CARD SERVICE,2017-04-18,2017-04-20,LODGING,2552.01,2017
,2017 OFFICE OF THE MINORITY LEADER,2017Q2,GENERAL EXPENDITURES,TRAVEL,5/17/17,AP,E0516058,,CITIBANK GOV CARD SERVICE,2017-04-18,2017-04-19,MEALS,43.62,2017
,2017 OFFICE OF THE MINORITY LEADER,2017Q2,GENERAL EXPENDITURES,TRAVEL,5/17/17,AP,E0516058,,CITIBANK GOV CARD SERVICE,2017-04-18,2017-04-23,TAXI/PARKING/TOLLS,56.52,2017
,2017 OFFICE OF THE MINORITY LEADER,2017Q2,GENERAL EXPENDITURES,TRAVEL,5/18/17,AP,E0516053,,CITIBANK GOV CARD SERVICE,2017-03-30,2017-03-30,COMMERCIAL TRANSPORTATION,560.2,2017
,2017 OFFICE OF THE MINORITY LEADER,2017Q2,GENERAL EXPENDITURES,TRAVEL,5/18/17,AP,E0516053,,CITIBANK GOV CARD SERVICE,2017-03-31,2017-03-31,COMMERCIAL TRANSPORTATION,194,2017
,2017 OFFICE OF THE MINORITY LEADER,2017Q2,GENERAL EXPENDITURES,TRAVEL,5/18/17,AP,E0516053,,CITIBANK GOV CARD SERVICE,2017-03-30,2017-03-31,LODGING,438.41,2017
,2017 OFFICE OF THE MINORITY LEADER,2017Q2,GENERAL EXPENDITURES,TRAVEL,5/18/17,AP,E0516053,,CITIBANK GOV CARD SERVICE,2017-03-31,2017-03-31,MEALS,68.42,2017
,2017 OFFICE OF THE MINORITY LEADER,2017Q2,GENERAL EXPENDITURES,TRAVEL,5/18/17,AP,E0516053,,CITIBANK GOV CARD SERVICE,2017-03-30,2017-03-30,TAXI/PARKING/TOLLS,10.85,2017
,2017 OFFICE OF THE MINORITY LEADER,2017Q2,GENERAL EXPENDITURES,TRAVEL,5/18/17,AP,E0516053,,CITIBANK GOV CARD SERVICE,2017-03-31,2017-03-31,TAXI/PARKING/TOLLS,16.31,2017
,2017 OFFICE OF THE MINORITY LEADER,2017Q2,GENERAL EXPENDITURES,TRAVEL,5/18/17,AP,E0516055,,CITIBANK GOV CARD SERVICE,2017-03-30,2017-04-30,COMMERCIAL TRANSPORTATION,1821.2,2017
,2017 OFFICE OF THE MINORITY LEADER,2017Q2,GENERAL EXPENDITURES,TRAVEL,5/18/17,AP,E0516055,,CITIBANK GOV CARD SERVICE,2017-03-31,2017-04-09,MEALS,63.89,2017
,2017 OFFICE OF THE MINORITY LEADER,2017Q2,GENERAL EXPENDITURES,TRAVEL,5/18/17,AP,E0516059,,CITIBANK GOV CARD SERVICE,2017-03-30,2017-03-30,COMMERCIAL TRANSPORTATION,560.2,2017
,2017 OFFICE OF THE MINORITY LEADER,2017Q2,GENERAL EXPENDITURES,TRAVEL,5/18/17,AP,E0516059,,CITIBANK GOV CARD SERVICE,2017-03-31,2017-03-31,COMMERCIAL TRANSPORTATION,268.2,2017
,2017 OFFICE OF THE MINORITY LEADER,2017Q2,GENERAL EXPENDITURES,TRAVEL,5/18/17,AP,E0516059,,CITIBANK GOV CARD SERVICE,2017-03-31,2017-04-01,LODGING,649.88,2017
,2017 OFFICE OF THE MINORITY LEADER,2017Q2,GENERAL EXPENDITURES,TRAVEL,5/18/17,AP,E0516059,,CITIBANK GOV CARD SERVICE,2017-03-31,2017-03-31,MEALS,21.6,2017
,2017 OFFICE OF THE MINORITY LEADER,2017Q2,GENERAL EXPENDITURES,TRAVEL,5/18/17,AP,E0516059,,CITIBANK GOV CARD SERVICE,2017-04-01,2017-04-01,MEALS,35.61,2017
,2017 OFFICE OF THE MINORITY LEADER,2017Q2,GENERAL EXPENDITURES,TRAVEL,5/18/17,AP,E0516059,,CITIBANK GOV CARD SERVICE,2017-04-02,2017-04-02,MEALS,11.29,2017
,2017 OFFICE OF THE MINORITY LEADER,2017Q2,GENERAL EXPENDITURES,TRAVEL,5/18/17,AP,E0516060,,CITIBANK GOV CARD SERVICE,2017-04-28,2017-04-28,COMMERCIAL TRANSPORTATION,113.2,2017
,2017 OFFICE OF THE MINORITY LEADER,2017Q2,GENERAL EXPENDITURES,TRAVEL,5/18/17,AP,E0516061,,CITIBANK GOV CARD SERVICE,2017-03-26,2017-04-24,COMMERCIAL TRANSPORTATION,1866.6,2017
,2017 OFFICE OF THE MINORITY LEADER,2017Q2,GENERAL EXPENDITURES,TRAVEL,5/18/17,AP,E0516061,,CITIBANK GOV CARD SERVICE,2017-03-31,2017-04-09,LODGING,1343.02,2017
,2017 OFFICE OF THE MINORITY LEADER,2017Q2,GENERAL EXPENDITURES,TRAVEL,5/18/17,AP,E0516061,,CITIBANK GOV CARD SERVICE,2017-03-31,2017-04-23,MEALS,162.9,2017
,2017 OFFICE OF THE MINORITY LEADER,2017Q2,GENERAL EXPENDITURES,TRAVEL,5/18/17,AP,E0516061,,CITIBANK GOV CARD SERVICE,2017-04-01,2017-04-23,TAXI/PARKING/TOLLS,306.03,2017
,2017 OFFICE OF THE MINORITY LEADER,2017Q2,GENERAL EXPENDITURES,TRAVEL,5/23/17,AP,E0517985,,POLZIN SAVANNAH J.,2017-04-25,2017-05-01,TAXI/PARKING/TOLLS,55.74,2017
,2017 OFFICE OF THE MINORITY LEADER,2017Q2,GENERAL EXPENDITURES,TRAVEL,5/23/17,AP,E0517986,,LONG MICHAEL G,2017-04-30,2017-05-01,LODGING,350.1,2017
,2017 OFFICE OF THE MINORITY LEADER,2017Q2,GENERAL EXPENDITURES,TRAVEL,5/23/17,AP,E0517988,,SMITH KELSEY L.,2017-04-18,2017-04-18,MEALS,7.58,2017
,2017 OFFICE OF THE MINORITY LEADER,2017Q2,GENERAL EXPENDITURES,TRAVEL,5/23/17,AP,E0517988,,SMITH KELSEY L.,2017-04-03,2017-04-23,TAXI/PARKING/TOLLS,66.32,2017
,2017 OFFICE OF THE MINORITY LEADER,2017Q2,GENERAL EXPENDITURES,TRAVEL,6/1/17,AP,924174,,CITIBANK GOV CARD SERVICE,2017-04-07,2017-04-09,LODGING,622.68,2017
,2017 OFFICE OF THE MINORITY LEADER,2017Q2,GENERAL EXPENDITURES,TRAVEL,6/1/17,AP,924174,,CITIBANK GOV CARD SERVICE,2017-03-30,2017-04-28,TAXI/PARKING/TOLLS,283.3,2017
,2017 OFFICE OF THE MINORITY LEADER,2017Q2,GENERAL EXPENDITURES,TRAVEL,6/5/17,AP,E0520816,,POLZIN SAVANNAH J.,2017-05-16,2017-05-22,TAXI/PARKING/TOLLS,68.53,2017
,2017 OFFICE OF THE MINORITY LEADER,2017Q2,GENERAL EXPENDITURES,TRAVEL,6/14/17,AP,E0523667,,CITIBANK GOV CARD SERVICE,2017-04-30,2017-04-30,COMMERCIAL TRANSPORTATION,116.2,2017
,2017 OFFICE OF THE MINORITY LEADER,2017Q2,GENERAL EXPENDITURES,TRAVEL,6/14/17,AP,E0523667,,CITIBANK GOV CARD SERVICE,2017-05-01,2017-05-01,COMMERCIAL TRANSPORTATION,116.2,2017
,2017 OFFICE OF THE MINORITY LEADER,2017Q2,GENERAL EXPENDITURES,TRAVEL,6/14/17,AP,E0523667,,CITIBANK GOV CARD SERVICE,2017-04-19,2017-04-19,MEALS,9.66,2017
,2017 OFFICE OF THE MINORITY LEADER,2017Q2,GENERAL EXPENDITURES,TRAVEL,6/14/17,AP,E0523667,,CITIBANK GOV CARD SERVICE,2017-04-20,2017-04-20,MEALS,17.18,2017
,2017 OFFICE OF THE MINORITY LEADER,2017Q2,GENERAL EXPENDITURES,TRAVEL,6/19/17,AP,E0525509,,POLZIN SAVANNAH J.,2017-06-02,2017-06-06,TAXI/PARKING/TOLLS,59.17,2017
,2017 OFFICE OF THE MINORITY LEADER,2017Q2,GENERAL EXPENDITURES,TRAVEL,6/19/17,AP,E0525510,,MONGE KATHERINE S.,2017-06-05,2017-06-05,COMMERCIAL TRANSPORTATION,445,2017
,2017 OFFICE OF THE MINORITY LEADER,2017Q2,GENERAL EXPENDITURES,TRAVEL,6/19/17,AP,E0525510,,MONGE KATHERINE S.,2017-06-05,2017-06-05,MEALS,17.02,2017
,2017 OFFICE OF THE MINORITY LEADER,2017Q2,GENERAL EXPENDITURES,TRAVEL,6/19/17,AP,E0525511,,CITIBANK GOV CARD SERVICE,2017-05-25,2017-05-31,COMMERCIAL TRANSPORTATION,663.1,2017
,2017 OFFICE OF THE MINORITY LEADER,2017Q2,GENERAL EXPENDITURES,TRAVEL,6/19/17,AP,E0525511,,CITIBANK GOV CARD SERVICE,2017-05-25,2017-05-25,TAXI/PARKING/TOLLS,98,2017
,2017 OFFICE OF THE MINORITY LEADER,2017Q2,GENERAL EXPENDITURES,TRAVEL,6/19/17,AP,E0525512,,CITIBANK GOV CARD SERVICE,2017-04-30,2017-05-01,LODGING,350.1,2017
,2017 OFFICE OF THE MINORITY LEADER,2017Q2,GENERAL EXPENDITURES,TRAVEL,6/19/17,AP,E0525512,,CITIBANK GOV CARD SERVICE,2017-05-01,2017-05-01,MEALS,21.29,2017
,2017 OFFICE OF THE MINORITY LEADER,2017Q2,GENERAL EXPENDITURES,TRAVEL,6/19/17,AP,E0525512,,CITIBANK GOV CARD SERVICE,2017-04-30,2017-04-30,TAXI/PARKING/TOLLS,119.86,2017
,2017 OFFICE OF THE MINORITY LEADER,2017Q2,GENERAL EXPENDITURES,TRAVEL,6/19/17,AP,E0525513,,CITIBANK GOV CARD SERVICE,2017-04-28,2017-04-28,COMMERCIAL TRANSPORTATION,-113.2,2017
,2017 OFFICE OF THE MINORITY LEADER,2017Q2,GENERAL EXPENDITURES,TRAVEL,6/19/17,AP,E0525513,,CITIBANK GOV CARD SERVICE,2017-05-01,2017-05-01,COMMERCIAL TRANSPORTATION,116.2,2017
,2017 OFFICE OF THE MINORITY LEADER,2017Q2,GENERAL EXPENDITURES,TRAVEL,6/19/17,AP,E0525513,,CITIBANK GOV CARD SERVICE,2017-05-01,2017-05-01,MEALS,33.4,2017
,2017 OFFICE OF THE MINORITY LEADER,2017Q2,GENERAL EXPENDITURES,TRAVEL,6/19/17,AP,E0525514,,CITIBANK GOV CARD SERVICE,2017-05-01,2017-05-01,COMMERCIAL TRANSPORTATION,5.6,2017
,2017 OFFICE OF THE MINORITY LEADER,2017Q2,GENERAL EXPENDITURES,TRAVEL,6/19/17,AP,E0525514,,CITIBANK GOV CARD SERVICE,2017-04-30,2017-05-02,LODGING,516.71,2017
,2017 OFFICE OF THE MINORITY LEADER,2017Q2,GENERAL EXPENDITURES,TRAVEL,6/19/17,AP,E0525514,,CITIBANK GOV CARD SERVICE,2017-04-30,2017-05-02,TAXI/PARKING/TOLLS,-163.88,2017
,2017 OFFICE OF THE MINORITY LEADER,2017Q2,GENERAL EXPENDITURES,TRAVEL,6/19/17,AP,E0525515,,CITIBANK GOV CARD SERVICE,2017-05-25,2017-05-25,COMMERCIAL TRANSPORTATION,435.2,2017
,2017 OFFICE OF THE MINORITY LEADER,2017Q2,GENERAL EXPENDITURES,TRAVEL,6/19/17,AP,E0525515,,CITIBANK GOV CARD SERVICE,2017-05-30,2017-05-30,COMMERCIAL TRANSPORTATION,435.2,2017
,2017 OFFICE OF THE MINORITY LEADER,2017Q2,GENERAL EXPENDITURES,TRAVEL,6/27/17,AR,AC-13207,,CITIBANK,2017-01-16,2017-01-16,COMMERCIAL TRANSPORTATION,-220.2,2017
,2017 OFFICE OF THE MINORITY LEADER,2017Q2,GENERAL EXPENDITURES,TRAVEL,   ,   ,   ,,   ,   ,   ,TRAVEL TOTALS:,23775.76,2017
,2017 OFFICE OF THE MINORITY LEADER,2017Q2,GENERAL EXPENDITURES,RENT  COMMUNICATION  UTILITIES,4/7/17,AP,E0503361,,FEDEX,2017-03-02,2017-03-02,POSTAGE / COURIER / BOX RENTAL,6.4,2017
,2017 OFFICE OF THE MINORITY LEADER,2017Q2,GENERAL EXPENDITURES,RENT  COMMUNICATION  UTILITIES,4/7/17,AP,E0503365,,BERRET EMILY C.,2017-03-13,2017-03-13,UTILITIES,8.65,2017
,2017 OFFICE OF THE MINORITY LEADER,2017Q2,GENERAL EXPENDITURES,RENT  COMMUNICATION  UTILITIES,5/4/17,AP,E0512220,,FEDEX,2017-04-07,2017-04-07,POSTAGE / COURIER / BOX RENTAL,42.88,2017
,2017 OFFICE OF THE MINORITY LEADER,2017Q2,GENERAL EXPENDITURES,RENT  COMMUNICATION  UTILITIES,5/4/17,AP,E0512223,,FEDEX,2017-04-07,2017-04-07,POSTAGE / COURIER / BOX RENTAL,4.99,2017
,2017 OFFICE OF THE MINORITY LEADER,2017Q2,GENERAL EXPENDITURES,RENT  COMMUNICATION  UTILITIES,5/26/17,GL,GRP0068675,, ,2017-05-01,2017-05-31,HIR GRAPHICS (TRANSFER),22,2017
,2017 OFFICE OF THE MINORITY LEADER,2017Q2,GENERAL EXPENDITURES,RENT  COMMUNICATION  UTILITIES,6/5/17,AP,E0520830,,FEDEX,2017-05-01,2017-05-04,POSTAGE / COURIER / BOX RENTAL,9.37,2017
,2017 OFFICE OF THE MINORITY LEADER,2017Q2,GENERAL EXPENDITURES,RENT  COMMUNICATION  UTILITIES,   ,   ,   ,,   ,   ,   ,RENT  COMMUNICATION  UTILITIES TOTALS:,94.29,2017
,2017 OFFICE OF THE MINORITY LEADER,2017Q2,GENERAL EXPENDITURES,PRINTING AND REPRODUCTION,4/26/17,GL,PIX0067785,, ,2017-04-01,2017-04-30,PHOTOGRAPHIC (TRANSFER),319.3,2017
,2017 OFFICE OF THE MINORITY LEADER,2017Q2,GENERAL EXPENDITURES,PRINTING AND REPRODUCTION,5/26/17,GL,PIX0068669,, ,2017-05-01,2017-05-31,PHOTOGRAPHIC (TRANSFER),303.5,2017
,2017 OFFICE OF THE MINORITY LEADER,2017Q2,GENERAL EXPENDITURES,PRINTING AND REPRODUCTION,6/27/17,GL,PIX0069392,, ,2017-06-01,2017-06-30,PHOTOGRAPHIC (TRANSFER),231.7,2017
,2017 OFFICE OF THE MINORITY LEADER,2017Q2,GENERAL EXPENDITURES,PRINTING AND REPRODUCTION,   ,   ,   ,,   ,   ,   ,PRINTING AND REPRODUCTION TOTALS:,854.5,2017
,2017 OFFICE OF THE MINORITY LEADER,2017Q2,GENERAL EXPENDITURES,OTHER SERVICES,4/11/17,AP,E0503581,,BERNARD RAIMO,2017-03-01,2017-03-31,CONSULTANT CONTRACT SERVICE,7628,2017
,2017 OFFICE OF THE MINORITY LEADER,2017Q2,GENERAL EXPENDITURES,OTHER SERVICES,4/11/17,AP,E0504057,,NEAL R GROSS & COMPANY INC,2017-03-28,2017-03-28,STENOGRAPHIC REPORTING,1500,2017
,2017 OFFICE OF THE MINORITY LEADER,2017Q2,GENERAL EXPENDITURES,OTHER SERVICES,5/5/17,AP,E0512265,,BERNARD RAIMO,2017-04-01,2017-04-30,CONSULTANT CONTRACT SERVICE,7628,2017
,2017 OFFICE OF THE MINORITY LEADER,2017Q2,GENERAL EXPENDITURES,OTHER SERVICES,6/5/17,AP,E0520831,,NEAL R GROSS & COMPANY INC,2017-05-03,2017-05-03,STENOGRAPHIC REPORTING,1500,2017
,2017 OFFICE OF THE MINORITY LEADER,2017Q2,GENERAL EXPENDITURES,OTHER SERVICES,6/12/17,AP,E0522738,,BERNARD RAIMO,2017-05-01,2017-05-31,CONSULTANT CONTRACT SERVICE,7628,2017
,2017 OFFICE OF THE MINORITY LEADER,2017Q2,GENERAL EXPENDITURES,OTHER SERVICES,   ,   ,   ,,   ,   ,   ,OTHER SERVICES TOTALS:,25884,2017
,2017 OFFICE OF THE MINORITY LEADER,2017Q2,GENERAL EXPENDITURES,SUPPLIES AND MATERIALS,4/7/17,AP,E0503360,,CAPITOL  HOST,2017-03-22,2017-03-22,FOOD & BEVERAGE,149.82,2017
,2017 OFFICE OF THE MINORITY LEADER,2017Q2,GENERAL EXPENDITURES,SUPPLIES AND MATERIALS,4/7/17,AP,E0503362,,CAPITOL  HOST,2017-03-20,2017-03-20,FOOD & BEVERAGE,54.93,2017
,2017 OFFICE OF THE MINORITY LEADER,2017Q2,GENERAL EXPENDITURES,SUPPLIES AND MATERIALS,4/7/17,AP,E0503363,,CAPITOL  HOST,2017-03-16,2017-03-16,FOOD & BEVERAGE,149.84,2017
,2017 OFFICE OF THE MINORITY LEADER,2017Q2,GENERAL EXPENDITURES,SUPPLIES AND MATERIALS,4/7/17,AP,E0503364,,CAPITOL  HOST,2017-03-21,2017-03-21,FOOD & BEVERAGE,221.41,2017
,2017 OFFICE OF THE MINORITY LEADER,2017Q2,GENERAL EXPENDITURES,SUPPLIES AND MATERIALS,4/18/17,AP,E0507113,,CAPITOL  HOST,2017-03-29,2017-03-29,FOOD & BEVERAGE,187.5,2017
,2017 OFFICE OF THE MINORITY LEADER,2017Q2,GENERAL EXPENDITURES,SUPPLIES AND MATERIALS,4/18/17,AP,E0507114,,CAPITOL  HOST,2017-03-29,2017-03-29,FOOD & BEVERAGE,85.99,2017
,2017 OFFICE OF THE MINORITY LEADER,2017Q2,GENERAL EXPENDITURES,SUPPLIES AND MATERIALS,4/18/17,AP,E0507116,,CAPITOL  HOST,2017-03-30,2017-03-30,FOOD & BEVERAGE,149.84,2017
,2017 OFFICE OF THE MINORITY LEADER,2017Q2,GENERAL EXPENDITURES,SUPPLIES AND MATERIALS,4/18/17,AP,E0507117,,CAPITOL  HOST,2017-03-29,2017-03-29,FOOD & BEVERAGE,36.63,2017
,2017 OFFICE OF THE MINORITY LEADER,2017Q2,GENERAL EXPENDITURES,SUPPLIES AND MATERIALS,4/18/17,AP,E0507118,,CAPITOL  HOST,2017-03-28,2017-03-28,FOOD & BEVERAGE,73.25,2017
,2017 OFFICE OF THE MINORITY LEADER,2017Q2,GENERAL EXPENDITURES,SUPPLIES AND MATERIALS,4/18/17,AP,E0507119,,CAPITOL  HOST,2017-03-27,2017-03-27,FOOD & BEVERAGE,73.25,2017
,2017 OFFICE OF THE MINORITY LEADER,2017Q2,GENERAL EXPENDITURES,SUPPLIES AND MATERIALS,4/18/17,AP,E0507120,,CAPITOL  HOST,2017-03-23,2017-03-23,FOOD & BEVERAGE,149.84,2017
,2017 OFFICE OF THE MINORITY LEADER,2017Q2,GENERAL EXPENDITURES,SUPPLIES AND MATERIALS,4/18/17,AP,E0507139,,CAPITOL ADVANTAGE LLC,2017-04-06,2017-04-06,PUBLICATIONS/REFERENCE MAT'L,517,2017
,2017 OFFICE OF THE MINORITY LEADER,2017Q2,GENERAL EXPENDITURES,SUPPLIES AND MATERIALS,4/19/17,AP,917820,,CITI PCARD-CARMINE'S,2017-03-01,2017-03-28,FOOD & BEVERAGE,324.06,2017
,2017 OFFICE OF THE MINORITY LEADER,2017Q2,GENERAL EXPENDITURES,SUPPLIES AND MATERIALS,4/19/17,AP,917820,,CITI PCARD-COSTCO.COM   ONLINE,2017-03-01,2017-03-28,FOOD & BEVERAGE,526.05,2017
,2017 OFFICE OF THE MINORITY LEADER,2017Q2,GENERAL EXPENDITURES,SUPPLIES AND MATERIALS,4/19/17,AP,917820,,CITI PCARD-D J WALL-ST-JOURNAL,2017-03-01,2017-03-28,PUBLICATIONS/REFERENCE MAT'L,367.88,2017
,2017 OFFICE OF THE MINORITY LEADER,2017Q2,GENERAL EXPENDITURES,SUPPLIES AND MATERIALS,4/19/17,AP,917820,,CITI PCARD-FIREHOOK,2017-03-01,2017-03-28,FOOD & BEVERAGE,32.98,2017
,2017 OFFICE OF THE MINORITY LEADER,2017Q2,GENERAL EXPENDITURES,SUPPLIES AND MATERIALS,4/19/17,AP,917820,,CITI PCARD-PRET A MANGER,2017-03-01,2017-03-28,FOOD & BEVERAGE,195.46,2017
,2017 OFFICE OF THE MINORITY LEADER,2017Q2,GENERAL EXPENDITURES,SUPPLIES AND MATERIALS,4/19/17,AP,917820,,CITI PCARD-TARGET,2017-03-01,2017-03-28,FOOD & BEVERAGE,166.76,2017
,2017 OFFICE OF THE MINORITY LEADER,2017Q2,GENERAL EXPENDITURES,SUPPLIES AND MATERIALS,4/19/17,AP,917820,,CITI PCARD-USHR LONGWORTH FOOD CT,2017-03-01,2017-03-28,FOOD & BEVERAGE,39.5,2017
,2017 OFFICE OF THE MINORITY LEADER,2017Q2,GENERAL EXPENDITURES,SUPPLIES AND MATERIALS,4/19/17,AP,917820,,CITI PCARD-WE THE PIZZA,2017-03-01,2017-03-28,FOOD & BEVERAGE,44.4,2017
,2017 OFFICE OF THE MINORITY LEADER,2017Q2,GENERAL EXPENDITURES,SUPPLIES AND MATERIALS,4/21/17,AP,E0508770,,CAPITOL  HOST,2017-04-05,2017-04-05,FOOD & BEVERAGE,296.01,2017
,2017 OFFICE OF THE MINORITY LEADER,2017Q2,GENERAL EXPENDITURES,SUPPLIES AND MATERIALS,4/21/17,AP,E0508771,,CAPITOL  HOST,2017-04-05,2017-04-05,FOOD & BEVERAGE,140.85,2017
,2017 OFFICE OF THE MINORITY LEADER,2017Q2,GENERAL EXPENDITURES,SUPPLIES AND MATERIALS,4/21/17,AP,E0508772,,CITIBANK GOV CARD SERVICE,2017-03-05,2017-03-05,PUBLICATIONS/REFERENCE MAT'L,13.22,2017
,2017 OFFICE OF THE MINORITY LEADER,2017Q2,GENERAL EXPENDITURES,SUPPLIES AND MATERIALS,4/21/17,AP,E0508773,,CAPITOL  HOST,2017-04-03,2017-04-03,FOOD & BEVERAGE,73.26,2017
,2017 OFFICE OF THE MINORITY LEADER,2017Q2,GENERAL EXPENDITURES,SUPPLIES AND MATERIALS,4/21/17,AP,E0508774,,CAPITOL  HOST,2017-04-04,2017-04-04,FOOD & BEVERAGE,37.95,2017
,2017 OFFICE OF THE MINORITY LEADER,2017Q2,GENERAL EXPENDITURES,SUPPLIES AND MATERIALS,4/21/17,AP,E0508777,,CAPITOL  HOST,2017-03-30,2017-03-30,FOOD & BEVERAGE,85.99,2017
,2017 OFFICE OF THE MINORITY LEADER,2017Q2,GENERAL EXPENDITURES,SUPPLIES AND MATERIALS,5/4/17,AP,E0512217,,CAPITOL  HOST,2017-04-06,2017-04-06,FOOD & BEVERAGE,167.07,2017
,2017 OFFICE OF THE MINORITY LEADER,2017Q2,GENERAL EXPENDITURES,SUPPLIES AND MATERIALS,5/4/17,AP,E0512239,,CRYSTAL SPRINGS,2017-03-21,2017-04-04,FOOD & BEVERAGE,478,2017
,2017 OFFICE OF THE MINORITY LEADER,2017Q2,GENERAL EXPENDITURES,SUPPLIES AND MATERIALS,5/5/17,AP,E0512187,,CISION US INC,2017-04-26,2018-04-26,PUBLICATIONS/REFERENCE MAT'L,6693,2017
,2017 OFFICE OF THE MINORITY LEADER,2017Q2,GENERAL EXPENDITURES,SUPPLIES AND MATERIALS,5/19/17,AP,923551,,CITI PCARD-FIREHOOK CAPITOL HILL,2017-03-29,2017-04-28,FOOD & BEVERAGE,93.53,2017
,2017 OFFICE OF THE MINORITY LEADER,2017Q2,GENERAL EXPENDITURES,SUPPLIES AND MATERIALS,5/19/17,AP,923551,,CITI PCARD-HARRISTEETER,2017-03-29,2017-04-28,FOOD & BEVERAGE,93.77,2017
,2017 OFFICE OF THE MINORITY LEADER,2017Q2,GENERAL EXPENDITURES,SUPPLIES AND MATERIALS,5/19/17,AP,923551,,CITI PCARD-ROLANDS GROCERY,2017-03-29,2017-04-28,FOOD & BEVERAGE,20,2017
,2017 OFFICE OF THE MINORITY LEADER,2017Q2,GENERAL EXPENDITURES,SUPPLIES AND MATERIALS,5/19/17,AP,923551,,CITI PCARD-TARGET,2017-03-29,2017-04-28,FOOD & BEVERAGE,460.27,2017
,2017 OFFICE OF THE MINORITY LEADER,2017Q2,GENERAL EXPENDITURES,SUPPLIES AND MATERIALS,5/19/17,AP,923551,,CITI PCARD-USHR,2017-03-29,2017-04-28,FOOD & BEVERAGE,41,2017
,2017 OFFICE OF THE MINORITY LEADER,2017Q2,GENERAL EXPENDITURES,SUPPLIES AND MATERIALS,5/24/17,AP,E0518404,,CAPITOL  HOST,2017-04-27,2017-04-27,FOOD & BEVERAGE,128.01,2017
,2017 OFFICE OF THE MINORITY LEADER,2017Q2,GENERAL EXPENDITURES,SUPPLIES AND MATERIALS,5/24/17,AP,E0518411,,CAPITOL  HOST,2017-05-01,2017-05-01,FOOD & BEVERAGE,73.25,2017
,2017 OFFICE OF THE MINORITY LEADER,2017Q2,GENERAL EXPENDITURES,SUPPLIES AND MATERIALS,5/24/17,AP,E0518413,,CAPITOL  HOST,2017-04-26,2017-04-26,FOOD & BEVERAGE,183.13,2017
,2017 OFFICE OF THE MINORITY LEADER,2017Q2,GENERAL EXPENDITURES,SUPPLIES AND MATERIALS,5/24/17,AP,E0518414,,CAPITOL  HOST,2017-04-25,2017-04-25,FOOD & BEVERAGE,75.91,2017
,2017 OFFICE OF THE MINORITY LEADER,2017Q2,GENERAL EXPENDITURES,SUPPLIES AND MATERIALS,5/24/17,AP,E0518415,,CAPITOL  HOST,2017-04-27,2017-04-27,FOOD & BEVERAGE,140.85,2017
,2017 OFFICE OF THE MINORITY LEADER,2017Q2,GENERAL EXPENDITURES,SUPPLIES AND MATERIALS,5/24/17,AP,E0518416,,CAPITOL  HOST,2017-04-27,2017-04-27,FOOD & BEVERAGE,139.61,2017
,2017 OFFICE OF THE MINORITY LEADER,2017Q2,GENERAL EXPENDITURES,SUPPLIES AND MATERIALS,5/24/17,AP,E0518417,,TOULIES EN FLEUR,2017-04-03,2017-04-25,HABITATION EXPENSE,500,2017
,2017 OFFICE OF THE MINORITY LEADER,2017Q2,GENERAL EXPENDITURES,SUPPLIES AND MATERIALS,5/24/17,AP,E0518420,,TOULIES EN FLEUR,2017-03-07,2017-03-27,HABITATION EXPENSE,1000,2017
,2017 OFFICE OF THE MINORITY LEADER,2017Q2,GENERAL EXPENDITURES,SUPPLIES AND MATERIALS,5/24/17,AP,E0518422,,CAPITOL  HOST,2017-04-27,2017-04-27,FOOD & BEVERAGE,73.25,2017
,2017 OFFICE OF THE MINORITY LEADER,2017Q2,GENERAL EXPENDITURES,SUPPLIES AND MATERIALS,5/24/17,AP,E0518423,,TOULIES EN FLEUR,2017-02-06,2017-02-27,HABITATION EXPENSE,150,2017
,2017 OFFICE OF THE MINORITY LEADER,2017Q2,GENERAL EXPENDITURES,SUPPLIES AND MATERIALS,6/5/17,AP,E0520784,,CRYSTAL SPRINGS,2017-05-01,2017-05-31,FOOD & BEVERAGE,238.56,2017
,2017 OFFICE OF THE MINORITY LEADER,2017Q2,GENERAL EXPENDITURES,SUPPLIES AND MATERIALS,6/5/17,AP,E0520813,,TOULIES EN FLEUR,2017-05-01,2017-05-22,HABITATION EXPENSE,750,2017
,2017 OFFICE OF THE MINORITY LEADER,2017Q2,GENERAL EXPENDITURES,SUPPLIES AND MATERIALS,6/5/17,AP,E0520816,,POLZIN SAVANNAH J.,2017-05-22,2017-05-22,FOOD & BEVERAGE,66.06,2017
,2017 OFFICE OF THE MINORITY LEADER,2017Q2,GENERAL EXPENDITURES,SUPPLIES AND MATERIALS,6/5/17,AP,E0520833,,CAPITOL  HOST,2017-05-03,2017-05-03,FOOD & BEVERAGE,53.03,2017
,2017 OFFICE OF THE MINORITY LEADER,2017Q2,GENERAL EXPENDITURES,SUPPLIES AND MATERIALS,6/5/17,AP,E0520835,,CAPITOL  HOST,2017-05-03,2017-05-03,FOOD & BEVERAGE,187.79,2017
,2017 OFFICE OF THE MINORITY LEADER,2017Q2,GENERAL EXPENDITURES,SUPPLIES AND MATERIALS,6/9/17,AP,E0522734,,CAPITOL  HOST,2017-05-18,2017-05-18,FOOD & BEVERAGE,136.87,2017
,2017 OFFICE OF THE MINORITY LEADER,2017Q2,GENERAL EXPENDITURES,SUPPLIES AND MATERIALS,6/9/17,AP,E0522735,,CAPITOL  HOST,2017-05-22,2017-05-22,FOOD & BEVERAGE,73.25,2017
,2017 OFFICE OF THE MINORITY LEADER,2017Q2,GENERAL EXPENDITURES,SUPPLIES AND MATERIALS,6/19/17,AP,E0525504,,CAPITOL  HOST,2017-05-24,2017-05-24,FOOD & BEVERAGE,154.49,2017
,2017 OFFICE OF THE MINORITY LEADER,2017Q2,GENERAL EXPENDITURES,SUPPLIES AND MATERIALS,6/19/17,AP,E0525506,,CAPITOL  HOST,2017-05-24,2017-05-24,FOOD & BEVERAGE,419.21,2017
,2017 OFFICE OF THE MINORITY LEADER,2017Q2,GENERAL EXPENDITURES,SUPPLIES AND MATERIALS,6/19/17,AP,E0525507,,CAPITOL  HOST,2017-05-25,2017-05-25,FOOD & BEVERAGE,136.87,2017
,2017 OFFICE OF THE MINORITY LEADER,2017Q2,GENERAL EXPENDITURES,SUPPLIES AND MATERIALS,6/19/17,AP,E0525508,,SOUTHWEST DISTRIBUTION INC,2017-07-01,2017-09-30,PUBLICATIONS/REFERENCE MAT'L,3817.45,2017
,2017 OFFICE OF THE MINORITY LEADER,2017Q2,GENERAL EXPENDITURES,SUPPLIES AND MATERIALS,6/19/17,AP,E0525513,,CITIBANK GOV CARD SERVICE,2017-05-01,2017-05-01,PUBLICATIONS/REFERENCE MAT'L,12.5,2017
,2017 OFFICE OF THE MINORITY LEADER,2017Q2,GENERAL EXPENDITURES,SUPPLIES AND MATERIALS,   ,   ,   ,,   ,   ,   ,SUPPLIES AND MATERIALS TOTALS:,20750.4,2017
,2017 OFFICE OF THE MINORITY LEADER,2017Q2,GENERAL EXPENDITURES,SUPPLIES AND MATERIALS,   ,   ,   ,,   ,   ,   ,GENERAL EXPENDITURES TOTALS:,1482364.58,2017
,2017 OFFICE OF THE MINORITY LEADER,2017Q2,GENERAL EXPENDITURES,SUPPLIES AND MATERIALS,   ,   ,   ,,   ,   ,   ,OFFICE TOTALS: ,1483369,2017
,2017 OFFICE OF THE MAJORITY WHIP,2017Q2,GENERAL EXPENDITURES,PERSONNEL COMPENSATION,   ,   ,   ,,ACORNLEY MARK A.,2017-04-01,2017-06-30,FINANCIAL ADMINISTRATOR,3750,2017
,2017 OFFICE OF THE MAJORITY WHIP,2017Q2,GENERAL EXPENDITURES,PERSONNEL COMPENSATION,   ,   ,   ,,BOND CHRISTOPHER J,2017-03-01,2017-06-30,COMMUNICATIONS DIRECTOR,31916.67,2017
,2017 OFFICE OF THE MAJORITY WHIP,2017Q2,GENERAL EXPENDITURES,PERSONNEL COMPENSATION,   ,   ,   ,,BRAVO MATTHEW,2017-03-01,2017-06-30,DEPUTY DIRECTOR OF FLOOR OPERA,36499.99,2017
,2017 OFFICE OF THE MAJORITY WHIP,2017Q2,GENERAL EXPENDITURES,PERSONNEL COMPENSATION,   ,   ,   ,,CAVAZOS ANDREW J,2017-04-01,2017-06-30,ASST TO THE CHIEF OF STAFF,11750.01,2017
,2017 OFFICE OF THE MAJORITY WHIP,2017Q2,GENERAL EXPENDITURES,PERSONNEL COMPENSATION,   ,   ,   ,,CLARKE JOHN L,2017-06-12,2017-06-30,INTERN,1140,2017
,2017 OFFICE OF THE MAJORITY WHIP,2017Q2,GENERAL EXPENDITURES,PERSONNEL COMPENSATION,   ,   ,   ,,DEASE ALEXANDRA E,2017-02-01,2017-02-01,SHARED EMPLOYEE,-833.33,2017
,2017 OFFICE OF THE MAJORITY WHIP,2017Q2,GENERAL EXPENDITURES,PERSONNEL COMPENSATION,   ,   ,   ,,DEASE ALEXANDRA E,2017-04-01,2017-06-30,STAFF ASSISTANT,8750.01,2017
,2017 OFFICE OF THE MAJORITY WHIP,2017Q2,GENERAL EXPENDITURES,PERSONNEL COMPENSATION,   ,   ,   ,,FINE LAUREN R,2017-04-01,2017-06-30,PRESS SECRETARY,17499.99,2017
,2017 OFFICE OF THE MAJORITY WHIP,2017Q2,GENERAL EXPENDITURES,PERSONNEL COMPENSATION,   ,   ,   ,,GOSNELL ELLEN C,2017-04-01,2017-06-30,SCHEDULE COORDINATOR,9500.01,2017
,2017 OFFICE OF THE MAJORITY WHIP,2017Q2,GENERAL EXPENDITURES,PERSONNEL COMPENSATION,   ,   ,   ,,HAMILTON PARKER,2017-04-01,2017-06-30,COS TO THE CHIEF DEP WHIP,30000,2017
,2017 OFFICE OF THE MAJORITY WHIP,2017Q2,GENERAL EXPENDITURES,PERSONNEL COMPENSATION,   ,   ,   ,,HODGSON CHRISTOPHER M,2017-03-01,2017-06-30,DEPUTY FLOOR DIRECTOR,21125.01,2017
,2017 OFFICE OF THE MAJORITY WHIP,2017Q2,GENERAL EXPENDITURES,PERSONNEL COMPENSATION,   ,   ,   ,,HORTON BRETT H.,2017-04-01,2017-06-30,CHIEF OF STAFF,42825,2017
,2017 OFFICE OF THE MAJORITY WHIP,2017Q2,GENERAL EXPENDITURES,PERSONNEL COMPENSATION,   ,   ,   ,,HUDAK KELLEY K,2017-03-01,2017-06-30,BUSINESS COALITIONS COORD,22866.67,2017
,2017 OFFICE OF THE MAJORITY WHIP,2017Q2,GENERAL EXPENDITURES,PERSONNEL COMPENSATION,   ,   ,   ,,HUGHES WILLIAM J,2017-04-01,2017-06-30,POLICY DIRECTOR,42674.01,2017
,2017 OFFICE OF THE MAJORITY WHIP,2017Q2,GENERAL EXPENDITURES,PERSONNEL COMPENSATION,   ,   ,   ,,JEWELL MATTHEW L,2017-04-01,2017-05-26,STAFF ASSISTANT,6222.22,2017
,2017 OFFICE OF THE MAJORITY WHIP,2017Q2,GENERAL EXPENDITURES,PERSONNEL COMPENSATION,   ,   ,   ,,LEWIS WILLIAM M,2017-06-06,2017-06-30,INTERN,1500,2017
,2017 OFFICE OF THE MAJORITY WHIP,2017Q2,GENERAL EXPENDITURES,PERSONNEL COMPENSATION,   ,   ,   ,,NALLS DENNIS A,2017-04-01,2017-06-30,STAFF ASSISTANT,8000.01,2017
,2017 OFFICE OF THE MAJORITY WHIP,2017Q2,GENERAL EXPENDITURES,PERSONNEL COMPENSATION,   ,   ,   ,,NAPIER BENJAMIN W,2017-03-01,2017-06-30,FLOOR ASSISTANT,18000,2017
,2017 OFFICE OF THE MAJORITY WHIP,2017Q2,GENERAL EXPENDITURES,PERSONNEL COMPENSATION,   ,   ,   ,,PLANNING DAVID M,2017-04-01,2017-06-30,SPECIAL ASST TO CHIEF DEP WHIP,7500,2017
,2017 OFFICE OF THE MAJORITY WHIP,2017Q2,GENERAL EXPENDITURES,PERSONNEL COMPENSATION,   ,   ,   ,,PLANNING DAVID M,2017-04-10,2017-04-30,SHARD EMPLOYEE,-583.33,2017
,2017 OFFICE OF THE MAJORITY WHIP,2017Q2,GENERAL EXPENDITURES,PERSONNEL COMPENSATION,   ,   ,   ,,PLANNING DAVID M,2017-04-10,2017-04-30,SHARED EMPLOYEE,583.33,2017
,2017 OFFICE OF THE MAJORITY WHIP,2017Q2,GENERAL EXPENDITURES,PERSONNEL COMPENSATION,   ,   ,   ,,REISER MARTIN G,2017-03-01,2017-06-30,LEGISLATIVE COUNSEL,36758.33,2017
,2017 OFFICE OF THE MAJORITY WHIP,2017Q2,GENERAL EXPENDITURES,PERSONNEL COMPENSATION,   ,   ,   ,,REISING JOHN B,2017-04-01,2017-06-30,DIRECTOR OF OPERATIONS,12033.33,2017
,2017 OFFICE OF THE MAJORITY WHIP,2017Q2,GENERAL EXPENDITURES,PERSONNEL COMPENSATION,   ,   ,   ,,SADLOSKY DANIEL J,2017-04-01,2017-06-30,POLICY ASSISTANT,20000,2017
,2017 OFFICE OF THE MAJORITY WHIP,2017Q2,GENERAL EXPENDITURES,PERSONNEL COMPENSATION,   ,   ,   ,,WIEAND JR JEFFREY L,2017-04-01,2017-06-30,COUNSEL,17680.56,2017
,2017 OFFICE OF THE MAJORITY WHIP,2017Q2,GENERAL EXPENDITURES,PERSONNEL COMPENSATION,   ,   ,   ,,ZULKOSKY ERIC T,2017-04-01,2017-04-15,DIR OF MEMBER SVS & POLICY ADV,1458.33,2017
,2017 OFFICE OF THE MAJORITY WHIP,2017Q2,GENERAL EXPENDITURES,PERSONNEL COMPENSATION,   ,   ,   ,,   ,   ,   ,PERSONNEL COMPENSATION TOTALS:,408616.82,2017
,2017 OFFICE OF THE MAJORITY WHIP,2017Q2,GENERAL EXPENDITURES,TRAVEL,4/14/17,AP,E0505843,,NALLS DENNIS A.,2017-03-01,2017-03-30,PRIVATE AUTO MILEAGE,108.61,2017
,2017 OFFICE OF THE MAJORITY WHIP,2017Q2,GENERAL EXPENDITURES,TRAVEL,5/3/17,AP,E0511790,,CITIBANK GOV CARD SERVICE,2017-04-10,2017-04-16,COMMERCIAL TRANSPORTATION,1158.48,2017
,2017 OFFICE OF THE MAJORITY WHIP,2017Q2,GENERAL EXPENDITURES,TRAVEL,5/4/17,AP,E0511794,,FINE LAUREN R.,2017-04-10,2017-04-12,MEALS,54.55,2017
,2017 OFFICE OF THE MAJORITY WHIP,2017Q2,GENERAL EXPENDITURES,TRAVEL,5/4/17,AP,E0511794,,FINE LAUREN R.,2017-04-10,2017-04-12,TAXI/PARKING/TOLLS,27.51,2017
,2017 OFFICE OF THE MAJORITY WHIP,2017Q2,GENERAL EXPENDITURES,TRAVEL,6/1/17,AP,E0520358,,REISING JOHN BART,2017-05-08,2017-05-12,COMMERCIAL TRANSPORTATION,569.1,2017
,2017 OFFICE OF THE MAJORITY WHIP,2017Q2,GENERAL EXPENDITURES,TRAVEL,6/1/17,AP,E0520363,,HORTON BRETT H.,2017-03-12,2017-04-13,MEALS,58.11,2017
,2017 OFFICE OF THE MAJORITY WHIP,2017Q2,GENERAL EXPENDITURES,TRAVEL,6/1/17,AP,E0520363,,HORTON BRETT H.,2017-04-13,2017-04-23,CAR RENTAL,967.52,2017
,2017 OFFICE OF THE MAJORITY WHIP,2017Q2,GENERAL EXPENDITURES,TRAVEL,6/1/17,AP,E0520363,,HORTON BRETT H.,2017-04-18,2017-04-21,GASOLINE,85.75,2017
,2017 OFFICE OF THE MAJORITY WHIP,2017Q2,GENERAL EXPENDITURES,TRAVEL,6/1/17,AP,E0520363,,HORTON BRETT H.,2017-04-13,2017-05-05,TAXI/PARKING/TOLLS,65,2017
,2017 OFFICE OF THE MAJORITY WHIP,2017Q2,GENERAL EXPENDITURES,TRAVEL,6/5/17,AP,E0521018,,HORTON BRETT H.,2017-05-10,2017-05-11,MEALS,38.25,2017
,2017 OFFICE OF THE MAJORITY WHIP,2017Q2,GENERAL EXPENDITURES,TRAVEL,6/5/17,AP,E0521018,,HORTON BRETT H.,2017-05-10,2017-05-15,CAR RENTAL,1231.31,2017
,2017 OFFICE OF THE MAJORITY WHIP,2017Q2,GENERAL EXPENDITURES,TRAVEL,6/5/17,AP,E0521018,,HORTON BRETT H.,2017-05-12,2017-05-12,GASOLINE,46.56,2017
,2017 OFFICE OF THE MAJORITY WHIP,2017Q2,GENERAL EXPENDITURES,TRAVEL,6/5/17,AP,E0521018,,HORTON BRETT H.,2017-05-10,2017-05-11,TAXI/PARKING/TOLLS,12,2017
,2017 OFFICE OF THE MAJORITY WHIP,2017Q2,GENERAL EXPENDITURES,TRAVEL,6/7/17,AP,E0521015,,DEASE ALEXANDRA E.,2017-05-09,2017-05-09,MEALS,22.5,2017
,2017 OFFICE OF THE MAJORITY WHIP,2017Q2,GENERAL EXPENDITURES,TRAVEL,6/15/17,AP,E0524997,,CITIBANK GOV CARD SERVICE,2017-05-10,2017-05-15,COMMERCIAL TRANSPORTATION,481.6,2017
,2017 OFFICE OF THE MAJORITY WHIP,2017Q2,GENERAL EXPENDITURES,TRAVEL,   ,   ,   ,,   ,   ,   ,TRAVEL TOTALS:,4926.85,2017
,2017 OFFICE OF THE MAJORITY WHIP,2017Q2,GENERAL EXPENDITURES,PRINTING AND REPRODUCTION,4/11/17,AP,E0505841,,ACCURATE WORD LLC,2017-03-22,2017-03-22,PRINTING & REPRODUCTION,320,2017
,2017 OFFICE OF THE MAJORITY WHIP,2017Q2,GENERAL EXPENDITURES,PRINTING AND REPRODUCTION,4/11/17,AP,E0505867,,ACCURATE WORD LLC,2017-03-23,2017-03-23,PRINTING & REPRODUCTION,79.9,2017
,2017 OFFICE OF THE MAJORITY WHIP,2017Q2,GENERAL EXPENDITURES,PRINTING AND REPRODUCTION,4/19/17,AP,917820,,CITI PCARD-FEDEXOFFICE,2017-03-01,2017-03-28,PRINTING & REPRODUCTION,1531.6,2017
,2017 OFFICE OF THE MAJORITY WHIP,2017Q2,GENERAL EXPENDITURES,PRINTING AND REPRODUCTION,4/19/17,AP,917820,,CITI PCARD-LOC CRS,2017-03-01,2017-03-28,MISCELLANEOUS PRINTING,60,2017
,2017 OFFICE OF THE MAJORITY WHIP,2017Q2,GENERAL EXPENDITURES,PRINTING AND REPRODUCTION,5/26/17,GL,PIX0068669,, ,2017-05-01,2017-05-31,PHOTOGRAPHIC (TRANSFER),12.8,2017
,2017 OFFICE OF THE MAJORITY WHIP,2017Q2,GENERAL EXPENDITURES,PRINTING AND REPRODUCTION,6/19/17,AP,929152,,CITI PCARD-FEDEXOFFICE,2017-04-29,2017-05-28,PRINTING & REPRODUCTION,93.28,2017
,2017 OFFICE OF THE MAJORITY WHIP,2017Q2,GENERAL EXPENDITURES,PRINTING AND REPRODUCTION,6/27/17,GL,PIX0069392,, ,2017-06-01,2017-06-30,PHOTOGRAPHIC (TRANSFER),22.75,2017
,2017 OFFICE OF THE MAJORITY WHIP,2017Q2,GENERAL EXPENDITURES,PRINTING AND REPRODUCTION,   ,   ,   ,,   ,   ,   ,PRINTING AND REPRODUCTION TOTALS:,2120.33,2017
,2017 OFFICE OF THE MAJORITY WHIP,2017Q2,GENERAL EXPENDITURES,OTHER SERVICES,4/19/17,AP,917820,,CITI PCARD-PREMIUMBEAT.COM,2017-03-01,2017-03-28,MISCELLANEOUS OTHER SERVICES,49,2017
,2017 OFFICE OF THE MAJORITY WHIP,2017Q2,GENERAL EXPENDITURES,OTHER SERVICES,   ,   ,   ,,   ,   ,   ,OTHER SERVICES TOTALS:,49,2017
,2017 OFFICE OF THE MAJORITY WHIP,2017Q2,GENERAL EXPENDITURES,SUPPLIES AND MATERIALS,4/14/17,AP,E0505842,,QUENCH,2017-04-01,2017-04-30,WATER,46.53,2017
,2017 OFFICE OF THE MAJORITY WHIP,2017Q2,GENERAL EXPENDITURES,SUPPLIES AND MATERIALS,4/19/17,AP,917820,,CITI PCARD-APL  ITUNES.COM/BILL,2017-03-01,2017-03-28,PUBLICATIONS/REFERENCE MAT'L,0.99,2017
,2017 OFFICE OF THE MAJORITY WHIP,2017Q2,GENERAL EXPENDITURES,SUPPLIES AND MATERIALS,4/19/17,AP,917820,,CITI PCARD-FS  ROGUEAMOEBA.COM,2017-03-01,2017-03-28,SOFTWARE  LESS THAN  $500,99,2017
,2017 OFFICE OF THE MAJORITY WHIP,2017Q2,GENERAL EXPENDITURES,SUPPLIES AND MATERIALS,4/19/17,AP,917820,,CITI PCARD-FS  WALLS.IO,2017-03-01,2017-03-28,SOFTWARE  LESS THAN  $500,100,2017
,2017 OFFICE OF THE MAJORITY WHIP,2017Q2,GENERAL EXPENDITURES,SUPPLIES AND MATERIALS,4/19/17,AP,917820,,CITI PCARD-GAINAPP.COM,2017-03-01,2017-03-28,SOFTWARE  LESS THAN  $500,80,2017
,2017 OFFICE OF THE MAJORITY WHIP,2017Q2,GENERAL EXPENDITURES,SUPPLIES AND MATERIALS,4/19/17,AP,917820,,CITI PCARD-SP   PEEL,2017-03-01,2017-03-28,SOFTWARE  LESS THAN  $500,29.99,2017
,2017 OFFICE OF THE MAJORITY WHIP,2017Q2,GENERAL EXPENDITURES,SUPPLIES AND MATERIALS,5/12/17,AP,E0514243,,QUENCH,2017-05-01,2017-05-31,WATER,46.53,2017
,2017 OFFICE OF THE MAJORITY WHIP,2017Q2,GENERAL EXPENDITURES,SUPPLIES AND MATERIALS,5/19/17,AP,923551,,CITI PCARD-APL  ITUNES.COM/BILL,2017-03-29,2017-04-28,SOFTWARE  LESS THAN  $500,0.99,2017
,2017 OFFICE OF THE MAJORITY WHIP,2017Q2,GENERAL EXPENDITURES,SUPPLIES AND MATERIALS,5/19/17,AP,923551,,CITI PCARD-DROPBOX,2017-03-29,2017-04-28,SOFTWARE  LESS THAN  $500,99,2017
,2017 OFFICE OF THE MAJORITY WHIP,2017Q2,GENERAL EXPENDITURES,SUPPLIES AND MATERIALS,5/19/17,AP,923551,,CITI PCARD-FS  WALLS.IO,2017-03-29,2017-04-28,SOFTWARE  LESS THAN  $500,100,2017
,2017 OFFICE OF THE MAJORITY WHIP,2017Q2,GENERAL EXPENDITURES,SUPPLIES AND MATERIALS,5/19/17,AP,923551,,CITI PCARD-GAINAPP.COM,2017-03-29,2017-04-28,PUBLICATIONS/REFERENCE MAT'L,102.06,2017
,2017 OFFICE OF THE MAJORITY WHIP,2017Q2,GENERAL EXPENDITURES,SUPPLIES AND MATERIALS,6/9/17,AP,E0523151,,QUENCH,2017-06-01,2017-06-30,WATER,46.53,2017
,2017 OFFICE OF THE MAJORITY WHIP,2017Q2,GENERAL EXPENDITURES,SUPPLIES AND MATERIALS,6/9/17,AP,E0523174,,QUENCH,2017-01-01,2017-01-31,WATER,46.53,2017
,2017 OFFICE OF THE MAJORITY WHIP,2017Q2,GENERAL EXPENDITURES,SUPPLIES AND MATERIALS,6/14/17,AP,E0524304,,ICONSTITUENT LLC,2017-06-01,2017-06-30,PUBLICATIONS/REFERENCE MAT'L,500,2017
,2017 OFFICE OF THE MAJORITY WHIP,2017Q2,GENERAL EXPENDITURES,SUPPLIES AND MATERIALS,6/19/17,AP,929152,,CITI PCARD-ADOBE  PDF PACK SUBS,2017-04-29,2017-05-28,SOFTWARE  LESS THAN  $500,74.01,2017
,2017 OFFICE OF THE MAJORITY WHIP,2017Q2,GENERAL EXPENDITURES,SUPPLIES AND MATERIALS,6/19/17,AP,929152,,CITI PCARD-APL  ITUNES.COM/BILL,2017-04-29,2017-05-28,PUBLICATIONS/REFERENCE MAT'L,5.99,2017
,2017 OFFICE OF THE MAJORITY WHIP,2017Q2,GENERAL EXPENDITURES,SUPPLIES AND MATERIALS,6/19/17,AP,929152,,CITI PCARD-FS  WALLS.IO,2017-04-29,2017-05-28,SOFTWARE  LESS THAN  $500,100,2017
,2017 OFFICE OF THE MAJORITY WHIP,2017Q2,GENERAL EXPENDITURES,SUPPLIES AND MATERIALS,6/19/17,AP,929152,,CITI PCARD-GAINAPP.COM,2017-04-29,2017-05-28,SOFTWARE  LESS THAN  $500,100,2017
,2017 OFFICE OF THE MAJORITY WHIP,2017Q2,GENERAL EXPENDITURES,SUPPLIES AND MATERIALS,   ,   ,   ,,   ,   ,   ,SUPPLIES AND MATERIALS TOTALS:,1578.15,2017
,2017 OFFICE OF THE MAJORITY WHIP,2017Q2,GENERAL EXPENDITURES,SUPPLIES AND MATERIALS,   ,   ,   ,,   ,   ,   ,GENERAL EXPENDITURES TOTALS:,417291.15,2017
,2017 OFFICE OF THE MAJORITY WHIP,2017Q2,GENERAL EXPENDITURES,SUPPLIES AND MATERIALS,   ,   ,   ,,   ,   ,   ,OFFICE TOTALS: ,417291.15,2017
,2017 OFFICE OF THE MINORITY WHIP,2017Q2,GENERAL EXPENDITURES,PERSONNEL COMPENSATION,   ,   ,   ,,ABOUCHAR KEITH S.,2017-04-01,2017-06-30,SENIOR POLICY ADVISOR,35000.01,2017
,2017 OFFICE OF THE MINORITY WHIP,2017Q2,GENERAL EXPENDITURES,PERSONNEL COMPENSATION,   ,   ,   ,,AVILES DANIELLE R,2017-04-01,2017-06-30,DEPUTY FLOOR DIRECTOR,18750,2017
,2017 OFFICE OF THE MINORITY WHIP,2017Q2,GENERAL EXPENDITURES,PERSONNEL COMPENSATION,   ,   ,   ,,BAUSERMAN TRENTON D,2017-04-01,2017-06-30,SENIOR POLICY ADVISOR,30000,2017
,2017 OFFICE OF THE MINORITY WHIP,2017Q2,GENERAL EXPENDITURES,PERSONNEL COMPENSATION,   ,   ,   ,,BAYER JOHN S,2017-04-01,2017-06-30,STAFF ASSISTANT,6249.99,2017
,2017 OFFICE OF THE MINORITY WHIP,2017Q2,GENERAL EXPENDITURES,PERSONNEL COMPENSATION,   ,   ,   ,,BAYER JOHN S,2017-03-01,2017-05-31,STAFF ASSISTANT (OVERTIME),2776.41,2017
,2017 OFFICE OF THE MINORITY WHIP,2017Q2,GENERAL EXPENDITURES,PERSONNEL COMPENSATION,   ,   ,   ,,COLLINS MICHAEL E.,2017-04-01,2017-06-30,CHIEF DEPUTY WHIP,10625.01,2017
,2017 OFFICE OF THE MINORITY WHIP,2017Q2,GENERAL EXPENDITURES,PERSONNEL COMPENSATION,   ,   ,   ,,CORTINA JOSEPH B,2017-04-01,2017-06-30,SPECIAL ASSISTANT,7250.01,2017
,2017 OFFICE OF THE MINORITY WHIP,2017Q2,GENERAL EXPENDITURES,PERSONNEL COMPENSATION,   ,   ,   ,,CORTINA JOSEPH B,2017-03-01,2017-05-31,SPECIAL ASSISTANT (OVERTIME),2112.23,2017
,2017 OFFICE OF THE MINORITY WHIP,2017Q2,GENERAL EXPENDITURES,PERSONNEL COMPENSATION,   ,   ,   ,,COVEY-BRANDT ALEXIS,2017-04-01,2017-06-30,CHIEF OF STAFF,43125,2017
,2017 OFFICE OF THE MINORITY WHIP,2017Q2,GENERAL EXPENDITURES,PERSONNEL COMPENSATION,   ,   ,   ,,DWYER STEPHEN,2017-04-01,2017-06-30,DIGITAL DIR & POLICY ADV,17250,2017
,2017 OFFICE OF THE MINORITY WHIP,2017Q2,GENERAL EXPENDITURES,PERSONNEL COMPENSATION,   ,   ,   ,,FRY COURTNEY,2017-04-01,2017-06-30,DEP OUTREACH DIR & MEM SER ADV,29583.33,2017
,2017 OFFICE OF THE MINORITY WHIP,2017Q2,GENERAL EXPENDITURES,PERSONNEL COMPENSATION,   ,   ,   ,,GOFF SHUWANZA R,2017-04-01,2017-06-30,FLOOR DIRECTOR,29583.33,2017
,2017 OFFICE OF THE MINORITY WHIP,2017Q2,GENERAL EXPENDITURES,PERSONNEL COMPENSATION,   ,   ,   ,,GRANT KATHRYN L,2017-04-01,2017-06-30,COMM DIR AND SR ADVISOR,33750,2017
,2017 OFFICE OF THE MINORITY WHIP,2017Q2,GENERAL EXPENDITURES,PERSONNEL COMPENSATION,   ,   ,   ,,LEUSCHEN JAMES P.,2017-04-01,2017-06-30,SENIOR POLICY ADVISOR,35000.01,2017
,2017 OFFICE OF THE MINORITY WHIP,2017Q2,GENERAL EXPENDITURES,PERSONNEL COMPENSATION,   ,   ,   ,,MACDONALD CHARLENE,2017-04-01,2017-06-30,SENIOR POLICY ADVISOR,30416.67,2017
,2017 OFFICE OF THE MINORITY WHIP,2017Q2,GENERAL EXPENDITURES,PERSONNEL COMPENSATION,   ,   ,   ,,MAHR THOMAS,2017-04-01,2017-06-30,POLICY DIRECTOR,39999.99,2017
,2017 OFFICE OF THE MINORITY WHIP,2017Q2,GENERAL EXPENDITURES,PERSONNEL COMPENSATION,   ,   ,   ,,MARGOLIS SARA I,2017-04-03,2017-06-30,STAFF ASSISTANT,6111.1,2017
,2017 OFFICE OF THE MINORITY WHIP,2017Q2,GENERAL EXPENDITURES,PERSONNEL COMPENSATION,   ,   ,   ,,MARGOLIS SARA I,2017-04-03,2017-05-31,STAFF ASSISTANT (OVERTIME),1234.97,2017
,2017 OFFICE OF THE MINORITY WHIP,2017Q2,GENERAL EXPENDITURES,PERSONNEL COMPENSATION,   ,   ,   ,,MULKERRIN MARGARET A,2017-04-01,2017-06-30,PRESS AND RESEARCH ASSISTANT,12609.99,2017
,2017 OFFICE OF THE MINORITY WHIP,2017Q2,GENERAL EXPENDITURES,PERSONNEL COMPENSATION,   ,   ,   ,,NELSON CAITLIN M,2017-04-01,2017-04-06,STAFF ASSISTANT,416.67,2017
,2017 OFFICE OF THE MINORITY WHIP,2017Q2,GENERAL EXPENDITURES,PERSONNEL COMPENSATION,   ,   ,   ,,NELSON CAITLIN M,2017-03-01,2017-03-31,STAFF ASSISTANT (OVERTIME),396.63,2017
,2017 OFFICE OF THE MINORITY WHIP,2017Q2,GENERAL EXPENDITURES,PERSONNEL COMPENSATION,   ,   ,   ,,ROMICK BRIAN,2017-04-01,2017-06-30,DEPUTY CHIEF OF STAFF,42500.01,2017
,2017 OFFICE OF THE MINORITY WHIP,2017Q2,GENERAL EXPENDITURES,PERSONNEL COMPENSATION,   ,   ,   ,,ROWE DEBORAH M,2017-04-01,2017-06-30,EXECUTIVE ASSISTANT/OFC MGR,12739.99,2017
,2017 OFFICE OF THE MINORITY WHIP,2017Q2,GENERAL EXPENDITURES,PERSONNEL COMPENSATION,   ,   ,   ,,SAEZ MARIEL S,2017-04-01,2017-06-30,PRESS SECRETARY,2499.99,2017
,2017 OFFICE OF THE MINORITY WHIP,2017Q2,GENERAL EXPENDITURES,PERSONNEL COMPENSATION,   ,   ,   ,,SALAZAR RAYMOND J.,2017-04-01,2017-06-30,FLOOR ASSISTANT,13749.99,2017
,2017 OFFICE OF THE MINORITY WHIP,2017Q2,GENERAL EXPENDITURES,PERSONNEL COMPENSATION,   ,   ,   ,,SILVERBERG DANIEL I,2017-04-01,2017-06-30,SENIOR POLICY ADVISOR,17750.01,2017
,2017 OFFICE OF THE MINORITY WHIP,2017Q2,GENERAL EXPENDITURES,PERSONNEL COMPENSATION,   ,   ,   ,,SILVERBERG DANIEL I,2017-02-01,2017-02-28,SENIOR POLICY ADVISOR (OTHER COMPENSATION),-5000,2017
,2017 OFFICE OF THE MINORITY WHIP,2017Q2,GENERAL EXPENDITURES,PERSONNEL COMPENSATION,   ,   ,   ,,SILVERBERG DANIEL I,2017-02-01,2017-02-28,SENIOR POLICY ADVISOR (OTHER COMPENSATION),5000,2017
,2017 OFFICE OF THE MINORITY WHIP,2017Q2,GENERAL EXPENDITURES,PERSONNEL COMPENSATION,   ,   ,   ,,SUGAR-CARLSGAARD JORDAN,2017-04-01,2017-06-30,DIR OF SCHED & SPECIAL EVENTS,20499.99,2017
,2017 OFFICE OF THE MINORITY WHIP,2017Q2,GENERAL EXPENDITURES,PERSONNEL COMPENSATION,   ,   ,   ,,URRABAZO CLAUDIA,2017-04-01,2017-06-30,DEP. DIR OF MBR SER & OUTR ADV,23000.01,2017
,2017 OFFICE OF THE MINORITY WHIP,2017Q2,GENERAL EXPENDITURES,PERSONNEL COMPENSATION,   ,   ,   ,,WEISSMANN ADAM,2017-04-01,2017-06-30,SPEECHWRITER,18750,2017
,2017 OFFICE OF THE MINORITY WHIP,2017Q2,GENERAL EXPENDITURES,PERSONNEL COMPENSATION,   ,   ,   ,,   ,   ,   ,PERSONNEL COMPENSATION TOTALS:,543731.34,2017
,2017 OFFICE OF THE MINORITY WHIP,2017Q2,GENERAL EXPENDITURES,TRAVEL,5/19/17,AP,E0516950,,FRY COURTNEY,2017-01-03,2017-01-13,TAXI/PARKING/TOLLS,36.76,2017
,2017 OFFICE OF THE MINORITY WHIP,2017Q2,GENERAL EXPENDITURES,TRAVEL,   ,   ,   ,,   ,   ,   ,TRAVEL TOTALS:,36.76,2017
,2017 OFFICE OF THE MINORITY WHIP,2017Q2,GENERAL EXPENDITURES,RENT  COMMUNICATION  UTILITIES,4/19/17,AP,917820,,CITI PCARD-SWA INFLIGHT WIFI,2017-03-01,2017-03-28,UTILITIES,8,2017
,2017 OFFICE OF THE MINORITY WHIP,2017Q2,GENERAL EXPENDITURES,RENT  COMMUNICATION  UTILITIES,5/19/17,AP,923551,,CITI PCARD-UNITED,2017-03-29,2017-04-28,UTILITIES,14.99,2017
,2017 OFFICE OF THE MINORITY WHIP,2017Q2,GENERAL EXPENDITURES,RENT  COMMUNICATION  UTILITIES,5/26/17,GL,GRP0068675,, ,2017-05-01,2017-05-31,HIR GRAPHICS (TRANSFER),2,2017
,2017 OFFICE OF THE MINORITY WHIP,2017Q2,GENERAL EXPENDITURES,RENT  COMMUNICATION  UTILITIES,   ,   ,   ,,   ,   ,   ,RENT  COMMUNICATION  UTILITIES TOTALS:,24.99,2017
,2017 OFFICE OF THE MINORITY WHIP,2017Q2,GENERAL EXPENDITURES,PRINTING AND REPRODUCTION,4/19/17,AP,917820,,CITI PCARD-CANVA FOR WORK MONTHLY,2017-03-01,2017-03-28,PRINTING & REPRODUCTION,12.95,2017
,2017 OFFICE OF THE MINORITY WHIP,2017Q2,GENERAL EXPENDITURES,PRINTING AND REPRODUCTION,5/19/17,AP,923551,,CITI PCARD-FACEBK,2017-03-29,2017-04-28,ADVERTISEMENTS,50,2017
,2017 OFFICE OF THE MINORITY WHIP,2017Q2,GENERAL EXPENDITURES,PRINTING AND REPRODUCTION,6/19/17,AP,929152,,CITI PCARD-CANVA FOR WORK MONTHLY,2017-04-29,2017-05-28,PRINTING & REPRODUCTION,12.95,2017
,2017 OFFICE OF THE MINORITY WHIP,2017Q2,GENERAL EXPENDITURES,PRINTING AND REPRODUCTION,6/19/17,AP,929152,,CITI PCARD-CANVA FOR WORK YEARLY,2017-04-29,2017-05-28,PRINTING & REPRODUCTION,119.4,2017
,2017 OFFICE OF THE MINORITY WHIP,2017Q2,GENERAL EXPENDITURES,PRINTING AND REPRODUCTION,   ,   ,   ,,   ,   ,   ,PRINTING AND REPRODUCTION TOTALS:,195.3,2017
,2017 OFFICE OF THE MINORITY WHIP,2017Q2,GENERAL EXPENDITURES,OTHER SERVICES,4/19/17,AP,917820,,CITI PCARD-DROPBOX,2017-03-01,2017-03-28,NON-TECHNOLOGY SERVICE CONTR,99,2017
,2017 OFFICE OF THE MINORITY WHIP,2017Q2,GENERAL EXPENDITURES,OTHER SERVICES,   ,   ,   ,,   ,   ,   ,OTHER SERVICES TOTALS:,99,2017
,2017 OFFICE OF THE MINORITY WHIP,2017Q2,GENERAL EXPENDITURES,SUPPLIES AND MATERIALS,5/19/17,AP,923551,,CITI PCARD-CANVA FOR WORK MONTHLY,2017-03-29,2017-04-28,PUBLICATIONS/REFERENCE MAT'L,12.95,2017
,2017 OFFICE OF THE MINORITY WHIP,2017Q2,GENERAL EXPENDITURES,SUPPLIES AND MATERIALS,6/1/17,AP,E0520537,,LEADERSHIP DIRECTORIES INC,2017-06-01,2018-03-01,PUBLICATIONS/REFERENCE MAT'L,675,2017
,2017 OFFICE OF THE MINORITY WHIP,2017Q2,GENERAL EXPENDITURES,SUPPLIES AND MATERIALS,   ,   ,   ,,   ,   ,   ,SUPPLIES AND MATERIALS TOTALS:,687.95,2017
,2017 OFFICE OF THE MINORITY WHIP,2017Q2,GENERAL EXPENDITURES,SUPPLIES AND MATERIALS,   ,   ,   ,,   ,   ,   ,GENERAL EXPENDITURES TOTALS:,544775.34,2017
,2017 OFFICE OF THE MINORITY WHIP,2017Q2,GENERAL EXPENDITURES,SUPPLIES AND MATERIALS,   ,   ,   ,,   ,   ,   ,OFFICE TOTALS: ,544775.34,2017
,2016 OFFICE OF THE MINORITY WHIP,2017Q2,GENERAL EXPENDITURES,TRAVEL,5/19/17,AP,E0516950,,FRY COURTNEY,2016-12-16,2016-12-16,TAXI/PARKING/TOLLS,20.88,2016
,2016 OFFICE OF THE MINORITY WHIP,2017Q2,GENERAL EXPENDITURES,TRAVEL,   ,   ,   ,,   ,   ,   ,TRAVEL TOTALS:,20.88,2016
,2016 OFFICE OF THE MINORITY WHIP,2017Q2,GENERAL EXPENDITURES,TRAVEL,   ,   ,   ,,   ,   ,   ,GENERAL EXPENDITURES TOTALS:,20.88,2016
,2016 OFFICE OF THE MINORITY WHIP,2017Q2,GENERAL EXPENDITURES,TRAVEL,   ,   ,   ,,   ,   ,   ,OFFICE TOTALS: ,20.88,2016
,2017 DEMOCRATIC CAUCUS,2017Q2,GENERAL EXPENDITURES,PERSONNEL COMPENSATION,   ,   ,   ,,ASSIM ANISAH,2017-04-01,2017-06-30,STAFF ASSISTANT,6999.99,2017
,2017 DEMOCRATIC CAUCUS,2017Q2,GENERAL EXPENDITURES,PERSONNEL COMPENSATION,   ,   ,   ,,ASSIM ANISAH,2017-03-15,2017-05-31,STAFF ASSISTANT (OVERTIME),1187.3,2017
,2017 DEMOCRATIC CAUCUS,2017Q2,GENERAL EXPENDITURES,PERSONNEL COMPENSATION,   ,   ,   ,,BACKEMEYER COURTNEY G,2017-04-01,2017-06-30,DIR OF STARTEGIC COMM,22500,2017
,2017 DEMOCRATIC CAUCUS,2017Q2,GENERAL EXPENDITURES,PERSONNEL COMPENSATION,   ,   ,   ,,BERNER ALAINA L,2017-04-07,2017-06-30,PRESS ASSISTANT,8166.67,2017
,2017 DEMOCRATIC CAUCUS,2017Q2,GENERAL EXPENDITURES,PERSONNEL COMPENSATION,   ,   ,   ,,CARRILLO MANUEL J,2017-04-01,2017-06-30,DIRECTOR OF OPERATIONS,14833.33,2017
,2017 DEMOCRATIC CAUCUS,2017Q2,GENERAL EXPENDITURES,PERSONNEL COMPENSATION,   ,   ,   ,,CASEY KEVIN,2017-04-01,2017-06-30,POLICY DIRECTOR / VICE CHAIR,32499.99,2017
,2017 DEMOCRATIC CAUCUS,2017Q2,GENERAL EXPENDITURES,PERSONNEL COMPENSATION,   ,   ,   ,,FRENCH LAUREN N,2017-04-01,2017-06-30,COMMUNICATIONS DIRECTOR,11250,2017
,2017 DEMOCRATIC CAUCUS,2017Q2,GENERAL EXPENDITURES,PERSONNEL COMPENSATION,   ,   ,   ,,GOLDBERG NICOLE E.,2017-04-01,2017-06-30,SR. CAUCUS POLICY ADVISOR,17000.01,2017
,2017 DEMOCRATIC CAUCUS,2017Q2,GENERAL EXPENDITURES,PERSONNEL COMPENSATION,   ,   ,   ,,HORTA CHRISTOFER,2017-04-01,2017-06-30,STAFF ASSISTANT,7500,2017
,2017 DEMOCRATIC CAUCUS,2017Q2,GENERAL EXPENDITURES,PERSONNEL COMPENSATION,   ,   ,   ,,HORTA CHRISTOFER,2017-03-01,2017-05-31,STAFF ASSISTANT (OVERTIME),2012.21,2017
,2017 DEMOCRATIC CAUCUS,2017Q2,GENERAL EXPENDITURES,PERSONNEL COMPENSATION,   ,   ,   ,,KEATING KATHERINE E.,2017-04-01,2017-04-30,CHIEF OF STAFF,7187.5,2017
,2017 DEMOCRATIC CAUCUS,2017Q2,GENERAL EXPENDITURES,PERSONNEL COMPENSATION,   ,   ,   ,,KEATING KATHERINE E.,2017-05-01,2017-06-30,CHIEF OF STAFF,14375,2017
,2017 DEMOCRATIC CAUCUS,2017Q2,GENERAL EXPENDITURES,PERSONNEL COMPENSATION,   ,   ,   ,,LOPEZ-SANDOVAL ELIZABETH,2017-05-22,2017-06-30,PRESS SEC&DIR OF HISPANIC MEDI,5416.67,2017
,2017 DEMOCRATIC CAUCUS,2017Q2,GENERAL EXPENDITURES,PERSONNEL COMPENSATION,   ,   ,   ,,MARTINEZ ANTHONY M,2017-04-01,2017-06-30,DIGITAL STRATEGIST,16250.01,2017
,2017 DEMOCRATIC CAUCUS,2017Q2,GENERAL EXPENDITURES,PERSONNEL COMPENSATION,   ,   ,   ,,PERRY TROY A,2017-06-10,2017-06-30,DIR. OF MEMBER SERVICES & OUTR,5430.56,2017
,2017 DEMOCRATIC CAUCUS,2017Q2,GENERAL EXPENDITURES,PERSONNEL COMPENSATION,   ,   ,   ,,SACHSE ANDREW M,2017-04-01,2017-06-30,OUTREACH AND MEMBER SERVICES,12500.01,2017
,2017 DEMOCRATIC CAUCUS,2017Q2,GENERAL EXPENDITURES,PERSONNEL COMPENSATION,   ,   ,   ,,SANCHEZ CARLOS S.,2017-04-01,2017-06-30,EXECUTIVE DIRECTOR,38750.01,2017
,2017 DEMOCRATIC CAUCUS,2017Q2,GENERAL EXPENDITURES,PERSONNEL COMPENSATION,   ,   ,   ,,SMITH SHANE T,2017-05-01,2017-06-30,LEGISLATIVE CORRESPONDENT,6466.66,2017
,2017 DEMOCRATIC CAUCUS,2017Q2,GENERAL EXPENDITURES,PERSONNEL COMPENSATION,   ,   ,   ,,   ,   ,   ,PERSONNEL COMPENSATION TOTALS:,230325.92,2017
,2017 DEMOCRATIC CAUCUS,2017Q2,GENERAL EXPENDITURES,TRAVEL,4/11/17,AP,E0504740,,CARRILLO MANUEL J.,2017-04-03,2017-04-03,TAXI/PARKING/TOLLS,12,2017
,2017 DEMOCRATIC CAUCUS,2017Q2,GENERAL EXPENDITURES,TRAVEL,5/3/17,AP,E0511816,,MARTINEZ ANTHONY M.,2017-04-13,2017-04-13,TAXI/PARKING/TOLLS,6.71,2017
,2017 DEMOCRATIC CAUCUS,2017Q2,GENERAL EXPENDITURES,TRAVEL,5/3/17,AP,E0511816,,MARTINEZ ANTHONY M.,2017-04-19,2017-04-19,TAXI/PARKING/TOLLS,19.28,2017
,2017 DEMOCRATIC CAUCUS,2017Q2,GENERAL EXPENDITURES,TRAVEL,5/30/17,AP,E0519461,,CARRILLO MANUEL J.,2017-05-15,2017-05-15,TAXI/PARKING/TOLLS,9.39,2017
,2017 DEMOCRATIC CAUCUS,2017Q2,GENERAL EXPENDITURES,TRAVEL,6/19/17,AP,E0525468,,CARRILLO MANUEL J.,2017-06-06,2017-06-06,TAXI/PARKING/TOLLS,6.62,2017
,2017 DEMOCRATIC CAUCUS,2017Q2,GENERAL EXPENDITURES,TRAVEL,6/19/17,AP,E0525811,,COHEN NICOLE E.,2017-06-07,2017-06-07,TAXI/PARKING/TOLLS,13.71,2017
,2017 DEMOCRATIC CAUCUS,2017Q2,GENERAL EXPENDITURES,TRAVEL,6/19/17,AP,E0525812,,MARTINEZ ANTHONY M.,2017-04-27,2017-04-27,TAXI/PARKING/TOLLS,14,2017
,2017 DEMOCRATIC CAUCUS,2017Q2,GENERAL EXPENDITURES,TRAVEL,6/19/17,AP,E0525812,,MARTINEZ ANTHONY M.,2017-06-02,2017-06-02,TAXI/PARKING/TOLLS,20,2017
,2017 DEMOCRATIC CAUCUS,2017Q2,GENERAL EXPENDITURES,TRAVEL,6/29/17,AP,E0528392,,CARRILLO MANUEL J.,2017-06-12,2017-06-12,TAXI/PARKING/TOLLS,6.17,2017
,2017 DEMOCRATIC CAUCUS,2017Q2,GENERAL EXPENDITURES,TRAVEL,6/29/17,AP,E0528392,,CARRILLO MANUEL J.,2017-06-20,2017-06-20,TAXI/PARKING/TOLLS,5.75,2017
,2017 DEMOCRATIC CAUCUS,2017Q2,GENERAL EXPENDITURES,TRAVEL,   ,   ,   ,,   ,   ,   ,TRAVEL TOTALS:,113.63,2017
,2017 DEMOCRATIC CAUCUS,2017Q2,GENERAL EXPENDITURES,RENT  COMMUNICATION  UTILITIES,4/19/17,AP,917820,,CITI PCARD-AMAZON.COM,2017-03-01,2017-03-28,POSTAGE / COURIER / BOX RENTAL,23.96,2017
,2017 DEMOCRATIC CAUCUS,2017Q2,GENERAL EXPENDITURES,RENT  COMMUNICATION  UTILITIES,5/19/17,AP,923551,,CITI PCARD-USPS PO,2017-03-29,2017-04-28,POSTAGE / COURIER / BOX RENTAL,2.67,2017
,2017 DEMOCRATIC CAUCUS,2017Q2,GENERAL EXPENDITURES,RENT  COMMUNICATION  UTILITIES,6/26/17,GL,GRP0069370,, ,2017-06-01,2017-06-30,HIR GRAPHICS (TRANSFER),10,2017
,2017 DEMOCRATIC CAUCUS,2017Q2,GENERAL EXPENDITURES,RENT  COMMUNICATION  UTILITIES,   ,   ,   ,,   ,   ,   ,RENT  COMMUNICATION  UTILITIES TOTALS:,36.63,2017
,2017 DEMOCRATIC CAUCUS,2017Q2,GENERAL EXPENDITURES,PRINTING AND REPRODUCTION,4/19/17,AP,917820,,CITI PCARD-GETTY IMAGES,2017-03-01,2017-03-28,PRINTING & REPRODUCTION,950,2017
,2017 DEMOCRATIC CAUCUS,2017Q2,GENERAL EXPENDITURES,PRINTING AND REPRODUCTION,5/19/17,AP,923551,,CITI PCARD-GETTY IMAGES,2017-03-29,2017-04-28,PRINTING & REPRODUCTION,-54.63,2017
,2017 DEMOCRATIC CAUCUS,2017Q2,GENERAL EXPENDITURES,PRINTING AND REPRODUCTION,   ,   ,   ,,   ,   ,   ,PRINTING AND REPRODUCTION TOTALS:,895.37,2017
,2017 DEMOCRATIC CAUCUS,2017Q2,GENERAL EXPENDITURES,SUPPLIES AND MATERIALS,4/10/17,AP,E0503891,,CONGRESS CATERING LLC,2017-03-21,2017-03-21,FOOD & BEVERAGE,960,2017
,2017 DEMOCRATIC CAUCUS,2017Q2,GENERAL EXPENDITURES,SUPPLIES AND MATERIALS,4/11/17,AP,E0503892,,CONGRESS CATERING LLC,2017-03-17,2017-03-17,FOOD & BEVERAGE,2230,2017
,2017 DEMOCRATIC CAUCUS,2017Q2,GENERAL EXPENDITURES,SUPPLIES AND MATERIALS,4/11/17,AP,E0503893,,CONGRESS CATERING LLC,2017-03-15,2017-03-15,FOOD & BEVERAGE,2130,2017
,2017 DEMOCRATIC CAUCUS,2017Q2,GENERAL EXPENDITURES,SUPPLIES AND MATERIALS,4/12/17,AP,E0504733,,CONGRESS CATERING LLC,2017-04-04,2017-04-04,FOOD & BEVERAGE,1069,2017
,2017 DEMOCRATIC CAUCUS,2017Q2,GENERAL EXPENDITURES,SUPPLIES AND MATERIALS,4/19/17,AP,917820,,CITI PCARD-AMAZON MKTPLACE PMTS,2017-03-01,2017-03-28,FOOD & BEVERAGE,394.11,2017
,2017 DEMOCRATIC CAUCUS,2017Q2,GENERAL EXPENDITURES,SUPPLIES AND MATERIALS,4/19/17,AP,917820,,CITI PCARD-AMAZON.COM,2017-03-01,2017-03-28,FOOD & BEVERAGE,112.13,2017
,2017 DEMOCRATIC CAUCUS,2017Q2,GENERAL EXPENDITURES,SUPPLIES AND MATERIALS,4/19/17,AP,917820,,CITI PCARD-BETHESDA BAGELS,2017-03-01,2017-03-28,FOOD & BEVERAGE,2356.77,2017
,2017 DEMOCRATIC CAUCUS,2017Q2,GENERAL EXPENDITURES,SUPPLIES AND MATERIALS,4/19/17,AP,917820,,CITI PCARD-HARRIS TEETER,2017-03-01,2017-03-28,FOOD & BEVERAGE,663.34,2017
,2017 DEMOCRATIC CAUCUS,2017Q2,GENERAL EXPENDITURES,SUPPLIES AND MATERIALS,4/19/17,AP,917820,,CITI PCARD-HARRISTEETER,2017-03-01,2017-03-28,FOOD & BEVERAGE,143.59,2017
,2017 DEMOCRATIC CAUCUS,2017Q2,GENERAL EXPENDITURES,SUPPLIES AND MATERIALS,4/19/17,AP,917820,,CITI PCARD-MAIN EVENT CATERERS,2017-03-01,2017-03-28,FOOD & BEVERAGE,1420,2017
,2017 DEMOCRATIC CAUCUS,2017Q2,GENERAL EXPENDITURES,SUPPLIES AND MATERIALS,4/19/17,AP,917820,,CITI PCARD-SAFEWAY STORE,2017-03-01,2017-03-28,FOOD & BEVERAGE,173.6,2017
,2017 DEMOCRATIC CAUCUS,2017Q2,GENERAL EXPENDITURES,SUPPLIES AND MATERIALS,4/25/17,AP,E0509646,,CONGRESS CATERING LLC,2017-03-20,2017-03-20,FOOD & BEVERAGE,2722.5,2017
,2017 DEMOCRATIC CAUCUS,2017Q2,GENERAL EXPENDITURES,SUPPLIES AND MATERIALS,4/27/17,AP,918003,,DEER PARK,2017-03-31,2017-03-31,WATER,29.99,2017
,2017 DEMOCRATIC CAUCUS,2017Q2,GENERAL EXPENDITURES,SUPPLIES AND MATERIALS,5/15/17,AP,E0514493,,CONGRESS CATERING LLC,2017-05-02,2017-05-02,FOOD & BEVERAGE,1039,2017
,2017 DEMOCRATIC CAUCUS,2017Q2,GENERAL EXPENDITURES,SUPPLIES AND MATERIALS,5/17/17,AP,E0514506,,CAPITOL  HOST,2017-05-03,2017-05-03,FOOD & BEVERAGE,9096,2017
,2017 DEMOCRATIC CAUCUS,2017Q2,GENERAL EXPENDITURES,SUPPLIES AND MATERIALS,5/19/17,AP,923551,,CITI PCARD-AMAZON MKTPLACE PMTS,2017-03-29,2017-04-28,FOOD & BEVERAGE,111.56,2017
,2017 DEMOCRATIC CAUCUS,2017Q2,GENERAL EXPENDITURES,SUPPLIES AND MATERIALS,5/19/17,AP,923551,,CITI PCARD-HARRIS TEETER,2017-03-29,2017-04-28,FOOD & BEVERAGE,67.55,2017
,2017 DEMOCRATIC CAUCUS,2017Q2,GENERAL EXPENDITURES,SUPPLIES AND MATERIALS,5/19/17,AP,923551,,CITI PCARD-INT IN  CONGRESS CATER,2017-03-29,2017-04-28,FOOD & BEVERAGE,702,2017
,2017 DEMOCRATIC CAUCUS,2017Q2,GENERAL EXPENDITURES,SUPPLIES AND MATERIALS,5/19/17,AP,923551,,CITI PCARD-LONGWORTH FC,2017-03-29,2017-04-28,FOOD & BEVERAGE,30.15,2017
,2017 DEMOCRATIC CAUCUS,2017Q2,GENERAL EXPENDITURES,SUPPLIES AND MATERIALS,5/19/17,AP,923551,,CITI PCARD-SAFEWAY STORE,2017-03-29,2017-04-28,FOOD & BEVERAGE,718.28,2017
,2017 DEMOCRATIC CAUCUS,2017Q2,GENERAL EXPENDITURES,SUPPLIES AND MATERIALS,5/23/17,AP,923537,,DEER PARK,2017-04-30,2017-04-30,WATER,29.99,2017
,2017 DEMOCRATIC CAUCUS,2017Q2,GENERAL EXPENDITURES,SUPPLIES AND MATERIALS,6/19/17,AP,929152,,CITI PCARD-AMAZON MKTPLACE PMTS,2017-04-29,2017-05-28,FOOD & BEVERAGE,21.75,2017
,2017 DEMOCRATIC CAUCUS,2017Q2,GENERAL EXPENDITURES,SUPPLIES AND MATERIALS,6/19/17,AP,929152,,CITI PCARD-AMAZON.COM,2017-04-29,2017-05-28,FOOD & BEVERAGE,9.94,2017
,2017 DEMOCRATIC CAUCUS,2017Q2,GENERAL EXPENDITURES,SUPPLIES AND MATERIALS,6/19/17,AP,929152,,CITI PCARD-AMAZON.COM AMZN.COM/BI,2017-04-29,2017-05-28,FOOD & BEVERAGE,82.83,2017
,2017 DEMOCRATIC CAUCUS,2017Q2,GENERAL EXPENDITURES,SUPPLIES AND MATERIALS,6/19/17,AP,929152,,CITI PCARD-BETHESDA BAGELS,2017-04-29,2017-05-28,FOOD & BEVERAGE,998.6,2017
,2017 DEMOCRATIC CAUCUS,2017Q2,GENERAL EXPENDITURES,SUPPLIES AND MATERIALS,6/19/17,AP,929152,,CITI PCARD-CREAMERY DD,2017-04-29,2017-05-28,FOOD & BEVERAGE,26.5,2017
,2017 DEMOCRATIC CAUCUS,2017Q2,GENERAL EXPENDITURES,SUPPLIES AND MATERIALS,6/19/17,AP,929152,,CITI PCARD-FINE SWEET SHOP & BAKE,2017-04-29,2017-05-28,FOOD & BEVERAGE,20.25,2017
,2017 DEMOCRATIC CAUCUS,2017Q2,GENERAL EXPENDITURES,SUPPLIES AND MATERIALS,6/19/17,AP,929152,,CITI PCARD-HARRIS TEETER,2017-04-29,2017-05-28,FOOD & BEVERAGE,526.12,2017
,2017 DEMOCRATIC CAUCUS,2017Q2,GENERAL EXPENDITURES,SUPPLIES AND MATERIALS,6/29/17,AP,929617,,DEER PARK,2017-05-31,2017-05-31,WATER,29.99,2017
,2017 DEMOCRATIC CAUCUS,2017Q2,GENERAL EXPENDITURES,SUPPLIES AND MATERIALS,6/29/17,AP,E0528825,,CONGRESS CATERING LLC,2017-06-21,2017-06-21,FOOD & BEVERAGE,969,2017
,2017 DEMOCRATIC CAUCUS,2017Q2,GENERAL EXPENDITURES,SUPPLIES AND MATERIALS,   ,   ,   ,,   ,   ,   ,SUPPLIES AND MATERIALS TOTALS:,28884.54,2017
,2017 DEMOCRATIC CAUCUS,2017Q2,GENERAL EXPENDITURES,SUPPLIES AND MATERIALS,   ,   ,   ,,   ,   ,   ,GENERAL EXPENDITURES TOTALS:,260256.09,2017
,2017 DEMOCRATIC CAUCUS,2017Q2,GENERAL EXPENDITURES,SUPPLIES AND MATERIALS,   ,   ,   ,,   ,   ,   ,OFFICE TOTALS: ,260256.09,2017
,2017 REPUBLICAN CONFERENCE,2017Q2,GENERAL EXPENDITURES,PERSONNEL COMPENSATION,   ,   ,   ,,BARKLEY RACHEL K,2017-04-01,2017-06-30,DIRECTOR OF OUTREACH,23124.99,2017
,2017 REPUBLICAN CONFERENCE,2017Q2,GENERAL EXPENDITURES,PERSONNEL COMPENSATION,   ,   ,   ,,CROCKER NICHOLAS L,2017-04-01,2017-06-30,MEMBER SERVICES COORDINATOR,15000,2017
,2017 REPUBLICAN CONFERENCE,2017Q2,GENERAL EXPENDITURES,PERSONNEL COMPENSATION,   ,   ,   ,,DEHNEL KENDALL L,2017-04-01,2017-06-30,STAFF ASSISTANT,8201.39,2017
,2017 REPUBLICAN CONFERENCE,2017Q2,GENERAL EXPENDITURES,PERSONNEL COMPENSATION,   ,   ,   ,,DEUTSCH JEREMY,2017-04-01,2017-06-30,CHIEF OF STAFF,42375,2017
,2017 REPUBLICAN CONFERENCE,2017Q2,GENERAL EXPENDITURES,PERSONNEL COMPENSATION,   ,   ,   ,,FINE GAVRIELA R,2017-04-01,2017-06-30,STAFF ASSIST/EXC ASSIST TO COS,8124.99,2017
,2017 REPUBLICAN CONFERENCE,2017Q2,GENERAL EXPENDITURES,PERSONNEL COMPENSATION,   ,   ,   ,,FUHS MOLLY B,2017-04-01,2017-06-01,PRESS SECRETARY,9580.56,2017
,2017 REPUBLICAN CONFERENCE,2017Q2,GENERAL EXPENDITURES,PERSONNEL COMPENSATION,   ,   ,   ,,FUHS MOLLY B,2017-06-01,2017-06-30,CONFERENCE PRESS SECRETARY,6138.89,2017
,2017 REPUBLICAN CONFERENCE,2017Q2,GENERAL EXPENDITURES,PERSONNEL COMPENSATION,   ,   ,   ,,HALL MIKAYLA M,2017-04-01,2017-06-30,SPEECH WRITER,13183.33,2017
,2017 REPUBLICAN CONFERENCE,2017Q2,GENERAL EXPENDITURES,PERSONNEL COMPENSATION,   ,   ,   ,,HAUCK KARA,2017-04-01,2017-06-30,COMMUNICATIONS DIRECTOR,23750.01,2017
,2017 REPUBLICAN CONFERENCE,2017Q2,GENERAL EXPENDITURES,PERSONNEL COMPENSATION,   ,   ,   ,,HODSON NATHAN M,2017-04-01,2017-06-30,DEPUTY CHIEF OF STAFF,41250,2017
,2017 REPUBLICAN CONFERENCE,2017Q2,GENERAL EXPENDITURES,PERSONNEL COMPENSATION,   ,   ,   ,,JOHNSON STEVEN R,2017-05-04,2017-06-16,INTERN,866.67,2017
,2017 REPUBLICAN CONFERENCE,2017Q2,GENERAL EXPENDITURES,PERSONNEL COMPENSATION,   ,   ,   ,,KING EMILY P,2017-04-01,2017-06-04,DEPUTY SCHEDULER,6222.23,2017
,2017 REPUBLICAN CONFERENCE,2017Q2,GENERAL EXPENDITURES,PERSONNEL COMPENSATION,   ,   ,   ,,KING EMILY P,2017-06-01,2017-06-30,SCHEDULER,3250,2017
,2017 REPUBLICAN CONFERENCE,2017Q2,GENERAL EXPENDITURES,PERSONNEL COMPENSATION,   ,   ,   ,,MCQUADE KATHRYN E,2017-04-01,2017-06-30,MEDIA AFFAIRS AND EVENTS COORD,21249.99,2017
,2017 REPUBLICAN CONFERENCE,2017Q2,GENERAL EXPENDITURES,PERSONNEL COMPENSATION,   ,   ,   ,,POWELL JARED K,2017-04-01,2017-06-30,STAFF ASSISTANT,4282.36,2017
,2017 REPUBLICAN CONFERENCE,2017Q2,GENERAL EXPENDITURES,PERSONNEL COMPENSATION,   ,   ,   ,,POWELL JARED K,2017-04-10,2017-04-30,SHARED EMPLOYEE,-1400,2017
,2017 REPUBLICAN CONFERENCE,2017Q2,GENERAL EXPENDITURES,PERSONNEL COMPENSATION,   ,   ,   ,,POWELL JARED K,2017-04-10,2017-04-30,SHARED EMPLOYEE,1400,2017
,2017 REPUBLICAN CONFERENCE,2017Q2,GENERAL EXPENDITURES,PERSONNEL COMPENSATION,   ,   ,   ,,ROGERS SARAH E,2017-04-01,2017-06-30,DIRECTOR OF MEMBER SERVICES,31250.01,2017
,2017 REPUBLICAN CONFERENCE,2017Q2,GENERAL EXPENDITURES,PERSONNEL COMPENSATION,   ,   ,   ,,ROOS AMBER E,2017-04-01,2017-06-30,FINANCE ASSISTANT,1722.21,2017
,2017 REPUBLICAN CONFERENCE,2017Q2,GENERAL EXPENDITURES,PERSONNEL COMPENSATION,   ,   ,   ,,ROSS JOHN E.,2017-04-01,2017-06-30,FINANCE DIRECTOR,2715.27,2017
,2017 REPUBLICAN CONFERENCE,2017Q2,GENERAL EXPENDITURES,PERSONNEL COMPENSATION,   ,   ,   ,,ROSS ABIGAIL E,2017-06-01,2017-06-30,SHARED EMPLOYEE,2100,2017
,2017 REPUBLICAN CONFERENCE,2017Q2,GENERAL EXPENDITURES,PERSONNEL COMPENSATION,   ,   ,   ,,SMENTEK DAVID,2017-04-01,2017-06-30,POLICY COORDINATOR,7500,2017
,2017 REPUBLICAN CONFERENCE,2017Q2,GENERAL EXPENDITURES,PERSONNEL COMPENSATION,   ,   ,   ,,STEELE SOPHIA A,2017-06-19,2017-06-30,SPECIAL ASSISTANT,1625,2017
,2017 REPUBLICAN CONFERENCE,2017Q2,GENERAL EXPENDITURES,PERSONNEL COMPENSATION,   ,   ,   ,,SUNDAY JESSICA M,2017-04-01,2017-06-02,DIR OF OPERATIONS & CULTURE,13538.38,2017
,2017 REPUBLICAN CONFERENCE,2017Q2,GENERAL EXPENDITURES,PERSONNEL COMPENSATION,   ,   ,   ,,THORNE DRAY A,2017-04-01,2017-06-30,SYSTEMS ADMINISTRATOR,21500.01,2017
,2017 REPUBLICAN CONFERENCE,2017Q2,GENERAL EXPENDITURES,PERSONNEL COMPENSATION,   ,   ,   ,,WANDEL BRYAN P,2017-04-01,2017-04-30,FINANCE ASSISTANT,2750,2017
,2017 REPUBLICAN CONFERENCE,2017Q2,GENERAL EXPENDITURES,PERSONNEL COMPENSATION,   ,   ,   ,,   ,   ,   ,PERSONNEL COMPENSATION TOTALS:,311301.29,2017
,2017 REPUBLICAN CONFERENCE,2017Q2,GENERAL EXPENDITURES,TRAVEL,4/13/17,AP,E0505245,,CITIBANK GOV CARD SERVICE,2017-03-01,2017-03-22,TAXI/PARKING/TOLLS,27.92,2017
,2017 REPUBLICAN CONFERENCE,2017Q2,GENERAL EXPENDITURES,TRAVEL,5/18/17,AP,E0516522,,CITIBANK GOV CARD SERVICE,2017-03-29,2017-04-21,TAXI/PARKING/TOLLS,71.95,2017
,2017 REPUBLICAN CONFERENCE,2017Q2,GENERAL EXPENDITURES,TRAVEL,6/14/17,AP,924950,,BARKLEY RACHEL K.,2017-05-09,2017-05-09,COMMERCIAL TRANSPORTATION,166.3,2017
,2017 REPUBLICAN CONFERENCE,2017Q2,GENERAL EXPENDITURES,TRAVEL,6/14/17,AP,924950,,BARKLEY RACHEL K.,2017-05-12,2017-05-12,COMMERCIAL TRANSPORTATION,131.8,2017
,2017 REPUBLICAN CONFERENCE,2017Q2,GENERAL EXPENDITURES,TRAVEL,6/14/17,AP,924950,,BARKLEY RACHEL K.,2017-05-09,2017-05-12,CAR RENTAL,157.36,2017
,2017 REPUBLICAN CONFERENCE,2017Q2,GENERAL EXPENDITURES,TRAVEL,6/14/17,AP,924950,,BARKLEY RACHEL K.,2017-05-09,2017-05-12,TAXI/PARKING/TOLLS,60,2017
,2017 REPUBLICAN CONFERENCE,2017Q2,GENERAL EXPENDITURES,TRAVEL,6/14/17,AP,E0524577,,CITIBANK GOV CARD SERVICE,2017-05-03,2017-05-24,TAXI/PARKING/TOLLS,47.68,2017
,2017 REPUBLICAN CONFERENCE,2017Q2,GENERAL EXPENDITURES,TRAVEL,   ,   ,   ,,   ,   ,   ,TRAVEL TOTALS:,663.01,2017
,2017 REPUBLICAN CONFERENCE,2017Q2,GENERAL EXPENDITURES,RENT  COMMUNICATION  UTILITIES,6/19/17,AP,929152,,CITI PCARD-FEDEX FREIGHT INC,2017-04-29,2017-05-28,POSTAGE / COURIER / BOX RENTAL,203.08,2017
,2017 REPUBLICAN CONFERENCE,2017Q2,GENERAL EXPENDITURES,RENT  COMMUNICATION  UTILITIES,   ,   ,   ,,   ,   ,   ,RENT  COMMUNICATION  UTILITIES TOTALS:,203.08,2017
,2017 REPUBLICAN CONFERENCE,2017Q2,GENERAL EXPENDITURES,PRINTING AND REPRODUCTION,4/19/17,AP,915416,,ACCURATE WORD LLC,2017-02-27,2017-02-27,PRINTING & REPRODUCTION,-39.95,2017
,2017 REPUBLICAN CONFERENCE,2017Q2,GENERAL EXPENDITURES,PRINTING AND REPRODUCTION,4/19/17,AP,917820,,CITI PCARD-ADESPRESSO INC.,2017-03-01,2017-03-28,ADVERTISEMENTS,294,2017
,2017 REPUBLICAN CONFERENCE,2017Q2,GENERAL EXPENDITURES,PRINTING AND REPRODUCTION,4/19/17,AP,917820,,CITI PCARD-FACEBK,2017-03-01,2017-03-28,ADVERTISEMENTS,2510.27,2017
,2017 REPUBLICAN CONFERENCE,2017Q2,GENERAL EXPENDITURES,PRINTING AND REPRODUCTION,4/19/17,AP,917820,,CITI PCARD-GETTY IMAGES,2017-03-01,2017-03-28,PRINTING & REPRODUCTION,99,2017
,2017 REPUBLICAN CONFERENCE,2017Q2,GENERAL EXPENDITURES,PRINTING AND REPRODUCTION,4/19/17,AP,917820,,CITI PCARD-GOOGLE  ADWS,2017-03-01,2017-03-28,ADVERTISEMENTS,1100,2017
,2017 REPUBLICAN CONFERENCE,2017Q2,GENERAL EXPENDITURES,PRINTING AND REPRODUCTION,5/19/17,AP,923551,,CITI PCARD-FACEBK,2017-03-29,2017-04-28,ADVERTISEMENTS,2661.66,2017
,2017 REPUBLICAN CONFERENCE,2017Q2,GENERAL EXPENDITURES,PRINTING AND REPRODUCTION,5/19/17,AP,923551,,CITI PCARD-GETTY IMAGES,2017-03-29,2017-04-28,PRINTING & REPRODUCTION,99,2017
,2017 REPUBLICAN CONFERENCE,2017Q2,GENERAL EXPENDITURES,PRINTING AND REPRODUCTION,5/19/17,AP,923551,,CITI PCARD-GOOGLE  ADWS,2017-03-29,2017-04-28,ADVERTISEMENTS,9.04,2017
,2017 REPUBLICAN CONFERENCE,2017Q2,GENERAL EXPENDITURES,PRINTING AND REPRODUCTION,5/19/17,AP,923551,,CITI PCARD-HERITAGE PRINTING & GR,2017-03-29,2017-04-28,PRINTING & REPRODUCTION,781.52,2017
,2017 REPUBLICAN CONFERENCE,2017Q2,GENERAL EXPENDITURES,PRINTING AND REPRODUCTION,6/19/17,AP,929152,,CITI PCARD-FACEBK,2017-04-29,2017-05-28,ADVERTISEMENTS,2075.37,2017
,2017 REPUBLICAN CONFERENCE,2017Q2,GENERAL EXPENDITURES,PRINTING AND REPRODUCTION,6/19/17,AP,929152,,CITI PCARD-GETTY IMAGES,2017-04-29,2017-05-28,PRINTING & REPRODUCTION,99,2017
,2017 REPUBLICAN CONFERENCE,2017Q2,GENERAL EXPENDITURES,PRINTING AND REPRODUCTION,6/19/17,AP,929152,,CITI PCARD-WWW.ISTOCK.COM,2017-04-29,2017-05-28,PRINTING & REPRODUCTION,60,2017
,2017 REPUBLICAN CONFERENCE,2017Q2,GENERAL EXPENDITURES,PRINTING AND REPRODUCTION,   ,   ,   ,,   ,   ,   ,PRINTING AND REPRODUCTION TOTALS:,9748.91,2017
,2017 REPUBLICAN CONFERENCE,2017Q2,GENERAL EXPENDITURES,OTHER SERVICES,4/19/17,AP,917820,,CITI PCARD-CLASSICLEANERS,2017-03-01,2017-03-28,LAUNDRY SERVICES,20.99,2017
,2017 REPUBLICAN CONFERENCE,2017Q2,GENERAL EXPENDITURES,OTHER SERVICES,6/14/17,AP,924950,,BARKLEY RACHEL K.,2017-05-09,2017-05-12,TRAINING,300,2017
,2017 REPUBLICAN CONFERENCE,2017Q2,GENERAL EXPENDITURES,OTHER SERVICES,   ,   ,   ,,   ,   ,   ,OTHER SERVICES TOTALS:,320.99,2017
,2017 REPUBLICAN CONFERENCE,2017Q2,GENERAL EXPENDITURES,SUPPLIES AND MATERIALS,4/3/17,AP,E0501793,,CROCKER NICHOLAS L.,2017-03-16,2017-03-16,FOOD & BEVERAGE,44.03,2017
,2017 REPUBLICAN CONFERENCE,2017Q2,GENERAL EXPENDITURES,SUPPLIES AND MATERIALS,4/4/17,AP,E0502090,,SUNDAY JESSICA M.,2017-03-26,2017-03-26,FOOD & BEVERAGE,13.83,2017
,2017 REPUBLICAN CONFERENCE,2017Q2,GENERAL EXPENDITURES,SUPPLIES AND MATERIALS,4/7/17,AP,E0503462,,ARAMARK REFRESHMENT SERVICES,2017-03-03,2017-03-03,FOOD & BEVERAGE,769.02,2017
,2017 REPUBLICAN CONFERENCE,2017Q2,GENERAL EXPENDITURES,SUPPLIES AND MATERIALS,4/7/17,AP,E0503464,,SUNDAY JESSICA M.,2017-03-27,2017-03-27,FOOD & BEVERAGE,97.1,2017
,2017 REPUBLICAN CONFERENCE,2017Q2,GENERAL EXPENDITURES,SUPPLIES AND MATERIALS,4/7/17,AP,E0503465,,CROCKER NICHOLAS L.,2017-03-28,2017-03-29,FOOD & BEVERAGE,416.02,2017
,2017 REPUBLICAN CONFERENCE,2017Q2,GENERAL EXPENDITURES,SUPPLIES AND MATERIALS,4/11/17,AP,E0504280,,HAGUE QUALITY WATER OF MD INC,2017-04-01,2017-04-30,WATER,63,2017
,2017 REPUBLICAN CONFERENCE,2017Q2,GENERAL EXPENDITURES,SUPPLIES AND MATERIALS,4/12/17,AP,913584,,POLITICO LLC,2017-09-21,2017-12-31,PUBLICATIONS/REFERENCE MAT'L,2470.35,2017
,2017 REPUBLICAN CONFERENCE,2017Q2,GENERAL EXPENDITURES,SUPPLIES AND MATERIALS,4/14/17,AP,E0505815,,ARAMARK REFRESHMENT SERVICES,2017-03-31,2017-03-31,FOOD & BEVERAGE,518.56,2017
,2017 REPUBLICAN CONFERENCE,2017Q2,GENERAL EXPENDITURES,SUPPLIES AND MATERIALS,4/19/17,AP,917820,,CITI PCARD-ADOBE  CREATIVE CLOUD,2017-03-01,2017-03-28,SOFTWARE  LESS THAN  $500,370.07,2017
,2017 REPUBLICAN CONFERENCE,2017Q2,GENERAL EXPENDITURES,SUPPLIES AND MATERIALS,4/19/17,AP,917820,,CITI PCARD-AMAZON MKTPLACE PMTS,2017-03-01,2017-03-28,FOOD & BEVERAGE,748.07,2017
,2017 REPUBLICAN CONFERENCE,2017Q2,GENERAL EXPENDITURES,SUPPLIES AND MATERIALS,4/19/17,AP,917820,,CITI PCARD-CHICK-FIL-A,2017-03-01,2017-03-28,FOOD & BEVERAGE,5907.75,2017
,2017 REPUBLICAN CONFERENCE,2017Q2,GENERAL EXPENDITURES,SUPPLIES AND MATERIALS,4/19/17,AP,917820,,CITI PCARD-CORNER BAKERY,2017-03-01,2017-03-28,FOOD & BEVERAGE,5236.83,2017
,2017 REPUBLICAN CONFERENCE,2017Q2,GENERAL EXPENDITURES,SUPPLIES AND MATERIALS,4/19/17,AP,917820,,CITI PCARD-CREAMERY DD,2017-03-01,2017-03-28,FOOD & BEVERAGE,76.5,2017
,2017 REPUBLICAN CONFERENCE,2017Q2,GENERAL EXPENDITURES,SUPPLIES AND MATERIALS,4/19/17,AP,917820,,CITI PCARD-DOMINO'S,2017-03-01,2017-03-28,FOOD & BEVERAGE,674.28,2017
,2017 REPUBLICAN CONFERENCE,2017Q2,GENERAL EXPENDITURES,SUPPLIES AND MATERIALS,4/19/17,AP,917820,,CITI PCARD-GOLDBERGS NY BAGELS,2017-03-01,2017-03-28,FOOD & BEVERAGE,613.81,2017
,2017 REPUBLICAN CONFERENCE,2017Q2,GENERAL EXPENDITURES,SUPPLIES AND MATERIALS,4/19/17,AP,917820,,CITI PCARD-PANERA BREAD,2017-03-01,2017-03-28,FOOD & BEVERAGE,730.27,2017
,2017 REPUBLICAN CONFERENCE,2017Q2,GENERAL EXPENDITURES,SUPPLIES AND MATERIALS,4/19/17,AP,917820,,CITI PCARD-PAPA JOHN'S,2017-03-01,2017-03-28,FOOD & BEVERAGE,263.25,2017
,2017 REPUBLICAN CONFERENCE,2017Q2,GENERAL EXPENDITURES,SUPPLIES AND MATERIALS,4/19/17,AP,917820,,CITI PCARD-POTBELLY,2017-03-01,2017-03-28,FOOD & BEVERAGE,193.1,2017
,2017 REPUBLICAN CONFERENCE,2017Q2,GENERAL EXPENDITURES,SUPPLIES AND MATERIALS,4/19/17,AP,917820,,CITI PCARD-ROTI MEDITERRANEAN GRI,2017-03-01,2017-03-28,FOOD & BEVERAGE,200,2017
,2017 REPUBLICAN CONFERENCE,2017Q2,GENERAL EXPENDITURES,SUPPLIES AND MATERIALS,4/19/17,AP,917820,,CITI PCARD-SQU SQ  CAPTAIN COOKIE,2017-03-01,2017-03-28,FOOD & BEVERAGE,110,2017
,2017 REPUBLICAN CONFERENCE,2017Q2,GENERAL EXPENDITURES,SUPPLIES AND MATERIALS,4/19/17,AP,917820,,CITI PCARD-SQU SQ  ZORBA'S CAFE,2017-03-01,2017-03-28,FOOD & BEVERAGE,369,2017
,2017 REPUBLICAN CONFERENCE,2017Q2,GENERAL EXPENDITURES,SUPPLIES AND MATERIALS,4/19/17,AP,917820,,CITI PCARD-STARBUCKS STORE,2017-03-01,2017-03-28,FOOD & BEVERAGE,181.3,2017
,2017 REPUBLICAN CONFERENCE,2017Q2,GENERAL EXPENDITURES,SUPPLIES AND MATERIALS,4/19/17,AP,917820,,CITI PCARD-WHOLEFDS GWU,2017-03-01,2017-03-28,FOOD & BEVERAGE,115.67,2017
,2017 REPUBLICAN CONFERENCE,2017Q2,GENERAL EXPENDITURES,SUPPLIES AND MATERIALS,4/21/17,AP,E0508104,,CROCKER NICHOLAS L.,2017-03-31,2017-04-11,FOOD & BEVERAGE,1065.03,2017
,2017 REPUBLICAN CONFERENCE,2017Q2,GENERAL EXPENDITURES,SUPPLIES AND MATERIALS,4/27/17,AP,918003,,DEER PARK,2017-03-31,2017-03-31,WATER,628.7,2017
,2017 REPUBLICAN CONFERENCE,2017Q2,GENERAL EXPENDITURES,SUPPLIES AND MATERIALS,5/10/17,AP,E0513334,,HAGUE QUALITY WATER OF MD INC,2017-05-01,2017-05-31,WATER,63,2017
,2017 REPUBLICAN CONFERENCE,2017Q2,GENERAL EXPENDITURES,SUPPLIES AND MATERIALS,5/11/17,AP,E0514020,,ARAMARK REFRESHMENT SERVICES,2017-04-28,2017-04-28,FOOD & BEVERAGE,707.21,2017
,2017 REPUBLICAN CONFERENCE,2017Q2,GENERAL EXPENDITURES,SUPPLIES AND MATERIALS,5/18/17,AP,E0516433,,HODSON NATHAN,2017-03-17,2017-03-17,FOOD & BEVERAGE,77.1,2017
,2017 REPUBLICAN CONFERENCE,2017Q2,GENERAL EXPENDITURES,SUPPLIES AND MATERIALS,5/19/17,AP,923551,,CITI PCARD-ADOBE  CREATIVE CLOUD,2017-03-29,2017-04-28,SOFTWARE  LESS THAN  $500,296.06,2017
,2017 REPUBLICAN CONFERENCE,2017Q2,GENERAL EXPENDITURES,SUPPLIES AND MATERIALS,5/19/17,AP,923551,,CITI PCARD-CHICK-FIL-A,2017-03-29,2017-04-28,FOOD & BEVERAGE,2461.01,2017
,2017 REPUBLICAN CONFERENCE,2017Q2,GENERAL EXPENDITURES,SUPPLIES AND MATERIALS,5/19/17,AP,923551,,CITI PCARD-CORNER BAKERY,2017-03-29,2017-04-28,FOOD & BEVERAGE,2306.43,2017
,2017 REPUBLICAN CONFERENCE,2017Q2,GENERAL EXPENDITURES,SUPPLIES AND MATERIALS,5/19/17,AP,923551,,CITI PCARD-COSI,2017-03-29,2017-04-28,FOOD & BEVERAGE,200,2017
,2017 REPUBLICAN CONFERENCE,2017Q2,GENERAL EXPENDITURES,SUPPLIES AND MATERIALS,5/19/17,AP,923551,,CITI PCARD-LEVELUP POTBELLY,2017-03-29,2017-04-28,FOOD & BEVERAGE,188.3,2017
,2017 REPUBLICAN CONFERENCE,2017Q2,GENERAL EXPENDITURES,SUPPLIES AND MATERIALS,5/19/17,AP,923551,,CITI PCARD-PANERA BREAD,2017-03-29,2017-04-28,FOOD & BEVERAGE,822.92,2017
,2017 REPUBLICAN CONFERENCE,2017Q2,GENERAL EXPENDITURES,SUPPLIES AND MATERIALS,5/19/17,AP,923551,,CITI PCARD-QDOBA MEXICAN GRIL,2017-03-29,2017-04-28,FOOD & BEVERAGE,403.6,2017
,2017 REPUBLICAN CONFERENCE,2017Q2,GENERAL EXPENDITURES,SUPPLIES AND MATERIALS,5/19/17,AP,923551,,CITI PCARD-SQU SQ  ZORBA'S CAF_�,2017-03-29,2017-04-28,FOOD & BEVERAGE,480.5,2017
,2017 REPUBLICAN CONFERENCE,2017Q2,GENERAL EXPENDITURES,SUPPLIES AND MATERIALS,5/19/17,AP,923551,,CITI PCARD-STA STARBUCKSSTORE.COM,2017-03-29,2017-04-28,FOOD & BEVERAGE,1830.28,2017
,2017 REPUBLICAN CONFERENCE,2017Q2,GENERAL EXPENDITURES,SUPPLIES AND MATERIALS,5/19/17,AP,923551,,CITI PCARD-WHOLEFDS CYC,2017-03-29,2017-04-28,FOOD & BEVERAGE,50.64,2017
,2017 REPUBLICAN CONFERENCE,2017Q2,GENERAL EXPENDITURES,SUPPLIES AND MATERIALS,5/23/17,AP,923537,,DEER PARK,2017-04-30,2017-04-30,WATER,254.45,2017
,2017 REPUBLICAN CONFERENCE,2017Q2,GENERAL EXPENDITURES,SUPPLIES AND MATERIALS,5/30/17,AP,E0519438,,ARAMARK REFRESHMENT SERVICES,2017-04-11,2017-04-11,WATER,66.49,2017
,2017 REPUBLICAN CONFERENCE,2017Q2,GENERAL EXPENDITURES,SUPPLIES AND MATERIALS,6/9/17,AP,E0523143,,HAGUE QUALITY WATER OF MD INC,2017-06-01,2017-06-30,WATER,63,2017
,2017 REPUBLICAN CONFERENCE,2017Q2,GENERAL EXPENDITURES,SUPPLIES AND MATERIALS,6/14/17,AP,924409,,POLITICO LLC,2017-09-21,2017-12-31,PUBLICATIONS/REFERENCE MAT'L,-2470.35,2017
,2017 REPUBLICAN CONFERENCE,2017Q2,GENERAL EXPENDITURES,SUPPLIES AND MATERIALS,6/14/17,AP,E0523374,,CROCKER NICHOLAS L.,2017-05-30,2017-05-30,FOOD & BEVERAGE,1006.7,2017
,2017 REPUBLICAN CONFERENCE,2017Q2,GENERAL EXPENDITURES,SUPPLIES AND MATERIALS,6/19/17,AP,929152,,CITI PCARD-ADOBE  CREATIVE CLOUD,2017-04-29,2017-05-28,SOFTWARE  LESS THAN  $500,296.06,2017
,2017 REPUBLICAN CONFERENCE,2017Q2,GENERAL EXPENDITURES,SUPPLIES AND MATERIALS,6/19/17,AP,929152,,CITI PCARD-CHICK-FIL-A,2017-04-29,2017-05-28,FOOD & BEVERAGE,1677.74,2017
,2017 REPUBLICAN CONFERENCE,2017Q2,GENERAL EXPENDITURES,SUPPLIES AND MATERIALS,6/19/17,AP,929152,,CITI PCARD-CORNER BAKERY,2017-04-29,2017-05-28,FOOD & BEVERAGE,2861.51,2017
,2017 REPUBLICAN CONFERENCE,2017Q2,GENERAL EXPENDITURES,SUPPLIES AND MATERIALS,6/19/17,AP,929152,,CITI PCARD-CREAMERY DD,2017-04-29,2017-05-28,FOOD & BEVERAGE,51,2017
,2017 REPUBLICAN CONFERENCE,2017Q2,GENERAL EXPENDITURES,SUPPLIES AND MATERIALS,6/19/17,AP,929152,,CITI PCARD-LE BON CAFE AND SPLEND,2017-04-29,2017-05-28,FOOD & BEVERAGE,302.11,2017
,2017 REPUBLICAN CONFERENCE,2017Q2,GENERAL EXPENDITURES,SUPPLIES AND MATERIALS,6/19/17,AP,929152,,CITI PCARD-QDOBA MEXICAN GRIL,2017-04-29,2017-05-28,FOOD & BEVERAGE,264.57,2017
,2017 REPUBLICAN CONFERENCE,2017Q2,GENERAL EXPENDITURES,SUPPLIES AND MATERIALS,6/19/17,AP,929152,,CITI PCARD-SQU SQ  ZORBA'S CAFE,2017-04-29,2017-05-28,FOOD & BEVERAGE,369,2017
,2017 REPUBLICAN CONFERENCE,2017Q2,GENERAL EXPENDITURES,SUPPLIES AND MATERIALS,6/19/17,AP,929152,,CITI PCARD-TARGET,2017-04-29,2017-05-28,FOOD & BEVERAGE,129.39,2017
,2017 REPUBLICAN CONFERENCE,2017Q2,GENERAL EXPENDITURES,SUPPLIES AND MATERIALS,6/26/17,AP,E0527556,,ARAMARK REFRESHMENT SERVICES,2017-05-26,2017-05-26,FOOD & BEVERAGE,748.97,2017
,2017 REPUBLICAN CONFERENCE,2017Q2,GENERAL EXPENDITURES,SUPPLIES AND MATERIALS,6/29/17,AP,929617,,DEER PARK,2017-05-31,2017-05-31,WATER,339.28,2017
,2017 REPUBLICAN CONFERENCE,2017Q2,GENERAL EXPENDITURES,SUPPLIES AND MATERIALS,6/29/17,AP,E0528351,,CROCKER NICHOLAS L.,2017-06-10,2017-06-10,FOOD & BEVERAGE,312.16,2017
,2017 REPUBLICAN CONFERENCE,2017Q2,GENERAL EXPENDITURES,SUPPLIES AND MATERIALS,   ,   ,   ,,   ,   ,   ,SUPPLIES AND MATERIALS TOTALS:,38034.67,2017
,2017 REPUBLICAN CONFERENCE,2017Q2,GENERAL EXPENDITURES,SUPPLIES AND MATERIALS,   ,   ,   ,,   ,   ,   ,GENERAL EXPENDITURES TOTALS:,360271.95,2017
,2017 REPUBLICAN CONFERENCE,2017Q2,GENERAL EXPENDITURES,SUPPLIES AND MATERIALS,   ,   ,   ,,   ,   ,   ,OFFICE TOTALS: ,360271.95,2017
,2016 REPUBLICAN CONFERENCE,2017Q2,GENERAL EXPENDITURES,SUPPLIES AND MATERIALS,4/12/17,AP,913581,,WALL STREET JOURNAL,2017-01-02,2019-03-22,PUBLICATIONS/REFERENCE MAT'L,-903.6,2017
,2016 REPUBLICAN CONFERENCE,2017Q2,GENERAL EXPENDITURES,SUPPLIES AND MATERIALS,4/12/17,AP,913581,,WALL STREET JOURNAL,2017-01-02,2019-03-29,PUBLICATIONS/REFERENCE MAT'L,903.6,2017
,2016 REPUBLICAN CONFERENCE,2017Q2,GENERAL EXPENDITURES,SUPPLIES AND MATERIALS,4/12/17,AP,913584,,POLITICO LLC,2017-09-21,2017-12-31,PUBLICATIONS/REFERENCE MAT'L,-2470.35,2017
,2016 REPUBLICAN CONFERENCE,2017Q2,GENERAL EXPENDITURES,SUPPLIES AND MATERIALS,6/14/17,AP,924409,,POLITICO LLC,2017-09-21,2017-12-31,PUBLICATIONS/REFERENCE MAT'L,2470.35,2017
,2016 REPUBLICAN CONFERENCE,2017Q2,GENERAL EXPENDITURES,SUPPLIES AND MATERIALS,   ,   ,   ,,   ,   ,   ,SUPPLIES AND MATERIALS TOTALS:,0,2016
,2016 REPUBLICAN CONFERENCE,2017Q2,GENERAL EXPENDITURES,SUPPLIES AND MATERIALS,   ,   ,   ,,   ,   ,   ,GENERAL EXPENDITURES TOTALS:,0,2016
,2016 REPUBLICAN CONFERENCE,2017Q2,GENERAL EXPENDITURES,SUPPLIES AND MATERIALS,   ,   ,   ,,   ,   ,   ,OFFICE TOTALS: ,0,2016
,FISCAL YEAR 2017 CHIEF ADMIN OFCR OF THE HOUSE,2017Q2,SALARIES  OFFICERS & EMPLOYEES,PERSONNEL COMPENSATION,   ,   ,   ,,ABBOTT JESSICA A.,2017-04-01,2017-06-30,FINANCIAL ANALYST,34145.25,2017
,FISCAL YEAR 2017 CHIEF ADMIN OFCR OF THE HOUSE,2017Q2,SALARIES  OFFICERS & EMPLOYEES,PERSONNEL COMPENSATION,   ,   ,   ,,ABEL TIMOTHY,2017-04-01,2017-06-30,SR TECHNICAL SUPPORT REP (A),25436.25,2017
,FISCAL YEAR 2017 CHIEF ADMIN OFCR OF THE HOUSE,2017Q2,SALARIES  OFFICERS & EMPLOYEES,PERSONNEL COMPENSATION,   ,   ,   ,,ABRAHAM JERMEL M,2017-04-01,2017-06-30,FINANCIAL ANALYST,18681.51,2017
,FISCAL YEAR 2017 CHIEF ADMIN OFCR OF THE HOUSE,2017Q2,SALARIES  OFFICERS & EMPLOYEES,PERSONNEL COMPENSATION,   ,   ,   ,,ACUESTA JULY J,2017-04-01,2017-06-30,SENIOR SYSTEMS ENGINEER,29757.24,2017
,FISCAL YEAR 2017 CHIEF ADMIN OFCR OF THE HOUSE,2017Q2,SALARIES  OFFICERS & EMPLOYEES,PERSONNEL COMPENSATION,   ,   ,   ,,ADDISON TRACY,2017-04-01,2017-06-30,LOGISTICS & DIST SPEC (A),12317.01,2017
,FISCAL YEAR 2017 CHIEF ADMIN OFCR OF THE HOUSE,2017Q2,SALARIES  OFFICERS & EMPLOYEES,PERSONNEL COMPENSATION,   ,   ,   ,,ADELAKUN DEEN A.,2017-04-01,2017-06-30,SR TECH SOLUTIONS ENGINEER,24012.24,2017
,FISCAL YEAR 2017 CHIEF ADMIN OFCR OF THE HOUSE,2017Q2,SALARIES  OFFICERS & EMPLOYEES,PERSONNEL COMPENSATION,   ,   ,   ,,ADENIJI ADERONKE F,2017-04-01,2017-06-30,DIRECTOR  INFORMATION ASSURANC,36786,2017
,FISCAL YEAR 2017 CHIEF ADMIN OFCR OF THE HOUSE,2017Q2,SALARIES  OFFICERS & EMPLOYEES,PERSONNEL COMPENSATION,   ,   ,   ,,AGEE MATTHEW P.,2017-04-01,2017-06-30,RESOURCE MANAGER,33554.49,2017
,FISCAL YEAR 2017 CHIEF ADMIN OFCR OF THE HOUSE,2017Q2,SALARIES  OFFICERS & EMPLOYEES,PERSONNEL COMPENSATION,   ,   ,   ,,AGNEW ROSE M.,2017-04-01,2017-06-30,SR PAYROLL & BENS GENERALIST,22589.49,2017
,FISCAL YEAR 2017 CHIEF ADMIN OFCR OF THE HOUSE,2017Q2,SALARIES  OFFICERS & EMPLOYEES,PERSONNEL COMPENSATION,   ,   ,   ,,AGNEW ROSE M.,2017-02-01,2017-02-28,SR PAYROLL & BENS GENERALIST (OVERTIME),293.23,2017
,FISCAL YEAR 2017 CHIEF ADMIN OFCR OF THE HOUSE,2017Q2,SALARIES  OFFICERS & EMPLOYEES,PERSONNEL COMPENSATION,   ,   ,   ,,AHMAD VIQUAR,2017-04-10,2017-06-30,ASSISTANT CAO,36981.44,2017
,FISCAL YEAR 2017 CHIEF ADMIN OFCR OF THE HOUSE,2017Q2,SALARIES  OFFICERS & EMPLOYEES,PERSONNEL COMPENSATION,   ,   ,   ,,AHMED MUNEER,2017-04-01,2017-06-30,APPLICATION SYSTEMS ADMINISTRA,32375.25,2017
,FISCAL YEAR 2017 CHIEF ADMIN OFCR OF THE HOUSE,2017Q2,SALARIES  OFFICERS & EMPLOYEES,PERSONNEL COMPENSATION,   ,   ,   ,,AHUJA KALPANA A.,2017-04-01,2017-06-30,DIRECTOR WEB SYSTEMS,35919.34,2017
,FISCAL YEAR 2017 CHIEF ADMIN OFCR OF THE HOUSE,2017Q2,SALARIES  OFFICERS & EMPLOYEES,PERSONNEL COMPENSATION,   ,   ,   ,,AKULA MALLIKARJUNA R,2017-04-01,2017-06-30,SENIOR SOFTWARE SPECIALIST,34176,2017
,FISCAL YEAR 2017 CHIEF ADMIN OFCR OF THE HOUSE,2017Q2,SALARIES  OFFICERS & EMPLOYEES,PERSONNEL COMPENSATION,   ,   ,   ,,ALEXANDER GORDON,2017-04-01,2017-06-30,TECH SOLUTIONS ENGINEER,19713,2017
,FISCAL YEAR 2017 CHIEF ADMIN OFCR OF THE HOUSE,2017Q2,SALARIES  OFFICERS & EMPLOYEES,PERSONNEL COMPENSATION,   ,   ,   ,,ALLEN PATRICK R,2017-04-01,2017-06-30,DIRECTOR BUSINESS CONTINUITY,37439.01,2017
,FISCAL YEAR 2017 CHIEF ADMIN OFCR OF THE HOUSE,2017Q2,SALARIES  OFFICERS & EMPLOYEES,PERSONNEL COMPENSATION,   ,   ,   ,,ALLISON KEVIN M.,2017-04-01,2017-06-30,LOGISTICS & DIST SPEC (A),15003.99,2017
,FISCAL YEAR 2017 CHIEF ADMIN OFCR OF THE HOUSE,2017Q2,SALARIES  OFFICERS & EMPLOYEES,PERSONNEL COMPENSATION,   ,   ,   ,,ALLISON KEVIN M.,2017-03-01,2017-05-31,LOGISTICS & DIST SPEC (A) (OVERTIME),331.81,2017
,FISCAL YEAR 2017 CHIEF ADMIN OFCR OF THE HOUSE,2017Q2,SALARIES  OFFICERS & EMPLOYEES,PERSONNEL COMPENSATION,   ,   ,   ,,ALSTON MARK A,2017-04-01,2017-06-30,TECH SOLUTIONS ENGINEER,18885.24,2017
,FISCAL YEAR 2017 CHIEF ADMIN OFCR OF THE HOUSE,2017Q2,SALARIES  OFFICERS & EMPLOYEES,PERSONNEL COMPENSATION,   ,   ,   ,,ALVEY LISA M.,2017-04-01,2017-06-30,FINANCIAL COUNSELOR,22016.76,2017
,FISCAL YEAR 2017 CHIEF ADMIN OFCR OF THE HOUSE,2017Q2,SALARIES  OFFICERS & EMPLOYEES,PERSONNEL COMPENSATION,   ,   ,   ,,ALVEY LISA M.,2017-03-01,2017-03-31,FINANCIAL COUNSELOR (OVERTIME),285.79,2017
,FISCAL YEAR 2017 CHIEF ADMIN OFCR OF THE HOUSE,2017Q2,SALARIES  OFFICERS & EMPLOYEES,PERSONNEL COMPENSATION,   ,   ,   ,,ANDERSEN FREDERIC E.,2017-04-01,2017-06-30,ASSISTANT DIRECTOR,24488.76,2017
,FISCAL YEAR 2017 CHIEF ADMIN OFCR OF THE HOUSE,2017Q2,SALARIES  OFFICERS & EMPLOYEES,PERSONNEL COMPENSATION,   ,   ,   ,,ANDERSON DONTRELL,2017-04-01,2017-06-30,FINANCIAL COUNSELOR,18056.01,2017
,FISCAL YEAR 2017 CHIEF ADMIN OFCR OF THE HOUSE,2017Q2,SALARIES  OFFICERS & EMPLOYEES,PERSONNEL COMPENSATION,   ,   ,   ,,ANDERSON DONTRELL,2017-01-01,2017-04-30,FINANCIAL COUNSELOR (OVERTIME),3077.38,2017
,FISCAL YEAR 2017 CHIEF ADMIN OFCR OF THE HOUSE,2017Q2,SALARIES  OFFICERS & EMPLOYEES,PERSONNEL COMPENSATION,   ,   ,   ,,ANDREWS THOMAS,2017-04-01,2017-06-30,VOICE & VIDEO BRANCH MGR (A),36786,2017
,FISCAL YEAR 2017 CHIEF ADMIN OFCR OF THE HOUSE,2017Q2,SALARIES  OFFICERS & EMPLOYEES,PERSONNEL COMPENSATION,   ,   ,   ,,ANDREWS-MOBLEY RACHELLE G.,2017-04-01,2017-06-30,PRINCIPAL TECHNICAL TRAINER,28673.49,2017
,FISCAL YEAR 2017 CHIEF ADMIN OFCR OF THE HOUSE,2017Q2,SALARIES  OFFICERS & EMPLOYEES,PERSONNEL COMPENSATION,   ,   ,   ,,ANTHONY TONY,2017-04-01,2017-06-30,PROD/ENGINEER SPEC TEMP,12922.16,2017
,FISCAL YEAR 2017 CHIEF ADMIN OFCR OF THE HOUSE,2017Q2,SALARIES  OFFICERS & EMPLOYEES,PERSONNEL COMPENSATION,   ,   ,   ,,APPIAH JOYCE S,2017-04-01,2017-06-30,SENIOR BENEFITS SPECIALIST,27620.76,2017
,FISCAL YEAR 2017 CHIEF ADMIN OFCR OF THE HOUSE,2017Q2,SALARIES  OFFICERS & EMPLOYEES,PERSONNEL COMPENSATION,   ,   ,   ,,ARMSTRONG JANCIERA C,2017-04-01,2017-06-30,BUDGET ANALYST,29048.25,2017
,FISCAL YEAR 2017 CHIEF ADMIN OFCR OF THE HOUSE,2017Q2,SALARIES  OFFICERS & EMPLOYEES,PERSONNEL COMPENSATION,   ,   ,   ,,ARTHUR CAMILLA S.,2017-04-01,2017-06-30,ASSISTANT CAO,42102.75,2017
,FISCAL YEAR 2017 CHIEF ADMIN OFCR OF THE HOUSE,2017Q2,SALARIES  OFFICERS & EMPLOYEES,PERSONNEL COMPENSATION,   ,   ,   ,,ASATA HEATHER O,2017-04-01,2017-06-30,EXECUTIVE ASSISTANT,18681.51,2017
,FISCAL YEAR 2017 CHIEF ADMIN OFCR OF THE HOUSE,2017Q2,SALARIES  OFFICERS & EMPLOYEES,PERSONNEL COMPENSATION,   ,   ,   ,,ATCHISON DARRYL A.,2017-04-01,2017-06-30,DEPUTY CHIEF ENGINEER,33554.49,2017
,FISCAL YEAR 2017 CHIEF ADMIN OFCR OF THE HOUSE,2017Q2,SALARIES  OFFICERS & EMPLOYEES,PERSONNEL COMPENSATION,   ,   ,   ,,AWAN OMAR,2017-04-01,2017-06-30,PERF & CUST SVC STRAT ANALYST,38747.25,2017
,FISCAL YEAR 2017 CHIEF ADMIN OFCR OF THE HOUSE,2017Q2,SALARIES  OFFICERS & EMPLOYEES,PERSONNEL COMPENSATION,   ,   ,   ,,BAHAM TODD,2017-04-01,2017-06-30,BROADCAST PRODUCTION TECHNICIA,20766.24,2017
,FISCAL YEAR 2017 CHIEF ADMIN OFCR OF THE HOUSE,2017Q2,SALARIES  OFFICERS & EMPLOYEES,PERSONNEL COMPENSATION,   ,   ,   ,,BAHAM TODD,2017-03-01,2017-05-31,BROADCAST PRODUCTION TECHNICIA (OVERTIME),2995.1,2017
,FISCAL YEAR 2017 CHIEF ADMIN OFCR OF THE HOUSE,2017Q2,SALARIES  OFFICERS & EMPLOYEES,PERSONNEL COMPENSATION,   ,   ,   ,,BAILEY DAVID E.,2017-04-01,2017-06-30,SR TECHNICAL SUPPORT REP (A),26382.75,2017
,FISCAL YEAR 2017 CHIEF ADMIN OFCR OF THE HOUSE,2017Q2,SALARIES  OFFICERS & EMPLOYEES,PERSONNEL COMPENSATION,   ,   ,   ,,BAKER DARRELL F.,2017-04-01,2017-06-30,SR NETWORK COMM SPEC,28493.91,2017
,FISCAL YEAR 2017 CHIEF ADMIN OFCR OF THE HOUSE,2017Q2,SALARIES  OFFICERS & EMPLOYEES,PERSONNEL COMPENSATION,   ,   ,   ,,BANFIELD KELLI C,2017-04-01,2017-06-30,BROADCAST ENGINEER/PROD SPEC.,23067,2017
,FISCAL YEAR 2017 CHIEF ADMIN OFCR OF THE HOUSE,2017Q2,SALARIES  OFFICERS & EMPLOYEES,PERSONNEL COMPENSATION,   ,   ,   ,,BANKS BIANCA N,2017-04-01,2017-06-30,MANAGER,21165.24,2017
,FISCAL YEAR 2017 CHIEF ADMIN OFCR OF THE HOUSE,2017Q2,SALARIES  OFFICERS & EMPLOYEES,PERSONNEL COMPENSATION,   ,   ,   ,,BARBEE GLENN,2017-04-01,2017-06-30,NETWORK TECHNICIAN,24012.24,2017
,FISCAL YEAR 2017 CHIEF ADMIN OFCR OF THE HOUSE,2017Q2,SALARIES  OFFICERS & EMPLOYEES,PERSONNEL COMPENSATION,   ,   ,   ,,BARBEE DONELL G,2017-04-01,2017-06-30,RETAIL INVENTORY SPECIALIST,11064.51,2017
,FISCAL YEAR 2017 CHIEF ADMIN OFCR OF THE HOUSE,2017Q2,SALARIES  OFFICERS & EMPLOYEES,PERSONNEL COMPENSATION,   ,   ,   ,,BARBOUR JUNE M.,2017-04-01,2017-06-30,BROADCAST PRODUCTION TECHNICIA,20766.24,2017
,FISCAL YEAR 2017 CHIEF ADMIN OFCR OF THE HOUSE,2017Q2,SALARIES  OFFICERS & EMPLOYEES,PERSONNEL COMPENSATION,   ,   ,   ,,BARBOUR JUNE M.,2017-03-01,2017-05-31,BROADCAST PRODUCTION TECHNICIA (OVERTIME),1347.8,2017
,FISCAL YEAR 2017 CHIEF ADMIN OFCR OF THE HOUSE,2017Q2,SALARIES  OFFICERS & EMPLOYEES,PERSONNEL COMPENSATION,   ,   ,   ,,BARCINIAK DANA L.,2017-04-01,2017-06-30,OFFICE MANAGER,23809.26,2017
,FISCAL YEAR 2017 CHIEF ADMIN OFCR OF THE HOUSE,2017Q2,SALARIES  OFFICERS & EMPLOYEES,PERSONNEL COMPENSATION,   ,   ,   ,,BAREFOOT JEFFREY,2017-04-01,2017-06-30,BROADCAST ENGINEER/PROD SPEC.,21640.74,2017
,FISCAL YEAR 2017 CHIEF ADMIN OFCR OF THE HOUSE,2017Q2,SALARIES  OFFICERS & EMPLOYEES,PERSONNEL COMPENSATION,   ,   ,   ,,BAREFOOT JEFFREY,2017-03-01,2017-03-31,BROADCAST ENGINEER/PROD SPEC. (OVERTIME),83.23,2017
,FISCAL YEAR 2017 CHIEF ADMIN OFCR OF THE HOUSE,2017Q2,SALARIES  OFFICERS & EMPLOYEES,PERSONNEL COMPENSATION,   ,   ,   ,,BARNABAE MONICA M.,2017-04-01,2017-06-30,DIRECTOR-HOUSE CHILD CARE CNTR,29214.75,2017
,FISCAL YEAR 2017 CHIEF ADMIN OFCR OF THE HOUSE,2017Q2,SALARIES  OFFICERS & EMPLOYEES,PERSONNEL COMPENSATION,   ,   ,   ,,BARR PAUL,2017-04-01,2017-06-30,SUPERVISOR LOGISTICS & DIST (A,16812.51,2017
,FISCAL YEAR 2017 CHIEF ADMIN OFCR OF THE HOUSE,2017Q2,SALARIES  OFFICERS & EMPLOYEES,PERSONNEL COMPENSATION,   ,   ,   ,,BARRETT ROBERT R.,2017-04-01,2017-06-30,DIRECTOR  ENTERPRISE APPLICATI,41090.49,2017
,FISCAL YEAR 2017 CHIEF ADMIN OFCR OF THE HOUSE,2017Q2,SALARIES  OFFICERS & EMPLOYEES,PERSONNEL COMPENSATION,   ,   ,   ,,BARTON TISHA R,2017-04-01,2017-06-30,SPECIAL ASSISTANT,21640.74,2017
,FISCAL YEAR 2017 CHIEF ADMIN OFCR OF THE HOUSE,2017Q2,SALARIES  OFFICERS & EMPLOYEES,PERSONNEL COMPENSATION,   ,   ,   ,,BASILIO TYRONE A.,2017-04-01,2017-06-30,TECHNICAL SUPPORT REP,21183.99,2017
,FISCAL YEAR 2017 CHIEF ADMIN OFCR OF THE HOUSE,2017Q2,SALARIES  OFFICERS & EMPLOYEES,PERSONNEL COMPENSATION,   ,   ,   ,,BATES DEBORAH A.,2017-04-01,2017-06-30,PRODUCTION/ENGINEER SPEC (TEMP,14743.41,2017
,FISCAL YEAR 2017 CHIEF ADMIN OFCR OF THE HOUSE,2017Q2,SALARIES  OFFICERS & EMPLOYEES,PERSONNEL COMPENSATION,   ,   ,   ,,BATH GEORGE J,2017-04-01,2017-06-30,SENIOR ADVISOR,42102.75,2017
,FISCAL YEAR 2017 CHIEF ADMIN OFCR OF THE HOUSE,2017Q2,SALARIES  OFFICERS & EMPLOYEES,PERSONNEL COMPENSATION,   ,   ,   ,,BEARDSLEE  LEAH,2017-04-01,2017-06-30,DIGITAL MEDIA COORDINATOR,15834.49,2017
,FISCAL YEAR 2017 CHIEF ADMIN OFCR OF THE HOUSE,2017Q2,SALARIES  OFFICERS & EMPLOYEES,PERSONNEL COMPENSATION,   ,   ,   ,,BEAUBIAN TRACI R.,2017-04-01,2017-06-30,CHIEF FINANCIAL OFFICER,42102.75,2017
,FISCAL YEAR 2017 CHIEF ADMIN OFCR OF THE HOUSE,2017Q2,SALARIES  OFFICERS & EMPLOYEES,PERSONNEL COMPENSATION,   ,   ,   ,,BELL FRANK E,2017-04-01,2017-06-30,SENIOR TECHNICAL ADVISOR,36137.76,2017
,FISCAL YEAR 2017 CHIEF ADMIN OFCR OF THE HOUSE,2017Q2,SALARIES  OFFICERS & EMPLOYEES,PERSONNEL COMPENSATION,   ,   ,   ,,BENN PHILLIP F.,2017-04-01,2017-06-30,ELECTRONICS TECHNICIAN (A),24488.76,2017
,FISCAL YEAR 2017 CHIEF ADMIN OFCR OF THE HOUSE,2017Q2,SALARIES  OFFICERS & EMPLOYEES,PERSONNEL COMPENSATION,   ,   ,   ,,BENT BENETO,2017-03-01,2017-03-31,JOURNEYMAN TEXTILE SPEC (OTHER COMPENSATION),432.8,2017
,FISCAL YEAR 2017 CHIEF ADMIN OFCR OF THE HOUSE,2017Q2,SALARIES  OFFICERS & EMPLOYEES,PERSONNEL COMPENSATION,   ,   ,   ,,BERGER DONALD W.,2017-04-01,2017-06-30,TECHNICAL DIRECTOR (A),25240.5,2017
,FISCAL YEAR 2017 CHIEF ADMIN OFCR OF THE HOUSE,2017Q2,SALARIES  OFFICERS & EMPLOYEES,PERSONNEL COMPENSATION,   ,   ,   ,,BERGER DONALD W.,2017-02-01,2017-05-31,TECHNICAL DIRECTOR (A) (OVERTIME),1674.59,2017
,FISCAL YEAR 2017 CHIEF ADMIN OFCR OF THE HOUSE,2017Q2,SALARIES  OFFICERS & EMPLOYEES,PERSONNEL COMPENSATION,   ,   ,   ,,BESSAHA NABIL,2017-04-01,2017-06-30,SR INFO SYS SEC ANALYST,27049.74,2017
,FISCAL YEAR 2017 CHIEF ADMIN OFCR OF THE HOUSE,2017Q2,SALARIES  OFFICERS & EMPLOYEES,PERSONNEL COMPENSATION,   ,   ,   ,,BEST CHARLENE,2017-04-01,2017-06-30,MANAGER (HOUSE ASSET SERVICES),25715.76,2017
,FISCAL YEAR 2017 CHIEF ADMIN OFCR OF THE HOUSE,2017Q2,SALARIES  OFFICERS & EMPLOYEES,PERSONNEL COMPENSATION,   ,   ,   ,,BETHEA LASHON L,2017-04-01,2017-06-30,TECHNICAL TRAINER,27143.49,2017
,FISCAL YEAR 2017 CHIEF ADMIN OFCR OF THE HOUSE,2017Q2,SALARIES  OFFICERS & EMPLOYEES,PERSONNEL COMPENSATION,   ,   ,   ,,BILLARD MICHAEL A.,2017-04-01,2017-06-30,COMMUNICATIONS SPEC,27143.49,2017
,FISCAL YEAR 2017 CHIEF ADMIN OFCR OF THE HOUSE,2017Q2,SALARIES  OFFICERS & EMPLOYEES,PERSONNEL COMPENSATION,   ,   ,   ,,BILLUPS BRIAN E.,2017-04-01,2017-06-30,NETWORK TECHNICIAN (A),21183.99,2017
,FISCAL YEAR 2017 CHIEF ADMIN OFCR OF THE HOUSE,2017Q2,SALARIES  OFFICERS & EMPLOYEES,PERSONNEL COMPENSATION,   ,   ,   ,,BINSTED ANNE M,2017-04-01,2017-06-30,CHIEF OF STAFF,42102.75,2017
,FISCAL YEAR 2017 CHIEF ADMIN OFCR OF THE HOUSE,2017Q2,SALARIES  OFFICERS & EMPLOYEES,PERSONNEL COMPENSATION,   ,   ,   ,,BLACKERBY BRUCE A,2017-05-30,2017-06-30,INFORMATION SYS SEC ANALYST,8529.47,2017
,FISCAL YEAR 2017 CHIEF ADMIN OFCR OF THE HOUSE,2017Q2,SALARIES  OFFICERS & EMPLOYEES,PERSONNEL COMPENSATION,   ,   ,   ,,BLAKLEY JEFFREY S,2017-04-01,2017-06-30,DIRECTOR PHOTOGRAPHY,27592.26,2017
,FISCAL YEAR 2017 CHIEF ADMIN OFCR OF THE HOUSE,2017Q2,SALARIES  OFFICERS & EMPLOYEES,PERSONNEL COMPENSATION,   ,   ,   ,,BLAKNEY HAROLD,2017-04-01,2017-06-30,SENIOR SYSTEMS ENGINEER,40050.99,2017
,FISCAL YEAR 2017 CHIEF ADMIN OFCR OF THE HOUSE,2017Q2,SALARIES  OFFICERS & EMPLOYEES,PERSONNEL COMPENSATION,   ,   ,   ,,BOB DARREL,2017-04-01,2017-06-30,PAYROLL & BENEFITS GENERALIST,18056.01,2017
,FISCAL YEAR 2017 CHIEF ADMIN OFCR OF THE HOUSE,2017Q2,SALARIES  OFFICERS & EMPLOYEES,PERSONNEL COMPENSATION,   ,   ,   ,,BOB DARREL,2017-02-01,2017-02-28,PAYROLL & BENEFITS GENERALIST (OVERTIME),1332.66,2017
,FISCAL YEAR 2017 CHIEF ADMIN OFCR OF THE HOUSE,2017Q2,SALARIES  OFFICERS & EMPLOYEES,PERSONNEL COMPENSATION,   ,   ,   ,,BOGAN DAVID S.,2017-04-01,2017-06-30,SUPERVISOR  RETAIL INVENTORY,21183.99,2017
,FISCAL YEAR 2017 CHIEF ADMIN OFCR OF THE HOUSE,2017Q2,SALARIES  OFFICERS & EMPLOYEES,PERSONNEL COMPENSATION,   ,   ,   ,,BOGER KELLY M.,2017-04-01,2017-06-30,SUPERVISOR  ASSET/INVENTORY,23539.5,2017
,FISCAL YEAR 2017 CHIEF ADMIN OFCR OF THE HOUSE,2017Q2,SALARIES  OFFICERS & EMPLOYEES,PERSONNEL COMPENSATION,   ,   ,   ,,BOLDIG CHRISTOPHER R.,2017-04-01,2017-06-30,ASSOCIATE ADMIN. COUNSEL,32375.25,2017
,FISCAL YEAR 2017 CHIEF ADMIN OFCR OF THE HOUSE,2017Q2,SALARIES  OFFICERS & EMPLOYEES,PERSONNEL COMPENSATION,   ,   ,   ,,BOOKER CARLOS,2017-04-01,2017-06-30,SALES SPECIALIST,11376.99,2017
,FISCAL YEAR 2017 CHIEF ADMIN OFCR OF THE HOUSE,2017Q2,SALARIES  OFFICERS & EMPLOYEES,PERSONNEL COMPENSATION,   ,   ,   ,,BOONE RUSSELL,2017-04-01,2017-05-31,TECHNICAL SUPPORT REP,15513.5,2017
,FISCAL YEAR 2017 CHIEF ADMIN OFCR OF THE HOUSE,2017Q2,SALARIES  OFFICERS & EMPLOYEES,PERSONNEL COMPENSATION,   ,   ,   ,,BOONE RUSSELL,2017-06-01,2017-06-30,SR TECHNICAL SUPPORT REP,8095.67,2017
,FISCAL YEAR 2017 CHIEF ADMIN OFCR OF THE HOUSE,2017Q2,SALARIES  OFFICERS & EMPLOYEES,PERSONNEL COMPENSATION,   ,   ,   ,,BOWERS KAREN L,2017-04-01,2017-06-30,MANAGER,24287.01,2017
,FISCAL YEAR 2017 CHIEF ADMIN OFCR OF THE HOUSE,2017Q2,SALARIES  OFFICERS & EMPLOYEES,PERSONNEL COMPENSATION,   ,   ,   ,,BOWLDING SONIA R.,2017-04-01,2017-06-30,REC/WAREHOUSE SPEC (A),12108.67,2017
,FISCAL YEAR 2017 CHIEF ADMIN OFCR OF THE HOUSE,2017Q2,SALARIES  OFFICERS & EMPLOYEES,PERSONNEL COMPENSATION,   ,   ,   ,,BOWLING-STOKES CHAUNETTE L,2017-04-01,2017-06-30,MANAGEMENT ANALYST,25715.76,2017
,FISCAL YEAR 2017 CHIEF ADMIN OFCR OF THE HOUSE,2017Q2,SALARIES  OFFICERS & EMPLOYEES,PERSONNEL COMPENSATION,   ,   ,   ,,BOWMAN SHELIA,2017-04-01,2017-06-30,FINANCIAL COUNSELOR,18056.01,2017
,FISCAL YEAR 2017 CHIEF ADMIN OFCR OF THE HOUSE,2017Q2,SALARIES  OFFICERS & EMPLOYEES,PERSONNEL COMPENSATION,   ,   ,   ,,BOYD KRISTIE N.,2017-03-01,2017-05-30,PHOTOGRAPHER/LAB TECH (TEMP),11877.77,2017
,FISCAL YEAR 2017 CHIEF ADMIN OFCR OF THE HOUSE,2017Q2,SALARIES  OFFICERS & EMPLOYEES,PERSONNEL COMPENSATION,   ,   ,   ,,BOYD PETRINA,2017-04-01,2017-06-30,SALES SPECIALIST,12495.51,2017
,FISCAL YEAR 2017 CHIEF ADMIN OFCR OF THE HOUSE,2017Q2,SALARIES  OFFICERS & EMPLOYEES,PERSONNEL COMPENSATION,   ,   ,   ,,BOYLE KEVIN J.,2017-04-01,2017-06-30,SR BUSINESS  PROCESS APPL SPEC,41357.76,2017
,FISCAL YEAR 2017 CHIEF ADMIN OFCR OF THE HOUSE,2017Q2,SALARIES  OFFICERS & EMPLOYEES,PERSONNEL COMPENSATION,   ,   ,   ,,BRACKENS ROBERT,2017-04-01,2017-06-30,BROADCAST PRODUCTION TECHNICIA,23539.5,2017
,FISCAL YEAR 2017 CHIEF ADMIN OFCR OF THE HOUSE,2017Q2,SALARIES  OFFICERS & EMPLOYEES,PERSONNEL COMPENSATION,   ,   ,   ,,BRACKENS ROBERT,2017-03-01,2017-05-31,BROADCAST PRODUCTION TECHNICIA (OVERTIME),1493.83,2017
,FISCAL YEAR 2017 CHIEF ADMIN OFCR OF THE HOUSE,2017Q2,SALARIES  OFFICERS & EMPLOYEES,PERSONNEL COMPENSATION,   ,   ,   ,,BRADLEY NATHANIEL R,2017-04-01,2017-06-30,DIRECTOR  TECHNOLOGY SUPPORT,34834.74,2017
,FISCAL YEAR 2017 CHIEF ADMIN OFCR OF THE HOUSE,2017Q2,SALARIES  OFFICERS & EMPLOYEES,PERSONNEL COMPENSATION,   ,   ,   ,,BRADY JOHN R,2017-04-01,2017-06-30,JOURNEYMAN TEXTILE SPEC,13260.24,2017
,FISCAL YEAR 2017 CHIEF ADMIN OFCR OF THE HOUSE,2017Q2,SALARIES  OFFICERS & EMPLOYEES,PERSONNEL COMPENSATION,   ,   ,   ,,BRAXTON BRANDON A.,2017-04-01,2017-05-07,LOGISTICS & DIST SPEC (A),4935.18,2017
,FISCAL YEAR 2017 CHIEF ADMIN OFCR OF THE HOUSE,2017Q2,SALARIES  OFFICERS & EMPLOYEES,PERSONNEL COMPENSATION,   ,   ,   ,,BRAXTON BRANDON A.,2017-05-08,2017-06-30,REC/WAREHOUSE SPEC (A),7543.08,2017
,FISCAL YEAR 2017 CHIEF ADMIN OFCR OF THE HOUSE,2017Q2,SALARIES  OFFICERS & EMPLOYEES,PERSONNEL COMPENSATION,   ,   ,   ,,BREWSTER III JAMES E,2017-04-01,2017-06-30,LOGISTICS & DIST SPEC (A),10124.76,2017
,FISCAL YEAR 2017 CHIEF ADMIN OFCR OF THE HOUSE,2017Q2,SALARIES  OFFICERS & EMPLOYEES,PERSONNEL COMPENSATION,   ,   ,   ,,BREWSTER CHRISTOPHER A,2017-04-01,2017-06-30,ADMINISTRATIVE COUNSEL,42102.75,2017
,FISCAL YEAR 2017 CHIEF ADMIN OFCR OF THE HOUSE,2017Q2,SALARIES  OFFICERS & EMPLOYEES,PERSONNEL COMPENSATION,   ,   ,   ,,BRIDGEFORTH TOINETTA A.,2017-04-01,2017-06-30,SENIOR CONTRACTS SPECIALIST,27049.74,2017
,FISCAL YEAR 2017 CHIEF ADMIN OFCR OF THE HOUSE,2017Q2,SALARIES  OFFICERS & EMPLOYEES,PERSONNEL COMPENSATION,   ,   ,   ,,BRISCOE KEVIN,2017-04-01,2017-06-30,LOGISTICS & DIST SPEC (A),12004.5,2017
,FISCAL YEAR 2017 CHIEF ADMIN OFCR OF THE HOUSE,2017Q2,SALARIES  OFFICERS & EMPLOYEES,PERSONNEL COMPENSATION,   ,   ,   ,,BROBBEY-MENSAH KWAME,2017-04-01,2017-06-30,SR INFO SYST. SECURITY ANALYST,30839.49,2017
,FISCAL YEAR 2017 CHIEF ADMIN OFCR OF THE HOUSE,2017Q2,SALARIES  OFFICERS & EMPLOYEES,PERSONNEL COMPENSATION,   ,   ,   ,,BROWN SR DEMETRICE T.,2017-04-01,2017-06-30,SR TECHNICAL SUPPORT REP,29048.25,2017
,FISCAL YEAR 2017 CHIEF ADMIN OFCR OF THE HOUSE,2017Q2,SALARIES  OFFICERS & EMPLOYEES,PERSONNEL COMPENSATION,   ,   ,   ,,BROWN KEITH S.,2017-04-01,2017-06-30,JOURNEYMAN FURNITURE SPEC.,15050.49,2017
,FISCAL YEAR 2017 CHIEF ADMIN OFCR OF THE HOUSE,2017Q2,SALARIES  OFFICERS & EMPLOYEES,PERSONNEL COMPENSATION,   ,   ,   ,,BROWN PAMELA L.,2017-04-01,2017-06-30,CUSTOMER SOLUTIONS REP.,19713,2017
,FISCAL YEAR 2017 CHIEF ADMIN OFCR OF THE HOUSE,2017Q2,SALARIES  OFFICERS & EMPLOYEES,PERSONNEL COMPENSATION,   ,   ,   ,,BROWN DAVID D,2017-04-01,2017-06-30,FINANCIAL COUNSELOR,18193.42,2017
,FISCAL YEAR 2017 CHIEF ADMIN OFCR OF THE HOUSE,2017Q2,SALARIES  OFFICERS & EMPLOYEES,PERSONNEL COMPENSATION,   ,   ,   ,,BROWN DAVID D,2017-03-01,2017-03-31,FINANCIAL COUNSELOR (OVERTIME),104.17,2017
,FISCAL YEAR 2017 CHIEF ADMIN OFCR OF THE HOUSE,2017Q2,SALARIES  OFFICERS & EMPLOYEES,PERSONNEL COMPENSATION,   ,   ,   ,,BROWN JASON,2017-04-01,2017-06-30,TECHNICAL DIRECTOR,23809.26,2017
,FISCAL YEAR 2017 CHIEF ADMIN OFCR OF THE HOUSE,2017Q2,SALARIES  OFFICERS & EMPLOYEES,PERSONNEL COMPENSATION,   ,   ,   ,,BROWN JASON,2017-03-01,2017-03-31,BROADCAST PRODUCTION TECHNICIA (OVERTIME),738.79,2017
,FISCAL YEAR 2017 CHIEF ADMIN OFCR OF THE HOUSE,2017Q2,SALARIES  OFFICERS & EMPLOYEES,PERSONNEL COMPENSATION,   ,   ,   ,,BROWN JASON,2017-04-01,2017-05-31,TECHNICAL DIRECTOR (OVERTIME),228.93,2017
,FISCAL YEAR 2017 CHIEF ADMIN OFCR OF THE HOUSE,2017Q2,SALARIES  OFFICERS & EMPLOYEES,PERSONNEL COMPENSATION,   ,   ,   ,,BROWN LAWRENCE,2017-04-01,2017-06-30,BROADCAST ENGINEER/PROD SPEC.,23697.08,2017
,FISCAL YEAR 2017 CHIEF ADMIN OFCR OF THE HOUSE,2017Q2,SALARIES  OFFICERS & EMPLOYEES,PERSONNEL COMPENSATION,   ,   ,   ,,BRUMMELL JENELLE L,2017-04-01,2017-06-30,PARALEGAL,19932.24,2017
,FISCAL YEAR 2017 CHIEF ADMIN OFCR OF THE HOUSE,2017Q2,SALARIES  OFFICERS & EMPLOYEES,PERSONNEL COMPENSATION,   ,   ,   ,,BUCKLER RICKY L.,2017-04-01,2017-06-30,CONTRACTS SPECIALIST,23067,2017
,FISCAL YEAR 2017 CHIEF ADMIN OFCR OF THE HOUSE,2017Q2,SALARIES  OFFICERS & EMPLOYEES,PERSONNEL COMPENSATION,   ,   ,   ,,BUCKLER TROY D.,2017-04-01,2017-06-30,PURCHASING AGENT,17574.75,2017
,FISCAL YEAR 2017 CHIEF ADMIN OFCR OF THE HOUSE,2017Q2,SALARIES  OFFICERS & EMPLOYEES,PERSONNEL COMPENSATION,   ,   ,   ,,BUFORD MARCIA L.,2017-04-01,2017-06-30,COMPUTER FAC OP SUPERVISOR,28094.25,2017
,FISCAL YEAR 2017 CHIEF ADMIN OFCR OF THE HOUSE,2017Q2,SALARIES  OFFICERS & EMPLOYEES,PERSONNEL COMPENSATION,   ,   ,   ,,BURCH KENNETH J.,2017-04-01,2017-06-30,BUSINESS PROC APPLIC SPEC,31921.26,2017
,FISCAL YEAR 2017 CHIEF ADMIN OFCR OF THE HOUSE,2017Q2,SALARIES  OFFICERS & EMPLOYEES,PERSONNEL COMPENSATION,   ,   ,   ,,BURNHAM ELIZABETH,2017-04-01,2017-06-30,MEMBERS' SERVICES COUNSELOR,25240.5,2017
,FISCAL YEAR 2017 CHIEF ADMIN OFCR OF THE HOUSE,2017Q2,SALARIES  OFFICERS & EMPLOYEES,PERSONNEL COMPENSATION,   ,   ,   ,,BUTLER CLARENCE G.,2017-04-01,2017-06-30,JOURNEYMAN FURNITURE SPEC.,16855.74,2017
,FISCAL YEAR 2017 CHIEF ADMIN OFCR OF THE HOUSE,2017Q2,SALARIES  OFFICERS & EMPLOYEES,PERSONNEL COMPENSATION,   ,   ,   ,,BUTLER JAMES F.,2017-03-01,2017-03-13,ACTING DIRECTOR  P&B,7277.08,2017
,FISCAL YEAR 2017 CHIEF ADMIN OFCR OF THE HOUSE,2017Q2,SALARIES  OFFICERS & EMPLOYEES,PERSONNEL COMPENSATION,   ,   ,   ,,BUTLER JAMES F.,2017-03-01,2017-04-30,MANAGER  PAYROLL & BENEFITS,3967.63,2017
,FISCAL YEAR 2017 CHIEF ADMIN OFCR OF THE HOUSE,2017Q2,SALARIES  OFFICERS & EMPLOYEES,PERSONNEL COMPENSATION,   ,   ,   ,,BUTLER JAMES F.,2017-04-01,2017-06-30,DIRECTOR PAYROLL AND BENEFITS,23815.04,2017
,FISCAL YEAR 2017 CHIEF ADMIN OFCR OF THE HOUSE,2017Q2,SALARIES  OFFICERS & EMPLOYEES,PERSONNEL COMPENSATION,   ,   ,   ,,CADE SANYA,2017-04-01,2017-06-30,ASSISTANT CAO,41090.49,2017
,FISCAL YEAR 2017 CHIEF ADMIN OFCR OF THE HOUSE,2017Q2,SALARIES  OFFICERS & EMPLOYEES,PERSONNEL COMPENSATION,   ,   ,   ,,CALLAWAY ROBERT M.,2017-04-01,2017-06-30,SR BROADCAST ENG./PROD SPEC.,26189.49,2017
,FISCAL YEAR 2017 CHIEF ADMIN OFCR OF THE HOUSE,2017Q2,SALARIES  OFFICERS & EMPLOYEES,PERSONNEL COMPENSATION,   ,   ,   ,,CAPPETTO RICHARD,2017-04-01,2017-06-30,SENIOR ADVISOR,34834.74,2017
,FISCAL YEAR 2017 CHIEF ADMIN OFCR OF THE HOUSE,2017Q2,SALARIES  OFFICERS & EMPLOYEES,PERSONNEL COMPENSATION,   ,   ,   ,,CARABALLO MADELINE,2017-04-01,2017-06-30,INTERNET SYSTEMS SPECIALIST,20349,2017
,FISCAL YEAR 2017 CHIEF ADMIN OFCR OF THE HOUSE,2017Q2,SALARIES  OFFICERS & EMPLOYEES,PERSONNEL COMPENSATION,   ,   ,   ,,CARCAMO ALICIA L.,2017-04-01,2017-06-30,ACCOUNTING TECHNICIAN,20128.26,2017
,FISCAL YEAR 2017 CHIEF ADMIN OFCR OF THE HOUSE,2017Q2,SALARIES  OFFICERS & EMPLOYEES,PERSONNEL COMPENSATION,   ,   ,   ,,CARNEY MICHAEL T.,2017-04-01,2017-06-30,MANAGER (CAO COMPLIANCE),29757.24,2017
,FISCAL YEAR 2017 CHIEF ADMIN OFCR OF THE HOUSE,2017Q2,SALARIES  OFFICERS & EMPLOYEES,PERSONNEL COMPENSATION,   ,   ,   ,,CARNNIA CASEY,2017-04-01,2017-06-30,INTERNET SYSTEMS SPECIALIST,24287.01,2017
,FISCAL YEAR 2017 CHIEF ADMIN OFCR OF THE HOUSE,2017Q2,SALARIES  OFFICERS & EMPLOYEES,PERSONNEL COMPENSATION,   ,   ,   ,,CARR JOSH D.,2017-04-01,2017-06-30,SENIOR SYSTEMS ENGINEER,27143.49,2017
,FISCAL YEAR 2017 CHIEF ADMIN OFCR OF THE HOUSE,2017Q2,SALARIES  OFFICERS & EMPLOYEES,PERSONNEL COMPENSATION,   ,   ,   ,,CARRICO RONALD,2017-04-01,2017-06-30,SR BUSINESS  PROCESS APPL SPEC,39399,2017
,FISCAL YEAR 2017 CHIEF ADMIN OFCR OF THE HOUSE,2017Q2,SALARIES  OFFICERS & EMPLOYEES,PERSONNEL COMPENSATION,   ,   ,   ,,CARSON LAWRENCE T,2017-04-01,2017-06-30,SALES SPECIALIST,11064.51,2017
,FISCAL YEAR 2017 CHIEF ADMIN OFCR OF THE HOUSE,2017Q2,SALARIES  OFFICERS & EMPLOYEES,PERSONNEL COMPENSATION,   ,   ,   ,,CARTER JR JOHN L.,2017-04-01,2017-06-30,MANAGER  FINISHING,27333,2017
,FISCAL YEAR 2017 CHIEF ADMIN OFCR OF THE HOUSE,2017Q2,SALARIES  OFFICERS & EMPLOYEES,PERSONNEL COMPENSATION,   ,   ,   ,,CARTER DELISA D,2017-04-01,2017-06-30,SR. SOFTWARE SPECIALIST,38093.76,2017
,FISCAL YEAR 2017 CHIEF ADMIN OFCR OF THE HOUSE,2017Q2,SALARIES  OFFICERS & EMPLOYEES,PERSONNEL COMPENSATION,   ,   ,   ,,CHALETZKY ANA Y,2017-04-01,2017-06-30,MANAGER  ACCOUNTING,28134.75,2017
,FISCAL YEAR 2017 CHIEF ADMIN OFCR OF THE HOUSE,2017Q2,SALARIES  OFFICERS & EMPLOYEES,PERSONNEL COMPENSATION,   ,   ,   ,,CHAMBERS KEVIN N.,2017-04-01,2017-06-30,MANAGER,26189.49,2017
,FISCAL YEAR 2017 CHIEF ADMIN OFCR OF THE HOUSE,2017Q2,SALARIES  OFFICERS & EMPLOYEES,PERSONNEL COMPENSATION,   ,   ,   ,,CHARGUALAF JESSE,2017-04-01,2017-06-30,BROADCAST ENGINEER/PROD SPEC.,22117.5,2017
,FISCAL YEAR 2017 CHIEF ADMIN OFCR OF THE HOUSE,2017Q2,SALARIES  OFFICERS & EMPLOYEES,PERSONNEL COMPENSATION,   ,   ,   ,,CHARGUALAF JESSE,2017-03-01,2017-05-31,BROADCAST ENGINEER/PROD SPEC. (OVERTIME),1967.16,2017
,FISCAL YEAR 2017 CHIEF ADMIN OFCR OF THE HOUSE,2017Q2,SALARIES  OFFICERS & EMPLOYEES,PERSONNEL COMPENSATION,   ,   ,   ,,CHIU JIMMY,2017-04-01,2017-06-30,HRIS APPLICATIONS SYST ANALYST,27592.26,2017
,FISCAL YEAR 2017 CHIEF ADMIN OFCR OF THE HOUSE,2017Q2,SALARIES  OFFICERS & EMPLOYEES,PERSONNEL COMPENSATION,   ,   ,   ,,CIANGO JACOB,2017-04-01,2017-06-30,APPLICATION SYSTEMS ADMINISTRA,33554.49,2017
,FISCAL YEAR 2017 CHIEF ADMIN OFCR OF THE HOUSE,2017Q2,SALARIES  OFFICERS & EMPLOYEES,PERSONNEL COMPENSATION,   ,   ,   ,,CICALE MICHAEL P.,2017-04-01,2017-06-30,SR CUSTOMER SOLUTIONS REP.,20955.75,2017
,FISCAL YEAR 2017 CHIEF ADMIN OFCR OF THE HOUSE,2017Q2,SALARIES  OFFICERS & EMPLOYEES,PERSONNEL COMPENSATION,   ,   ,   ,,CICALE MICHAEL P.,2017-03-01,2017-03-31,SR CUSTOMER SOLUTIONS REP. (OVERTIME),181.35,2017
,FISCAL YEAR 2017 CHIEF ADMIN OFCR OF THE HOUSE,2017Q2,SALARIES  OFFICERS & EMPLOYEES,PERSONNEL COMPENSATION,   ,   ,   ,,CLAGGETT TIMOTHY A.,2017-04-01,2017-05-31,JOURNEYMAN TEXTILE SPEC,13418.84,2017
,FISCAL YEAR 2017 CHIEF ADMIN OFCR OF THE HOUSE,2017Q2,SALARIES  OFFICERS & EMPLOYEES,PERSONNEL COMPENSATION,   ,   ,   ,,CLAGGETT TIMOTHY A.,2017-05-01,2017-05-31,JOURNEYMAN TEXTILE SPEC (OTHER COMPENSATION),754.81,2017
,FISCAL YEAR 2017 CHIEF ADMIN OFCR OF THE HOUSE,2017Q2,SALARIES  OFFICERS & EMPLOYEES,PERSONNEL COMPENSATION,   ,   ,   ,,CLARK MARION,2017-04-01,2017-06-30,SR TELECOMMUNICATIONS ADMIN,19298.01,2017
,FISCAL YEAR 2017 CHIEF ADMIN OFCR OF THE HOUSE,2017Q2,SALARIES  OFFICERS & EMPLOYEES,PERSONNEL COMPENSATION,   ,   ,   ,,CLARK MARION,2017-03-01,2017-03-31,SR TELECOMMUNICATIONS ADMIN (OVERTIME),501,2017
,FISCAL YEAR 2017 CHIEF ADMIN OFCR OF THE HOUSE,2017Q2,SALARIES  OFFICERS & EMPLOYEES,PERSONNEL COMPENSATION,   ,   ,   ,,CLARK YVETTE I.,2017-04-01,2017-06-30,TRAINING COORDINATOR,16137.75,2017
,FISCAL YEAR 2017 CHIEF ADMIN OFCR OF THE HOUSE,2017Q2,SALARIES  OFFICERS & EMPLOYEES,PERSONNEL COMPENSATION,   ,   ,   ,,CLARKE JOHN P.,2017-04-01,2017-06-30,SUPERVISOR (RECEIVING),23539.5,2017
,FISCAL YEAR 2017 CHIEF ADMIN OFCR OF THE HOUSE,2017Q2,SALARIES  OFFICERS & EMPLOYEES,PERSONNEL COMPENSATION,   ,   ,   ,,CLOCKER JOHN C.,2017-04-01,2017-06-30,DEPUTY CAO,42674.01,2017
,FISCAL YEAR 2017 CHIEF ADMIN OFCR OF THE HOUSE,2017Q2,SALARIES  OFFICERS & EMPLOYEES,PERSONNEL COMPENSATION,   ,   ,   ,,COAKLEY KRISTEN J,2017-04-01,2017-06-30,TELEPHONE SYSTEMS CONSULTANT,21640.74,2017
,FISCAL YEAR 2017 CHIEF ADMIN OFCR OF THE HOUSE,2017Q2,SALARIES  OFFICERS & EMPLOYEES,PERSONNEL COMPENSATION,   ,   ,   ,,COBB FAYE C.,2017-04-01,2017-06-30,DIR  BUDGET  POLICY & PLANNING,42102.75,2017
,FISCAL YEAR 2017 CHIEF ADMIN OFCR OF THE HOUSE,2017Q2,SALARIES  OFFICERS & EMPLOYEES,PERSONNEL COMPENSATION,   ,   ,   ,,COLBERT RAY C.,2017-04-01,2017-06-30,SR BROADCAST ENG/PROD SPECLST,25715.76,2017
,FISCAL YEAR 2017 CHIEF ADMIN OFCR OF THE HOUSE,2017Q2,SALARIES  OFFICERS & EMPLOYEES,PERSONNEL COMPENSATION,   ,   ,   ,,COLBERT RAY C.,2017-03-01,2017-05-31,SR BROADCAST ENG/PROD SPECLST (OVERTIME),754.16,2017
,FISCAL YEAR 2017 CHIEF ADMIN OFCR OF THE HOUSE,2017Q2,SALARIES  OFFICERS & EMPLOYEES,PERSONNEL COMPENSATION,   ,   ,   ,,COLLINS JOHN B.,2017-04-01,2017-06-30,BROADCAST PRODUCTION TECHNICIA,25121.41,2017
,FISCAL YEAR 2017 CHIEF ADMIN OFCR OF THE HOUSE,2017Q2,SALARIES  OFFICERS & EMPLOYEES,PERSONNEL COMPENSATION,   ,   ,   ,,COLLINS JOHN B.,2017-03-01,2017-05-31,BROADCAST PRODUCTION TECHNICIA (OVERTIME),3744.56,2017
,FISCAL YEAR 2017 CHIEF ADMIN OFCR OF THE HOUSE,2017Q2,SALARIES  OFFICERS & EMPLOYEES,PERSONNEL COMPENSATION,   ,   ,   ,,COLOM BELANE S,2017-04-01,2017-06-30,ACCOUNTING TECHNICIAN,12540.75,2017
,FISCAL YEAR 2017 CHIEF ADMIN OFCR OF THE HOUSE,2017Q2,SALARIES  OFFICERS & EMPLOYEES,PERSONNEL COMPENSATION,   ,   ,   ,,COLOM BELANE S,2017-02-01,2017-04-30,ACCOUNTING TECHNICIAN (OVERTIME),2954.53,2017
,FISCAL YEAR 2017 CHIEF ADMIN OFCR OF THE HOUSE,2017Q2,SALARIES  OFFICERS & EMPLOYEES,PERSONNEL COMPENSATION,   ,   ,   ,,CONNOLLY ERIC,2017-04-01,2017-06-30,PHOTOGRAPHER,16137.75,2017
,FISCAL YEAR 2017 CHIEF ADMIN OFCR OF THE HOUSE,2017Q2,SALARIES  OFFICERS & EMPLOYEES,PERSONNEL COMPENSATION,   ,   ,   ,,CONNOLLY ERIC,2017-04-01,2017-04-30,PHOTOGRAPHER (OVERTIME),465.51,2017
,FISCAL YEAR 2017 CHIEF ADMIN OFCR OF THE HOUSE,2017Q2,SALARIES  OFFICERS & EMPLOYEES,PERSONNEL COMPENSATION,   ,   ,   ,,COOK ERIC H.,2017-04-01,2017-06-30,NETWORK TECHNICIAN,22016.76,2017
,FISCAL YEAR 2017 CHIEF ADMIN OFCR OF THE HOUSE,2017Q2,SALARIES  OFFICERS & EMPLOYEES,PERSONNEL COMPENSATION,   ,   ,   ,,COOPER RICHARD S.,2017-04-01,2017-06-30,STAFF ACCOUNTANT (A),27143.49,2017
,FISCAL YEAR 2017 CHIEF ADMIN OFCR OF THE HOUSE,2017Q2,SALARIES  OFFICERS & EMPLOYEES,PERSONNEL COMPENSATION,   ,   ,   ,,CORNEJO LUIS E.,2017-04-01,2017-06-30,SENIOR SYSTEMS ENGINEER,27620.76,2017
,FISCAL YEAR 2017 CHIEF ADMIN OFCR OF THE HOUSE,2017Q2,SALARIES  OFFICERS & EMPLOYEES,PERSONNEL COMPENSATION,   ,   ,   ,,COX BRIDGET A.,2017-04-01,2017-06-30,SENIOR SYSTEMS ANALYST,31921.26,2017
,FISCAL YEAR 2017 CHIEF ADMIN OFCR OF THE HOUSE,2017Q2,SALARIES  OFFICERS & EMPLOYEES,PERSONNEL COMPENSATION,   ,   ,   ,,COYNE III THOMAS E.,2017-04-01,2017-06-30,CHIEF LOGISTICS OFFICER,42102.75,2017
,FISCAL YEAR 2017 CHIEF ADMIN OFCR OF THE HOUSE,2017Q2,SALARIES  OFFICERS & EMPLOYEES,PERSONNEL COMPENSATION,   ,   ,   ,,CROTTS JAMIE R,2017-04-01,2017-06-30,SEC COMM & TRAIN MANAGER,38093.76,2017
,FISCAL YEAR 2017 CHIEF ADMIN OFCR OF THE HOUSE,2017Q2,SALARIES  OFFICERS & EMPLOYEES,PERSONNEL COMPENSATION,   ,   ,   ,,CRUDUP III WILLIAM D.,2017-04-01,2017-06-30,RECEIVING/WAREHOUSE SPEC (A),13437,2017
,FISCAL YEAR 2017 CHIEF ADMIN OFCR OF THE HOUSE,2017Q2,SALARIES  OFFICERS & EMPLOYEES,PERSONNEL COMPENSATION,   ,   ,   ,,CUFF LOREN D,2017-04-01,2017-06-30,INTERNET SYSTEMS SPECIALIST,21183.99,2017
,FISCAL YEAR 2017 CHIEF ADMIN OFCR OF THE HOUSE,2017Q2,SALARIES  OFFICERS & EMPLOYEES,PERSONNEL COMPENSATION,   ,   ,   ,,CUFFEE DANIELLE M,2017-04-01,2017-06-30,ASSET/INVENTORY COUNSELOR,12540.75,2017
,FISCAL YEAR 2017 CHIEF ADMIN OFCR OF THE HOUSE,2017Q2,SALARIES  OFFICERS & EMPLOYEES,PERSONNEL COMPENSATION,   ,   ,   ,,CUFFEE DANIELLE M,2017-04-01,2017-04-30,ASSET/INVENTORY COUNSELOR (OVERTIME),144.7,2017
,FISCAL YEAR 2017 CHIEF ADMIN OFCR OF THE HOUSE,2017Q2,SALARIES  OFFICERS & EMPLOYEES,PERSONNEL COMPENSATION,   ,   ,   ,,CUFFEY LAWRENCE,2017-04-01,2017-06-30,SR SCHEDULING SPEC/SAFETY LIAS,19298.01,2017
,FISCAL YEAR 2017 CHIEF ADMIN OFCR OF THE HOUSE,2017Q2,SALARIES  OFFICERS & EMPLOYEES,PERSONNEL COMPENSATION,   ,   ,   ,,CUPRILL CARLOS,2017-04-01,2017-06-30,SUPERVISOR,27049.74,2017
,FISCAL YEAR 2017 CHIEF ADMIN OFCR OF THE HOUSE,2017Q2,SALARIES  OFFICERS & EMPLOYEES,PERSONNEL COMPENSATION,   ,   ,   ,,CUTLER JR BENJAMIN S.,2017-04-01,2017-06-30,PAYROLL & BENEFITS ASSISTANT,16855.74,2017
,FISCAL YEAR 2017 CHIEF ADMIN OFCR OF THE HOUSE,2017Q2,SALARIES  OFFICERS & EMPLOYEES,PERSONNEL COMPENSATION,   ,   ,   ,,DAHL RYAN S,2017-04-01,2017-06-30,MEDIA LOGISTICS COORDINATOR,18752.33,2017
,FISCAL YEAR 2017 CHIEF ADMIN OFCR OF THE HOUSE,2017Q2,SALARIES  OFFICERS & EMPLOYEES,PERSONNEL COMPENSATION,   ,   ,   ,,DAHLSTROM DARREN,2017-04-01,2017-06-30,MANAGER  CABINET,23067,2017
,FISCAL YEAR 2017 CHIEF ADMIN OFCR OF THE HOUSE,2017Q2,SALARIES  OFFICERS & EMPLOYEES,PERSONNEL COMPENSATION,   ,   ,   ,,DANIEL JR GEORGE,2017-04-01,2017-06-30,ASST CHIEF LOGISTICS OFFICER,36786,2017
,FISCAL YEAR 2017 CHIEF ADMIN OFCR OF THE HOUSE,2017Q2,SALARIES  OFFICERS & EMPLOYEES,PERSONNEL COMPENSATION,   ,   ,   ,,DANIEL JADA A,2017-04-01,2017-06-30,SENIOR PROJECTS SPECIALIST,18681.51,2017
,FISCAL YEAR 2017 CHIEF ADMIN OFCR OF THE HOUSE,2017Q2,SALARIES  OFFICERS & EMPLOYEES,PERSONNEL COMPENSATION,   ,   ,   ,,DANIEL JADA A,2017-03-01,2017-04-30,SENIOR PROJECTS SPECIALIST (OVERTIME),1059.81,2017
,FISCAL YEAR 2017 CHIEF ADMIN OFCR OF THE HOUSE,2017Q2,SALARIES  OFFICERS & EMPLOYEES,PERSONNEL COMPENSATION,   ,   ,   ,,DAVENPORT KAREN V,2017-04-01,2017-06-30,FINANCIAL ANALYST,24012.24,2017
,FISCAL YEAR 2017 CHIEF ADMIN OFCR OF THE HOUSE,2017Q2,SALARIES  OFFICERS & EMPLOYEES,PERSONNEL COMPENSATION,   ,   ,   ,,DAVIS JOHN J.,2017-04-01,2017-06-30,BROADCAST PRODUCTION TECHNICIA,24488.76,2017
,FISCAL YEAR 2017 CHIEF ADMIN OFCR OF THE HOUSE,2017Q2,SALARIES  OFFICERS & EMPLOYEES,PERSONNEL COMPENSATION,   ,   ,   ,,DAVIS JOHN J.,2017-03-01,2017-04-30,BROADCAST PRODUCTION TECHNICIA (OVERTIME),47.09,2017
,FISCAL YEAR 2017 CHIEF ADMIN OFCR OF THE HOUSE,2017Q2,SALARIES  OFFICERS & EMPLOYEES,PERSONNEL COMPENSATION,   ,   ,   ,,DAVIS STACHIA G.,2017-04-01,2017-06-30,DIR MOD FURN & TRANSITION,29757.24,2017
,FISCAL YEAR 2017 CHIEF ADMIN OFCR OF THE HOUSE,2017Q2,SALARIES  OFFICERS & EMPLOYEES,PERSONNEL COMPENSATION,   ,   ,   ,,DAVIS SCOTT K,2017-04-01,2017-06-30,PAYROLL & BENEFITS GENERALIST,18468.24,2017
,FISCAL YEAR 2017 CHIEF ADMIN OFCR OF THE HOUSE,2017Q2,SALARIES  OFFICERS & EMPLOYEES,PERSONNEL COMPENSATION,   ,   ,   ,,DAVIS SCOTT K,2017-05-01,2017-05-31,PAYROLL & BENEFITS GENERALIST (OVERTIME),293,2017
,FISCAL YEAR 2017 CHIEF ADMIN OFCR OF THE HOUSE,2017Q2,SALARIES  OFFICERS & EMPLOYEES,PERSONNEL COMPENSATION,   ,   ,   ,,DAWKINS JOANN,2017-04-01,2017-06-30,SR TELECOMM ADMIN,17574.75,2017
,FISCAL YEAR 2017 CHIEF ADMIN OFCR OF THE HOUSE,2017Q2,SALARIES  OFFICERS & EMPLOYEES,PERSONNEL COMPENSATION,   ,   ,   ,,DAWKINS JOANN,2017-03-01,2017-03-31,SR TELECOMM ADMIN (OVERTIME),304.17,2017
,FISCAL YEAR 2017 CHIEF ADMIN OFCR OF THE HOUSE,2017Q2,SALARIES  OFFICERS & EMPLOYEES,PERSONNEL COMPENSATION,   ,   ,   ,,DEAN JOSEPH M.,2017-04-01,2017-06-30,JOURNEYMAN TEXTILE SPEC,22016.76,2017
,FISCAL YEAR 2017 CHIEF ADMIN OFCR OF THE HOUSE,2017Q2,SALARIES  OFFICERS & EMPLOYEES,PERSONNEL COMPENSATION,   ,   ,   ,,DELISLE KALDON A,2017-04-01,2017-06-30,JOURNEYMAN FURNITURE SPEC.,15420.24,2017
,FISCAL YEAR 2017 CHIEF ADMIN OFCR OF THE HOUSE,2017Q2,SALARIES  OFFICERS & EMPLOYEES,PERSONNEL COMPENSATION,   ,   ,   ,,DELUCA ALAN,2017-04-01,2017-06-30,COMPUTER FACILITIES OP MGR (A),38093.76,2017
,FISCAL YEAR 2017 CHIEF ADMIN OFCR OF THE HOUSE,2017Q2,SALARIES  OFFICERS & EMPLOYEES,PERSONNEL COMPENSATION,   ,   ,   ,,DENEGRI ANDRE J,2017-04-01,2017-06-30,FINANCIAL ANALYST,18681.51,2017
,FISCAL YEAR 2017 CHIEF ADMIN OFCR OF THE HOUSE,2017Q2,SALARIES  OFFICERS & EMPLOYEES,PERSONNEL COMPENSATION,   ,   ,   ,,DENT RICHARD H,2017-04-01,2017-06-30,JOURNEYMAN TEXTILE SPEC,13974,2017
,FISCAL YEAR 2017 CHIEF ADMIN OFCR OF THE HOUSE,2017Q2,SALARIES  OFFICERS & EMPLOYEES,PERSONNEL COMPENSATION,   ,   ,   ,,DERRICK SCOTT,2017-04-01,2017-06-30,GRAPHIC DESIGNER,24488.76,2017
,FISCAL YEAR 2017 CHIEF ADMIN OFCR OF THE HOUSE,2017Q2,SALARIES  OFFICERS & EMPLOYEES,PERSONNEL COMPENSATION,   ,   ,   ,,DETWEILER BETHANY,2017-04-01,2017-06-30,ADMINISTRATIVE SPECIALIST,11555.76,2017
,FISCAL YEAR 2017 CHIEF ADMIN OFCR OF THE HOUSE,2017Q2,SALARIES  OFFICERS & EMPLOYEES,PERSONNEL COMPENSATION,   ,   ,   ,,DIAZ GONZALEZ ROSARIO D.,2017-04-01,2017-06-30,SR CUSTOMER SOLUTIONS REP.,21600.99,2017
,FISCAL YEAR 2017 CHIEF ADMIN OFCR OF THE HOUSE,2017Q2,SALARIES  OFFICERS & EMPLOYEES,PERSONNEL COMPENSATION,   ,   ,   ,,DIAZ GONZALEZ ROSARIO D.,2017-03-01,2017-03-31,SR CUSTOMER SOLUTIONS REP. (OVERTIME),332.32,2017
,FISCAL YEAR 2017 CHIEF ADMIN OFCR OF THE HOUSE,2017Q2,SALARIES  OFFICERS & EMPLOYEES,PERSONNEL COMPENSATION,   ,   ,   ,,DICKIE JAMES,2017-04-01,2017-06-30,ENGINEERING OPS MANAGER,33358.41,2017
,FISCAL YEAR 2017 CHIEF ADMIN OFCR OF THE HOUSE,2017Q2,SALARIES  OFFICERS & EMPLOYEES,PERSONNEL COMPENSATION,   ,   ,   ,,DIEFFENDERFER GARY L.,2017-04-01,2017-06-30,SR. APPLICATION DBA SPECIALIST,34734.99,2017
,FISCAL YEAR 2017 CHIEF ADMIN OFCR OF THE HOUSE,2017Q2,SALARIES  OFFICERS & EMPLOYEES,PERSONNEL COMPENSATION,   ,   ,   ,,DOBBINS MARK,2017-04-01,2017-06-30,MANAGER  PURCHASING,24963.99,2017
,FISCAL YEAR 2017 CHIEF ADMIN OFCR OF THE HOUSE,2017Q2,SALARIES  OFFICERS & EMPLOYEES,PERSONNEL COMPENSATION,   ,   ,   ,,DOOLEY GENEVA,2017-04-01,2017-06-30,SENIOR SOFTWARE SPECIALIST,34734.99,2017
,FISCAL YEAR 2017 CHIEF ADMIN OFCR OF THE HOUSE,2017Q2,SALARIES  OFFICERS & EMPLOYEES,PERSONNEL COMPENSATION,   ,   ,   ,,DOZIER BRIAN A.,2017-04-01,2017-06-30,SR RECEIVING & WAREHOUSIN SPEC,17366.16,2017
,FISCAL YEAR 2017 CHIEF ADMIN OFCR OF THE HOUSE,2017Q2,SALARIES  OFFICERS & EMPLOYEES,PERSONNEL COMPENSATION,   ,   ,   ,,DUENAS JOSEPH E.,2017-04-01,2017-06-30,TECHNICAL SUPPORT REP,20349,2017
,FISCAL YEAR 2017 CHIEF ADMIN OFCR OF THE HOUSE,2017Q2,SALARIES  OFFICERS & EMPLOYEES,PERSONNEL COMPENSATION,   ,   ,   ,,DUNKLIN KELDA Y.,2017-04-01,2017-06-30,SR TECHNICAL SUPPORT REP,28094.25,2017
,FISCAL YEAR 2017 CHIEF ADMIN OFCR OF THE HOUSE,2017Q2,SALARIES  OFFICERS & EMPLOYEES,PERSONNEL COMPENSATION,   ,   ,   ,,DURAN ROLANDO,2017-04-01,2017-06-30,ELECTRONICS TECHNICIAN (A),24012.24,2017
,FISCAL YEAR 2017 CHIEF ADMIN OFCR OF THE HOUSE,2017Q2,SALARIES  OFFICERS & EMPLOYEES,PERSONNEL COMPENSATION,   ,   ,   ,,DYSON LAURA,2017-04-01,2017-06-30,SR ENTERPRISE ARCHITECT,32966.25,2017
,FISCAL YEAR 2017 CHIEF ADMIN OFCR OF THE HOUSE,2017Q2,SALARIES  OFFICERS & EMPLOYEES,PERSONNEL COMPENSATION,   ,   ,   ,,EAGLIN HOPE J,2017-02-01,2017-06-30,SENIOR SECURITY ANALYST,26016.76,2017
,FISCAL YEAR 2017 CHIEF ADMIN OFCR OF THE HOUSE,2017Q2,SALARIES  OFFICERS & EMPLOYEES,PERSONNEL COMPENSATION,   ,   ,   ,,EDWARD RYLEY J,2017-04-01,2017-06-30,RECEIVING/WAREHOUSE SPEC,10931.01,2017
,FISCAL YEAR 2017 CHIEF ADMIN OFCR OF THE HOUSE,2017Q2,SALARIES  OFFICERS & EMPLOYEES,PERSONNEL COMPENSATION,   ,   ,   ,,EGERSON TROY H.,2017-04-01,2017-06-30,JOURNEYMAN TEXTILE SPEC,19713,2017
,FISCAL YEAR 2017 CHIEF ADMIN OFCR OF THE HOUSE,2017Q2,SALARIES  OFFICERS & EMPLOYEES,PERSONNEL COMPENSATION,   ,   ,   ,,ELIAS ANDREW C.,2017-04-01,2017-06-30,DEPUTY DIRECTOR,33000,2017
,FISCAL YEAR 2017 CHIEF ADMIN OFCR OF THE HOUSE,2017Q2,SALARIES  OFFICERS & EMPLOYEES,PERSONNEL COMPENSATION,   ,   ,   ,,ELLIN JAMES B.,2017-04-01,2017-06-30,SR NETWORK SYSTEMS ENGINEER,32375.25,2017
,FISCAL YEAR 2017 CHIEF ADMIN OFCR OF THE HOUSE,2017Q2,SALARIES  OFFICERS & EMPLOYEES,PERSONNEL COMPENSATION,   ,   ,   ,,ELLIOTT RONALD,2017-04-01,2017-06-30,SR INFO SYST. SECURITY ANALYST,27143.49,2017
,FISCAL YEAR 2017 CHIEF ADMIN OFCR OF THE HOUSE,2017Q2,SALARIES  OFFICERS & EMPLOYEES,PERSONNEL COMPENSATION,   ,   ,   ,,ELLIS FRANKLIN M,2017-04-01,2017-06-30,SR SYSTEMS SUPPORT ENGINEER,25081.33,2017
,FISCAL YEAR 2017 CHIEF ADMIN OFCR OF THE HOUSE,2017Q2,SALARIES  OFFICERS & EMPLOYEES,PERSONNEL COMPENSATION,   ,   ,   ,,ELLIS-GREGG SHARON,2017-04-01,2017-06-30,PAYROLL & BENEFITS ASSISTANT,15408.24,2017
,FISCAL YEAR 2017 CHIEF ADMIN OFCR OF THE HOUSE,2017Q2,SALARIES  OFFICERS & EMPLOYEES,PERSONNEL COMPENSATION,   ,   ,   ,,ELLIS-JONES DEBORAH,2017-04-01,2017-06-30,ADMIN-FINANCE & PAYROLL,25715.76,2017
,FISCAL YEAR 2017 CHIEF ADMIN OFCR OF THE HOUSE,2017Q2,SALARIES  OFFICERS & EMPLOYEES,PERSONNEL COMPENSATION,   ,   ,   ,,EMAMALI NICOLE S.,2017-04-01,2017-06-30,SR TECHNICAL SUPPORT REP,29757.24,2017
,FISCAL YEAR 2017 CHIEF ADMIN OFCR OF THE HOUSE,2017Q2,SALARIES  OFFICERS & EMPLOYEES,PERSONNEL COMPENSATION,   ,   ,   ,,ENGLISH IV JAMES H.,2017-04-01,2017-06-30,JOURNEYMAN FURNITURE SPEC.,15065.01,2017
,FISCAL YEAR 2017 CHIEF ADMIN OFCR OF THE HOUSE,2017Q2,SALARIES  OFFICERS & EMPLOYEES,PERSONNEL COMPENSATION,   ,   ,   ,,ENGLISH IV JAMES H.,2017-03-01,2017-03-31,JOURNEYMAN FURNITURE SPEC. (OVERTIME),347.65,2017
,FISCAL YEAR 2017 CHIEF ADMIN OFCR OF THE HOUSE,2017Q2,SALARIES  OFFICERS & EMPLOYEES,PERSONNEL COMPENSATION,   ,   ,   ,,ENGLISH JOSEPH H.,2017-04-01,2017-06-30,MOBILE COMM SPECIALIST (DATA),27143.49,2017
,FISCAL YEAR 2017 CHIEF ADMIN OFCR OF THE HOUSE,2017Q2,SALARIES  OFFICERS & EMPLOYEES,PERSONNEL COMPENSATION,   ,   ,   ,,ERVING JAMES H.,2017-04-01,2017-06-30,COMMUNICATIONS SPECIALIST,28094.25,2017
,FISCAL YEAR 2017 CHIEF ADMIN OFCR OF THE HOUSE,2017Q2,SALARIES  OFFICERS & EMPLOYEES,PERSONNEL COMPENSATION,   ,   ,   ,,ETCHISON CHERYL A,2017-04-01,2017-06-30,MANAGER  PAYROLL & BENEFITS,31788.75,2017
,FISCAL YEAR 2017 CHIEF ADMIN OFCR OF THE HOUSE,2017Q2,SALARIES  OFFICERS & EMPLOYEES,PERSONNEL COMPENSATION,   ,   ,   ,,EVANS JR WILLIAM R.,2017-04-01,2017-06-30,ELECTRONICS TECHNICIAN (A),24488.76,2017
,FISCAL YEAR 2017 CHIEF ADMIN OFCR OF THE HOUSE,2017Q2,SALARIES  OFFICERS & EMPLOYEES,PERSONNEL COMPENSATION,   ,   ,   ,,EVANS JR WILLIAM R.,2017-03-01,2017-03-31,ELECTRONICS TECHNICIAN (A) (OVERTIME),400.29,2017
,FISCAL YEAR 2017 CHIEF ADMIN OFCR OF THE HOUSE,2017Q2,SALARIES  OFFICERS & EMPLOYEES,PERSONNEL COMPENSATION,   ,   ,   ,,EVANS THOMAS F,2017-04-01,2017-06-30,INFO SYSTEMS SECURITY ANALYST,25240.5,2017
,FISCAL YEAR 2017 CHIEF ADMIN OFCR OF THE HOUSE,2017Q2,SALARIES  OFFICERS & EMPLOYEES,PERSONNEL COMPENSATION,   ,   ,   ,,EWERS GRETCHEN,2017-04-01,2017-06-30,ACTING DIR  FIN COUNSELING,31921.26,2017
,FISCAL YEAR 2017 CHIEF ADMIN OFCR OF THE HOUSE,2017Q2,SALARIES  OFFICERS & EMPLOYEES,PERSONNEL COMPENSATION,   ,   ,   ,,EWING JR JOHN C.,2017-04-01,2017-06-30,ASSET/INVENTORY COUNSELOR,12540.75,2017
,FISCAL YEAR 2017 CHIEF ADMIN OFCR OF THE HOUSE,2017Q2,SALARIES  OFFICERS & EMPLOYEES,PERSONNEL COMPENSATION,   ,   ,   ,,FAISON SHAWNA,2017-04-01,2017-06-30,SR GRAPHIC DESIGNER,21165.24,2017
,FISCAL YEAR 2017 CHIEF ADMIN OFCR OF THE HOUSE,2017Q2,SALARIES  OFFICERS & EMPLOYEES,PERSONNEL COMPENSATION,   ,   ,   ,,FARLEY JOANN I.,2017-04-01,2017-06-30,FINANCIAL COUNSELOR,19298.01,2017
,FISCAL YEAR 2017 CHIEF ADMIN OFCR OF THE HOUSE,2017Q2,SALARIES  OFFICERS & EMPLOYEES,PERSONNEL COMPENSATION,   ,   ,   ,,FINUCANE CHRISTOPHER B,2017-04-01,2017-06-30,DIRECTOR ENTERPRISE OPERATIONS,42102.75,2017
,FISCAL YEAR 2017 CHIEF ADMIN OFCR OF THE HOUSE,2017Q2,SALARIES  OFFICERS & EMPLOYEES,PERSONNEL COMPENSATION,   ,   ,   ,,FISHER JEROME,2017-04-01,2017-06-30,SR TECH SOLUTIONS ENGINEER,26667.51,2017
,FISCAL YEAR 2017 CHIEF ADMIN OFCR OF THE HOUSE,2017Q2,SALARIES  OFFICERS & EMPLOYEES,PERSONNEL COMPENSATION,   ,   ,   ,,FONTNEAU BRUCE,2017-04-01,2017-06-30,SR SYSTEMS ENGINEER,27592.26,2017
,FISCAL YEAR 2017 CHIEF ADMIN OFCR OF THE HOUSE,2017Q2,SALARIES  OFFICERS & EMPLOYEES,PERSONNEL COMPENSATION,   ,   ,   ,,FORD DARIN J.,2017-04-01,2017-06-30,SR TECHNICAL SUPPORT REP (A),24488.76,2017
,FISCAL YEAR 2017 CHIEF ADMIN OFCR OF THE HOUSE,2017Q2,SALARIES  OFFICERS & EMPLOYEES,PERSONNEL COMPENSATION,   ,   ,   ,,FORGIONE JOHN A.,2017-04-01,2017-06-30,SR CUSTOMER SOLUTIONS REP.,20128.26,2017
,FISCAL YEAR 2017 CHIEF ADMIN OFCR OF THE HOUSE,2017Q2,SALARIES  OFFICERS & EMPLOYEES,PERSONNEL COMPENSATION,   ,   ,   ,,FOSTER CHARLES J.,2017-04-01,2017-06-30,PAYROLL & BENEFITS ASSISTANT,15408.24,2017
,FISCAL YEAR 2017 CHIEF ADMIN OFCR OF THE HOUSE,2017Q2,SALARIES  OFFICERS & EMPLOYEES,PERSONNEL COMPENSATION,   ,   ,   ,,FOSTER CHARLES J.,2017-04-01,2017-04-30,PAYROLL & BENEFITS ASSISTANT (OVERTIME),133.34,2017
,FISCAL YEAR 2017 CHIEF ADMIN OFCR OF THE HOUSE,2017Q2,SALARIES  OFFICERS & EMPLOYEES,PERSONNEL COMPENSATION,   ,   ,   ,,FOSTER KRISTIN N,2017-04-01,2017-06-30,PAYROLL & BENEFITS GENERALIST,16812.51,2017
,FISCAL YEAR 2017 CHIEF ADMIN OFCR OF THE HOUSE,2017Q2,SALARIES  OFFICERS & EMPLOYEES,PERSONNEL COMPENSATION,   ,   ,   ,,FOSTER KRISTIN N,2017-02-01,2017-02-28,PAYROLL & BENEFITS GENERALIST (OVERTIME),412.22,2017
,FISCAL YEAR 2017 CHIEF ADMIN OFCR OF THE HOUSE,2017Q2,SALARIES  OFFICERS & EMPLOYEES,PERSONNEL COMPENSATION,   ,   ,   ,,FOUNTAIN ANIKA,2017-04-01,2017-06-30,TECH SOLUTIONS TECHNICIAN,19298.01,2017
,FISCAL YEAR 2017 CHIEF ADMIN OFCR OF THE HOUSE,2017Q2,SALARIES  OFFICERS & EMPLOYEES,PERSONNEL COMPENSATION,   ,   ,   ,,FRAVEL DON J,2017-04-01,2017-06-30,TECH SOLUTIONS TECHNICIAN,18885.24,2017
,FISCAL YEAR 2017 CHIEF ADMIN OFCR OF THE HOUSE,2017Q2,SALARIES  OFFICERS & EMPLOYEES,PERSONNEL COMPENSATION,   ,   ,   ,,FRECH JASON L.,2017-04-01,2017-06-30,ENTERPRISE ADMINISTRATOR,30609.75,2017
,FISCAL YEAR 2017 CHIEF ADMIN OFCR OF THE HOUSE,2017Q2,SALARIES  OFFICERS & EMPLOYEES,PERSONNEL COMPENSATION,   ,   ,   ,,FREEMAN ANTOINETTE P.,2017-04-01,2017-06-30,ADMINISTRATIVE SPECIALIST,16244.84,2017
,FISCAL YEAR 2017 CHIEF ADMIN OFCR OF THE HOUSE,2017Q2,SALARIES  OFFICERS & EMPLOYEES,PERSONNEL COMPENSATION,   ,   ,   ,,FREENEY MALCOLM,2017-04-01,2017-06-30,PROJECT MANAGER,27620.76,2017
,FISCAL YEAR 2017 CHIEF ADMIN OFCR OF THE HOUSE,2017Q2,SALARIES  OFFICERS & EMPLOYEES,PERSONNEL COMPENSATION,   ,   ,   ,,FRENCH CHARLES,2017-04-01,2017-06-30,SENIOR NETWORK TECHNICIAN,27143.49,2017
,FISCAL YEAR 2017 CHIEF ADMIN OFCR OF THE HOUSE,2017Q2,SALARIES  OFFICERS & EMPLOYEES,PERSONNEL COMPENSATION,   ,   ,   ,,FRITZ ERIC D,2017-04-01,2017-06-30,ENTERPRISE OPER ENG TEAM LEAD,30609.75,2017
,FISCAL YEAR 2017 CHIEF ADMIN OFCR OF THE HOUSE,2017Q2,SALARIES  OFFICERS & EMPLOYEES,PERSONNEL COMPENSATION,   ,   ,   ,,GAINES JULIA W.,2017-04-01,2017-06-30,SPECIAL ASSISTANT (A),27333,2017
,FISCAL YEAR 2017 CHIEF ADMIN OFCR OF THE HOUSE,2017Q2,SALARIES  OFFICERS & EMPLOYEES,PERSONNEL COMPENSATION,   ,   ,   ,,GALLAGHER RENEE,2017-04-01,2017-06-30,SR INFO SYST. SECURITY ANALYST,27461.67,2017
,FISCAL YEAR 2017 CHIEF ADMIN OFCR OF THE HOUSE,2017Q2,SALARIES  OFFICERS & EMPLOYEES,PERSONNEL COMPENSATION,   ,   ,   ,,GALLAGHER RYAN S,2017-04-01,2017-04-14,HUMAN RESOURCES GENERALIST,2808.71,2017
,FISCAL YEAR 2017 CHIEF ADMIN OFCR OF THE HOUSE,2017Q2,SALARIES  OFFICERS & EMPLOYEES,PERSONNEL COMPENSATION,   ,   ,   ,,GALLAGHER RYAN S,2017-04-01,2017-04-14,HUMAN RESOURCES GENERALIST (OTHER COMPENSATION),2783.63,2017
,FISCAL YEAR 2017 CHIEF ADMIN OFCR OF THE HOUSE,2017Q2,SALARIES  OFFICERS & EMPLOYEES,PERSONNEL COMPENSATION,   ,   ,   ,,GALLAGHER SARAH C,2017-04-01,2017-06-30,FINANCIAL RPT ACCOUNTANT,24287.01,2017
,FISCAL YEAR 2017 CHIEF ADMIN OFCR OF THE HOUSE,2017Q2,SALARIES  OFFICERS & EMPLOYEES,PERSONNEL COMPENSATION,   ,   ,   ,,GARAY GERMAN,2017-04-01,2017-06-30,BROADCAST PRODUCTION TECHNICIA,24488.76,2017
,FISCAL YEAR 2017 CHIEF ADMIN OFCR OF THE HOUSE,2017Q2,SALARIES  OFFICERS & EMPLOYEES,PERSONNEL COMPENSATION,   ,   ,   ,,GARAY GERMAN,2017-03-01,2017-05-31,BROADCAST PRODUCTION TECHNICIA (OVERTIME),4155.98,2017
,FISCAL YEAR 2017 CHIEF ADMIN OFCR OF THE HOUSE,2017Q2,SALARIES  OFFICERS & EMPLOYEES,PERSONNEL COMPENSATION,   ,   ,   ,,GARCIA JOHN,2017-04-01,2017-06-30,JOURNEYMAN FURNITURE SPEC.,15065.01,2017
,FISCAL YEAR 2017 CHIEF ADMIN OFCR OF THE HOUSE,2017Q2,SALARIES  OFFICERS & EMPLOYEES,PERSONNEL COMPENSATION,   ,   ,   ,,GASKINS JAMES R.,2017-04-01,2017-04-30,ENTERPRISE OPER BRANCH MGR,11611.58,2017
,FISCAL YEAR 2017 CHIEF ADMIN OFCR OF THE HOUSE,2017Q2,SALARIES  OFFICERS & EMPLOYEES,PERSONNEL COMPENSATION,   ,   ,   ,,GASKINS JAMES R.,2017-05-01,2017-06-30,ENTERPRISE OPER ENG TEAM LEAD,23548.84,2017
,FISCAL YEAR 2017 CHIEF ADMIN OFCR OF THE HOUSE,2017Q2,SALARIES  OFFICERS & EMPLOYEES,PERSONNEL COMPENSATION,   ,   ,   ,,GATES TRENA F.,2017-04-01,2017-06-30,FINANCIAL ANALYST,22435.26,2017
,FISCAL YEAR 2017 CHIEF ADMIN OFCR OF THE HOUSE,2017Q2,SALARIES  OFFICERS & EMPLOYEES,PERSONNEL COMPENSATION,   ,   ,   ,,GATES COREY M,2017-04-01,2017-06-30,JOURNEYMAN TEXTILE SPEC,16812.51,2017
,FISCAL YEAR 2017 CHIEF ADMIN OFCR OF THE HOUSE,2017Q2,SALARIES  OFFICERS & EMPLOYEES,PERSONNEL COMPENSATION,   ,   ,   ,,GATES THOMAS D,2017-04-01,2017-06-30,SENIOR SYSTEMS ENGINEER,26031.58,2017
,FISCAL YEAR 2017 CHIEF ADMIN OFCR OF THE HOUSE,2017Q2,SALARIES  OFFICERS & EMPLOYEES,PERSONNEL COMPENSATION,   ,   ,   ,,GEPERT DARLA M,2017-04-01,2017-05-31,ADMINISTRATIVE SPECIALIST,10519.84,2017
,FISCAL YEAR 2017 CHIEF ADMIN OFCR OF THE HOUSE,2017Q2,SALARIES  OFFICERS & EMPLOYEES,PERSONNEL COMPENSATION,   ,   ,   ,,GEPERT DARLA M,2017-06-01,2017-06-30,SPECIAL ASSISTANT,6227.17,2017
,FISCAL YEAR 2017 CHIEF ADMIN OFCR OF THE HOUSE,2017Q2,SALARIES  OFFICERS & EMPLOYEES,PERSONNEL COMPENSATION,   ,   ,   ,,GEPERT DARLA M,2017-04-01,2017-05-31,ADMINISTRATIVE SPECIALIST (OVERTIME),588.09,2017
,FISCAL YEAR 2017 CHIEF ADMIN OFCR OF THE HOUSE,2017Q2,SALARIES  OFFICERS & EMPLOYEES,PERSONNEL COMPENSATION,   ,   ,   ,,GERARDEN PAUL J,2017-04-01,2017-06-30,SR CUSTOMER SOLUTIONS REP.,16399.74,2017
,FISCAL YEAR 2017 CHIEF ADMIN OFCR OF THE HOUSE,2017Q2,SALARIES  OFFICERS & EMPLOYEES,PERSONNEL COMPENSATION,   ,   ,   ,,GILLIS DANIEL,2017-04-01,2017-06-30,ADA AIDE,7613.07,2017
,FISCAL YEAR 2017 CHIEF ADMIN OFCR OF THE HOUSE,2017Q2,SALARIES  OFFICERS & EMPLOYEES,PERSONNEL COMPENSATION,   ,   ,   ,,GILLIS DANIEL,2017-03-01,2017-05-31,ADA AIDE (OVERTIME),8171.78,2017
,FISCAL YEAR 2017 CHIEF ADMIN OFCR OF THE HOUSE,2017Q2,SALARIES  OFFICERS & EMPLOYEES,PERSONNEL COMPENSATION,   ,   ,   ,,GIZARA MICHAEL P.,2017-04-01,2017-06-30,TEAM LEAD OPERATNS/ADV CONTENT,34734.99,2017
,FISCAL YEAR 2017 CHIEF ADMIN OFCR OF THE HOUSE,2017Q2,SALARIES  OFFICERS & EMPLOYEES,PERSONNEL COMPENSATION,   ,   ,   ,,GOGGINS II JAMES D.,2017-04-01,2017-06-30,NETWORK COMM SPECIALIST (A),24488.76,2017
,FISCAL YEAR 2017 CHIEF ADMIN OFCR OF THE HOUSE,2017Q2,SALARIES  OFFICERS & EMPLOYEES,PERSONNEL COMPENSATION,   ,   ,   ,,GOLDSBOROUGH-LEE ANGEL M.,2017-04-01,2017-06-30,DIR  TECH GOVERN & COMPLIANCE,38522.49,2017
,FISCAL YEAR 2017 CHIEF ADMIN OFCR OF THE HOUSE,2017Q2,SALARIES  OFFICERS & EMPLOYEES,PERSONNEL COMPENSATION,   ,   ,   ,,GOODLOW LISA L.,2017-04-01,2017-06-30,SR COMM SECURITY ANALYST,27592.26,2017
,FISCAL YEAR 2017 CHIEF ADMIN OFCR OF THE HOUSE,2017Q2,SALARIES  OFFICERS & EMPLOYEES,PERSONNEL COMPENSATION,   ,   ,   ,,GOULD MICHAEL,2017-04-01,2017-06-30,MANAGER  REMEDY MANAGEMENT,32966.25,2017
,FISCAL YEAR 2017 CHIEF ADMIN OFCR OF THE HOUSE,2017Q2,SALARIES  OFFICERS & EMPLOYEES,PERSONNEL COMPENSATION,   ,   ,   ,,GOULD MELISSA C,2017-04-01,2017-06-30,MANAGEMENT & PRODUCT ANALYST,27592.26,2017
,FISCAL YEAR 2017 CHIEF ADMIN OFCR OF THE HOUSE,2017Q2,SALARIES  OFFICERS & EMPLOYEES,PERSONNEL COMPENSATION,   ,   ,   ,,GRAEUB ANDREW C.,2017-04-01,2017-06-30,MANAGER  NETWORK SYST ENGINEER,37439.01,2017
,FISCAL YEAR 2017 CHIEF ADMIN OFCR OF THE HOUSE,2017Q2,SALARIES  OFFICERS & EMPLOYEES,PERSONNEL COMPENSATION,   ,   ,   ,,GRANT LISA,2017-04-01,2017-06-30,CHIEF PROCUREMENT OFFICER,42102.75,2017
,FISCAL YEAR 2017 CHIEF ADMIN OFCR OF THE HOUSE,2017Q2,SALARIES  OFFICERS & EMPLOYEES,PERSONNEL COMPENSATION,   ,   ,   ,,GRECO JACQUELINE M,2017-04-01,2017-06-30,CUSTOMER SOLUTIONS REP.,13615.26,2017
,FISCAL YEAR 2017 CHIEF ADMIN OFCR OF THE HOUSE,2017Q2,SALARIES  OFFICERS & EMPLOYEES,PERSONNEL COMPENSATION,   ,   ,   ,,GREEN CAROLINE,2017-04-01,2017-06-30,TECHNICAL SUPPORT REP (A),19298.01,2017
,FISCAL YEAR 2017 CHIEF ADMIN OFCR OF THE HOUSE,2017Q2,SALARIES  OFFICERS & EMPLOYEES,PERSONNEL COMPENSATION,   ,   ,   ,,GREEN MITCHELL,2017-04-01,2017-06-30,CONTRACT ADMINISTRATOR,34734.99,2017
,FISCAL YEAR 2017 CHIEF ADMIN OFCR OF THE HOUSE,2017Q2,SALARIES  OFFICERS & EMPLOYEES,PERSONNEL COMPENSATION,   ,   ,   ,,GREENE CHANTEL T.,2017-04-01,2017-05-31,MGR BUS SYS AND INTEGRATION,25395.84,2017
,FISCAL YEAR 2017 CHIEF ADMIN OFCR OF THE HOUSE,2017Q2,SALARIES  OFFICERS & EMPLOYEES,PERSONNEL COMPENSATION,   ,   ,   ,,GRIGGS KYLE R,2017-04-01,2017-06-30,SENIOR CONTRACTS SPECIALIST,27049.74,2017
,FISCAL YEAR 2017 CHIEF ADMIN OFCR OF THE HOUSE,2017Q2,SALARIES  OFFICERS & EMPLOYEES,PERSONNEL COMPENSATION,   ,   ,   ,,GRONSKI ROBERT S,2017-04-01,2017-06-30,SR BUSINESS  PROCESS APPL SPEC,32966.25,2017
,FISCAL YEAR 2017 CHIEF ADMIN OFCR OF THE HOUSE,2017Q2,SALARIES  OFFICERS & EMPLOYEES,PERSONNEL COMPENSATION,   ,   ,   ,,GUDURU PRATAP K,2017-04-01,2017-04-30,SENIOR SYSTEMS ENGINEER,11381.75,2017
,FISCAL YEAR 2017 CHIEF ADMIN OFCR OF THE HOUSE,2017Q2,SALARIES  OFFICERS & EMPLOYEES,PERSONNEL COMPENSATION,   ,   ,   ,,GUDURU PRATAP K,2017-05-01,2017-06-30,ENTERPRISE OPER ENG TEAM LEAD,22763.5,2017
,FISCAL YEAR 2017 CHIEF ADMIN OFCR OF THE HOUSE,2017Q2,SALARIES  OFFICERS & EMPLOYEES,PERSONNEL COMPENSATION,   ,   ,   ,,GUGLIOTTA NORMAN,2017-04-01,2017-06-30,FINANCIAL COUNSELOR (A),18056.01,2017
,FISCAL YEAR 2017 CHIEF ADMIN OFCR OF THE HOUSE,2017Q2,SALARIES  OFFICERS & EMPLOYEES,PERSONNEL COMPENSATION,   ,   ,   ,,GUGLIOTTA NORMAN,2017-03-01,2017-03-31,FINANCIAL COUNSELOR (A) (OVERTIME),156.25,2017
,FISCAL YEAR 2017 CHIEF ADMIN OFCR OF THE HOUSE,2017Q2,SALARIES  OFFICERS & EMPLOYEES,PERSONNEL COMPENSATION,   ,   ,   ,,HALL MORGAN,2017-04-01,2017-06-30,FACILITIES MANAGEMENT SPECIALI,18468.24,2017
,FISCAL YEAR 2017 CHIEF ADMIN OFCR OF THE HOUSE,2017Q2,SALARIES  OFFICERS & EMPLOYEES,PERSONNEL COMPENSATION,   ,   ,   ,,HAMBRIC STEEN H.,2017-04-01,2017-06-30,CHIEF TECHNOLOGY OFFICER,42102.75,2017
,FISCAL YEAR 2017 CHIEF ADMIN OFCR OF THE HOUSE,2017Q2,SALARIES  OFFICERS & EMPLOYEES,PERSONNEL COMPENSATION,   ,   ,   ,,HAMEL RYAN T,2017-04-01,2017-06-30,THIRD ASSISTANT,18056.01,2017
,FISCAL YEAR 2017 CHIEF ADMIN OFCR OF THE HOUSE,2017Q2,SALARIES  OFFICERS & EMPLOYEES,PERSONNEL COMPENSATION,   ,   ,   ,,HAMNER PHILIP D.,2017-04-01,2017-06-30,DIRECTOR  ACCOUNTING,38747.25,2017
,FISCAL YEAR 2017 CHIEF ADMIN OFCR OF THE HOUSE,2017Q2,SALARIES  OFFICERS & EMPLOYEES,PERSONNEL COMPENSATION,   ,   ,   ,,HANEY WINSTON,2017-04-01,2017-06-30,ASSET/INVENTORY COUNSELOR,15050.49,2017
,FISCAL YEAR 2017 CHIEF ADMIN OFCR OF THE HOUSE,2017Q2,SALARIES  OFFICERS & EMPLOYEES,PERSONNEL COMPENSATION,   ,   ,   ,,HAQ RABIA,2017-02-01,2017-06-30,BUSINESS PROC APPLIC SPEC,22626.72,2017
,FISCAL YEAR 2017 CHIEF ADMIN OFCR OF THE HOUSE,2017Q2,SALARIES  OFFICERS & EMPLOYEES,PERSONNEL COMPENSATION,   ,   ,   ,,HARGROVE BRIAN,2017-04-01,2017-06-30,BUILDING SUPERVISOR,12540.75,2017
,FISCAL YEAR 2017 CHIEF ADMIN OFCR OF THE HOUSE,2017Q2,SALARIES  OFFICERS & EMPLOYEES,PERSONNEL COMPENSATION,   ,   ,   ,,HARRELL VICKIE,2017-04-01,2017-06-30,SR NETWORK COMM SPECIALIST (A),25240.5,2017
,FISCAL YEAR 2017 CHIEF ADMIN OFCR OF THE HOUSE,2017Q2,SALARIES  OFFICERS & EMPLOYEES,PERSONNEL COMPENSATION,   ,   ,   ,,HARRINGTON KEITH,2017-04-01,2017-06-30,FINANCIAL COUNSELOR,24106.5,2017
,FISCAL YEAR 2017 CHIEF ADMIN OFCR OF THE HOUSE,2017Q2,SALARIES  OFFICERS & EMPLOYEES,PERSONNEL COMPENSATION,   ,   ,   ,,HARRINGTON KEITH,2017-03-01,2017-03-31,FINANCIAL COUNSELOR (OVERTIME),521.53,2017
,FISCAL YEAR 2017 CHIEF ADMIN OFCR OF THE HOUSE,2017Q2,SALARIES  OFFICERS & EMPLOYEES,PERSONNEL COMPENSATION,   ,   ,   ,,HARRIS DONALD,2017-04-01,2017-06-30,NETWORK COMM SUPERVISOR,32769.25,2017
,FISCAL YEAR 2017 CHIEF ADMIN OFCR OF THE HOUSE,2017Q2,SALARIES  OFFICERS & EMPLOYEES,PERSONNEL COMPENSATION,   ,   ,   ,,HARRIS KEVIN,2017-04-01,2017-06-30,JOURNEYMAN FURNITURE SPEC.,21509.41,2017
,FISCAL YEAR 2017 CHIEF ADMIN OFCR OF THE HOUSE,2017Q2,SALARIES  OFFICERS & EMPLOYEES,PERSONNEL COMPENSATION,   ,   ,   ,,HARRIS KEVIN,2017-03-01,2017-04-30,JOURNEYMAN FURNITURE SPEC. (OVERTIME),2710.11,2017
,FISCAL YEAR 2017 CHIEF ADMIN OFCR OF THE HOUSE,2017Q2,SALARIES  OFFICERS & EMPLOYEES,PERSONNEL COMPENSATION,   ,   ,   ,,HARRIS RAFAEL R,2017-04-01,2017-06-30,ENT OPS ENGINEERING TEAM LEAD,30609.75,2017
,FISCAL YEAR 2017 CHIEF ADMIN OFCR OF THE HOUSE,2017Q2,SALARIES  OFFICERS & EMPLOYEES,PERSONNEL COMPENSATION,   ,   ,   ,,HARVEY JAMIE,2017-04-01,2017-06-30,SR TELECOMMUNICATIONS ADMIN (A,17574.75,2017
,FISCAL YEAR 2017 CHIEF ADMIN OFCR OF THE HOUSE,2017Q2,SALARIES  OFFICERS & EMPLOYEES,PERSONNEL COMPENSATION,   ,   ,   ,,HARVEY JAMIE,2017-03-01,2017-03-31,SR TELECOMMUNICATIONS ADMIN (A (OVERTIME),354.87,2017
,FISCAL YEAR 2017 CHIEF ADMIN OFCR OF THE HOUSE,2017Q2,SALARIES  OFFICERS & EMPLOYEES,PERSONNEL COMPENSATION,   ,   ,   ,,HARVEY KINSEY B,2017-04-01,2017-05-31,MEDIA LOGISTICS COORDINATOR,12733.66,2017
,FISCAL YEAR 2017 CHIEF ADMIN OFCR OF THE HOUSE,2017Q2,SALARIES  OFFICERS & EMPLOYEES,PERSONNEL COMPENSATION,   ,   ,   ,,HARVEY KINSEY B,2017-05-01,2017-06-30,MEDIA COORDINATOR & VISUAL DES,7743.33,2017
,FISCAL YEAR 2017 CHIEF ADMIN OFCR OF THE HOUSE,2017Q2,SALARIES  OFFICERS & EMPLOYEES,PERSONNEL COMPENSATION,   ,   ,   ,,HAYES KATHLEEN M,2017-04-01,2017-06-30,CUSTOMER SOLUTIONS REP.,16137.75,2017
,FISCAL YEAR 2017 CHIEF ADMIN OFCR OF THE HOUSE,2017Q2,SALARIES  OFFICERS & EMPLOYEES,PERSONNEL COMPENSATION,   ,   ,   ,,HAYES MICHELLE P,2017-04-01,2017-06-30,SENIOR SYSTEMS ENGINEER,34145.25,2017
,FISCAL YEAR 2017 CHIEF ADMIN OFCR OF THE HOUSE,2017Q2,SALARIES  OFFICERS & EMPLOYEES,PERSONNEL COMPENSATION,   ,   ,   ,,HEEB III JOHN J.,2017-04-01,2017-06-30,SR BUSINESS  PROCESS APPL SPEC,35915.25,2017
,FISCAL YEAR 2017 CHIEF ADMIN OFCR OF THE HOUSE,2017Q2,SALARIES  OFFICERS & EMPLOYEES,PERSONNEL COMPENSATION,   ,   ,   ,,HERBERT GREGORY L.,2017-04-01,2017-06-30,REC/WAREHOUSE SPEC (A),13124.01,2017
,FISCAL YEAR 2017 CHIEF ADMIN OFCR OF THE HOUSE,2017Q2,SALARIES  OFFICERS & EMPLOYEES,PERSONNEL COMPENSATION,   ,   ,   ,,HERBERT GREGORY L.,2017-03-01,2017-05-31,REC/WAREHOUSE SPEC (A) (OVERTIME),435.36,2017
,FISCAL YEAR 2017 CHIEF ADMIN OFCR OF THE HOUSE,2017Q2,SALARIES  OFFICERS & EMPLOYEES,PERSONNEL COMPENSATION,   ,   ,   ,,HIBBS CYNTHIA,2017-04-01,2017-06-30,NETWORK COORDINATOR (A),20955.75,2017
,FISCAL YEAR 2017 CHIEF ADMIN OFCR OF THE HOUSE,2017Q2,SALARIES  OFFICERS & EMPLOYEES,PERSONNEL COMPENSATION,   ,   ,   ,,HIDALGO BOUCHOT ENRIQUE D,2017-04-01,2017-06-30,SENIOR SOFTWARE SPECIALIST,34176,2017
,FISCAL YEAR 2017 CHIEF ADMIN OFCR OF THE HOUSE,2017Q2,SALARIES  OFFICERS & EMPLOYEES,PERSONNEL COMPENSATION,   ,   ,   ,,HIRSCH PATRICK A.,2017-04-01,2017-06-30,DIR-HOUSE RECORDING STUDIO,42102.75,2017
,FISCAL YEAR 2017 CHIEF ADMIN OFCR OF THE HOUSE,2017Q2,SALARIES  OFFICERS & EMPLOYEES,PERSONNEL COMPENSATION,   ,   ,   ,,HOBBS DENINE,2017-04-01,2017-06-30,SPECIAL ASSISTANT,26984.83,2017
,FISCAL YEAR 2017 CHIEF ADMIN OFCR OF THE HOUSE,2017Q2,SALARIES  OFFICERS & EMPLOYEES,PERSONNEL COMPENSATION,   ,   ,   ,,HODGES JOHN E.,2017-04-01,2017-06-30,DIR. OFFICE SUPPLY & GIFT SHOP,29034.33,2017
,FISCAL YEAR 2017 CHIEF ADMIN OFCR OF THE HOUSE,2017Q2,SALARIES  OFFICERS & EMPLOYEES,PERSONNEL COMPENSATION,   ,   ,   ,,HOKHOLD MARK D.,2017-04-01,2017-06-30,SYSTEMS ENGINEER,27143.49,2017
,FISCAL YEAR 2017 CHIEF ADMIN OFCR OF THE HOUSE,2017Q2,SALARIES  OFFICERS & EMPLOYEES,PERSONNEL COMPENSATION,   ,   ,   ,,HOLAU GEORGE,2017-04-01,2017-06-30,FINANCIAL COUNSELOR,22016.76,2017
,FISCAL YEAR 2017 CHIEF ADMIN OFCR OF THE HOUSE,2017Q2,SALARIES  OFFICERS & EMPLOYEES,PERSONNEL COMPENSATION,   ,   ,   ,,HOLAU GEORGE,2017-03-01,2017-05-31,FINANCIAL COUNSELOR (OVERTIME),8965.38,2017
,FISCAL YEAR 2017 CHIEF ADMIN OFCR OF THE HOUSE,2017Q2,SALARIES  OFFICERS & EMPLOYEES,PERSONNEL COMPENSATION,   ,   ,   ,,HOLLAND GREGORY,2017-04-01,2017-06-30,LOGISTICS & DIST SPEC (A),12317.01,2017
,FISCAL YEAR 2017 CHIEF ADMIN OFCR OF THE HOUSE,2017Q2,SALARIES  OFFICERS & EMPLOYEES,PERSONNEL COMPENSATION,   ,   ,   ,,HOLLAND GREGORY,2017-03-01,2017-05-31,LOGISTICS & DIST SPEC (A) (OVERTIME),811.26,2017
,FISCAL YEAR 2017 CHIEF ADMIN OFCR OF THE HOUSE,2017Q2,SALARIES  OFFICERS & EMPLOYEES,PERSONNEL COMPENSATION,   ,   ,   ,,HOLLEY STEVEN M.,2017-02-01,2017-06-30,RECEIVING/WAREHOUSE SPEC (A),11737.73,2017
,FISCAL YEAR 2017 CHIEF ADMIN OFCR OF THE HOUSE,2017Q2,SALARIES  OFFICERS & EMPLOYEES,PERSONNEL COMPENSATION,   ,   ,   ,,HOLLEY STEVEN M.,2017-03-01,2017-05-31,RECEIVING/WAREHOUSE SPEC (A) (OVERTIME),277.03,2017
,FISCAL YEAR 2017 CHIEF ADMIN OFCR OF THE HOUSE,2017Q2,SALARIES  OFFICERS & EMPLOYEES,PERSONNEL COMPENSATION,   ,   ,   ,,HOLT CLINTON F,2017-04-01,2017-06-30,BROADCAST ENGINEER/PROD SPEC.,22117.5,2017
,FISCAL YEAR 2017 CHIEF ADMIN OFCR OF THE HOUSE,2017Q2,SALARIES  OFFICERS & EMPLOYEES,PERSONNEL COMPENSATION,   ,   ,   ,,HORNBURG RICHARD A.,2017-04-01,2017-06-30,BUSINESS PROC APPLIC SPEC,30297.99,2017
,FISCAL YEAR 2017 CHIEF ADMIN OFCR OF THE HOUSE,2017Q2,SALARIES  OFFICERS & EMPLOYEES,PERSONNEL COMPENSATION,   ,   ,   ,,HOWARD ANTHONY T.,2017-04-01,2017-06-30,JOURNEYMAN TEXTILE SPEC,18288.99,2017
